{"text_format":"1","workbook":"xlsx","n_sheets":8,"sheets":["２４０の問","ロジックモデル","ビジネスモデル","定款","マネジメント","LogicModelSheet","BusinessModelSheet","表"],"not_rendered":{"charts":2,"images":27,"macros":1,"external_links":0,"defined_names":6,"comments":0,"pivot_tables":0},"unopened":[],"bounds":{"document_bytes":16777216,"sheet_cells":100000,"rows_first":2000,"rows_last":500,"rows_between":2000,"halvings":0,"cell_chars":16384,"cell_head_chars":4096},"cells_cut":0,"cells_raw":0,"read":"whole","date_system":"1900"}

{"sheet":"２４０の問","index":0,"n_rows":656,"n_cols":56,"rows_kept":656,"cut":false,"hidden":false,"merged":[[612,5,612,6],[612,9,612,10],[612,13,612,14],[612,21,612,22],[612,25,612,26],[612,29,612,30],[612,34,612,35],[612,17,612,18],[568,35,569,58],[77,5,77,57],[78,5,78,57],[79,5,79,57],[80,5,80,57],[612,42,612,43],[612,46,612,47],[612,38,612,39],[610,0,610,16383],[579,6,579,21],[577,6,577,21],[578,6,578,21],[581,6,581,21],[580,6,580,21],[582,6,582,21],[106,35,106,58],[583,6,583,21],[584,6,584,21],[585,6,585,21],[586,6,586,21],[587,6,587,21],[588,6,588,21],[121,35,122,58],[612,1,612,2],[87,35,88,58],[109,35,110,58],[111,35,112,58],[116,1,116,31],[117,35,118,58],[119,35,120,58],[115,35,115,58],[116,35,116,58],[107,35,107,58],[108,35,108,58],[95,35,95,58],[96,35,96,58],[97,35,97,58],[103,35,103,58],[104,35,104,58],[105,35,105,58],[162,35,163,58],[203,35,204,58],[244,35,245,58],[285,35,286,58],[326,35,327,58],[566,35,567,58],[76,5,76,57],[83,35,83,58],[84,35,84,58],[85,35,85,58],[86,35,86,58],[113,35,113,58],[114,35,114,58],[99,35,99,58],[100,35,100,58],[101,35,101,58],[102,35,102,58],[98,35,98,58],[89,35,89,58],[90,35,90,58],[91,35,91,58],[92,35,92,58],[93,35,93,58],[94,35,94,58],[53,15,54,46],[55,15,56,46],[57,15,58,46],[60,15,60,46],[62,15,62,46],[46,5,47,56],[50,5,50,7],[51,15,52,46],[50,15,50,46],[50,8,50,13],[51,8,51,13],[52,8,52,13],[53,8,53,13],[54,8,54,13],[59,8,59,13],[60,8,60,13],[61,8,61,13],[62,8,62,13],[556,35,557,58],[558,35,559,58],[560,35,561,58],[562,35,563,58],[564,35,565,58],[55,8,55,13],[56,8,56,13],[57,8,57,13],[58,8,58,13],[84,1,84,24],[82,1,82,15],[82,34,82,57],[64,16,64,19],[64,21,64,24],[64,26,64,29],[63,8,63,13],[64,8,64,13],[65,8,65,13],[66,8,66,13],[69,5,69,57],[70,5,70,57],[71,5,71,57],[74,5,74,57],[75,5,75,57],[572,35,573,58],[529,35,530,58],[505,35,506,58],[507,35,508,58],[509,35,510,58],[511,35,512,58],[513,35,514,58],[515,35,516,58],[517,35,518,58],[519,35,520,58],[521,35,522,58],[531,35,532,58],[570,35,571,58],[534,35,535,58],[536,35,537,58],[538,35,539,58],[540,35,541,58],[542,35,543,58],[544,35,545,58],[546,35,547,58],[548,35,549,58],[550,35,551,58],[552,35,553,58],[554,35,555,58],[474,35,475,58],[476,35,477,58],[478,35,479,58],[480,35,481,58],[482,35,483,58],[523,35,524,58],[525,35,526,58],[527,35,528,58],[490,35,491,58],[456,35,457,58],[458,35,459,58],[460,35,461,58],[462,35,463,58],[464,35,465,58],[466,35,467,58],[468,35,469,58],[470,35,471,58],[472,35,473,58],[398,35,399,58],[400,35,401,58],[408,35,409,58],[443,35,444,58],[445,35,446,58],[447,35,448,58],[425,35,426,58],[427,35,428,58],[429,35,430,58],[431,35,432,58],[433,35,434,58],[435,35,436,58],[437,35,438,58],[439,35,440,58],[441,35,442,58],[365,35,366,58],[411,35,412,58],[367,35,368,58],[449,35,450,58],[413,35,414,58],[415,35,416,58],[417,35,418,58],[419,35,420,58],[421,35,422,58],[423,35,424,58],[370,35,371,58],[372,35,373,58],[374,35,375,58],[376,35,377,58],[378,35,379,58],[380,35,381,58],[382,35,383,58],[384,35,385,58],[386,35,387,58],[388,35,389,58],[390,35,391,58],[392,35,393,58],[394,35,395,58],[396,35,397,58],[193,35,194,58],[195,35,196,58],[349,35,350,58],[353,35,354,58],[355,35,356,58],[357,35,358,58],[359,35,360,58],[361,35,362,58],[363,35,364,58],[226,35,227,58],[228,35,229,58],[234,35,235,58],[238,35,239,58],[240,35,241,58],[232,35,232,58],[233,35,233,58],[236,35,236,58],[237,35,237,58],[230,35,230,58],[231,35,231,58],[288,35,288,58],[289,35,289,58],[247,35,248,58],[249,35,250,58],[165,35,166,58],[173,35,174,58],[175,35,176,58],[177,35,178,58],[179,35,180,58],[181,35,182,58],[185,35,186,58],[187,35,188,58],[191,35,192,58],[8,13,9,43],[19,19,21,43],[33,41,33,54],[12,9,15,52],[167,35,167,58],[168,35,168,58],[134,35,134,58],[135,35,135,58],[123,1,123,15],[123,34,123,57],[136,35,137,58],[138,35,139,58],[140,35,141,58],[142,35,143,58],[150,35,151,58],[154,35,155,58],[156,35,157,58],[158,35,159,58],[160,35,161,58],[152,35,152,58],[153,35,153,58],[125,1,125,24],[157,1,157,31],[166,1,166,24],[280,1,280,31],[287,1,287,15],[287,34,287,57],[289,1,289,24],[320,1,320,31],[248,1,248,29],[205,1,205,15],[205,34,205,57],[239,1,239,31],[246,1,246,15],[246,34,246,57],[211,35,211,58],[214,35,214,58],[215,35,215,58],[218,35,218,58],[219,35,219,58],[220,35,220,58],[221,35,221,58],[222,35,222,58],[242,35,242,58],[243,35,243,58],[206,35,207,58],[208,35,209,58],[207,1,208,30],[371,1,371,24],[403,1,403,31],[410,1,410,15],[410,34,410,57],[412,1,412,24],[444,1,444,31],[413,1,413,24],[328,1,328,15],[328,34,328,57],[330,1,330,24],[362,1,362,31],[369,1,369,15],[369,34,369,57],[331,1,331,29],[335,35,336,58],[337,35,338,58],[339,35,340,58],[341,35,342,58],[343,35,344,58],[345,35,346,58],[402,35,403,58],[404,35,405,58],[406,35,407,58],[351,35,352,58],[494,1,494,24],[526,1,526,31],[533,1,533,15],[533,34,533,57],[535,1,535,24],[567,1,567,31],[495,1,495,24],[451,1,451,15],[451,34,451,57],[453,1,453,24],[485,1,485,31],[492,1,492,15],[492,34,492,57],[484,35,485,58],[486,35,487,58],[488,35,489,58],[493,35,494,58],[495,35,496,58],[497,35,498,58],[499,35,500,58],[501,35,502,58],[503,35,504,58],[452,35,453,58],[454,35,455,58],[124,35,124,58],[125,35,125,58],[126,35,126,58],[127,35,127,58],[145,35,145,58],[146,35,146,58],[147,35,147,58],[148,35,148,58],[149,35,149,58],[144,35,144,58],[198,1,198,31],[164,1,164,20],[130,35,130,58],[131,35,131,58],[128,35,129,58],[132,35,133,58],[212,35,213,58],[216,35,217,58],[224,35,225,58],[223,35,223,58],[210,35,210,58],[164,34,164,57],[201,35,202,58],[199,35,200,58],[189,35,189,58],[190,35,190,58],[183,35,183,58],[184,35,184,58],[169,35,169,58],[170,35,170,58],[171,35,171,58],[172,35,172,58],[197,35,197,58],[198,35,198,58],[251,35,252,58],[253,35,254,58],[255,35,256,58],[257,35,258,58],[261,35,262,58],[263,35,264,58],[265,35,266,58],[267,35,268,58],[269,35,270,58],[271,35,272,58],[273,35,274,58],[275,35,276,58],[277,35,278,58],[279,35,280,58],[283,35,284,58],[281,35,282,58],[259,35,259,58],[260,35,260,58],[347,35,348,58],[329,35,330,58],[331,35,332,58],[333,35,334,58],[290,35,291,58],[292,35,293,58],[294,35,295,58],[296,35,297,58],[300,35,301,58],[302,35,303,58],[304,35,305,58],[306,35,307,58],[310,35,311,58],[312,35,313,58],[314,35,315,58],[318,35,319,58],[320,35,321,58],[322,35,323,58],[324,35,325,58],[316,35,317,58],[298,35,299,58],[308,35,308,58],[309,35,309,58],[633,38,633,39],[633,42,633,43],[633,46,633,47],[633,1,633,2],[633,5,633,6],[633,9,633,10],[633,13,633,14],[633,17,633,18],[633,21,633,22],[633,25,633,26],[633,29,633,30],[633,34,633,35],[635,17,638,18],[635,36,638,37],[635,38,638,39],[635,40,638,41],[635,42,638,43],[635,44,638,45],[635,46,638,47],[635,19,638,20],[635,21,638,22],[635,23,638,24],[635,25,638,26],[635,27,638,28],[635,29,638,30],[635,34,638,35],[644,4,644,15],[645,4,645,15],[646,4,646,15],[647,4,647,15],[648,4,648,15],[649,4,649,15],[635,1,638,2],[635,3,638,4],[635,5,638,6],[635,7,638,8],[635,9,638,10],[635,11,638,12],[635,13,638,14],[635,15,638,16],[655,16,655,18],[651,4,651,15],[652,4,652,15],[653,4,653,15],[654,4,654,15],[655,4,655,15],[654,2,654,3],[655,2,655,3],[651,2,651,3],[72,6,72,55],[73,6,73,55],[575,4,575,15],[652,2,652,3],[653,2,653,3],[651,16,651,18],[652,16,652,18],[653,16,653,18],[654,16,654,18],[650,4,650,15],[644,16,644,18],[650,16,650,18],[645,2,645,3],[646,2,646,3],[647,2,647,3],[648,2,648,3],[649,2,649,3],[650,2,650,3],[645,16,645,18],[646,16,646,18],[647,16,647,18],[648,16,648,18],[649,16,649,18],[644,2,644,3]]}
[]
[]
[]
[]
[]
[]
[]
[]
[null,null,null,null,null,null,null,null,null,null,null,null,null,"非営利組織の経営"]
[]
[]
[]
[null,null,null,null,null,null,null,null,null,"Magement Cycle  2017/09/02"]
[]
[]
[]
[]
[]
[]
[null,null,null,null,null,null,null,null,null,null,null,null,null,null,null,null,null,null,null,"マネジメント　サイクル　　２４０の問"]
[]
[]
[]
[]
[]
[]
[]
[]
[]
[]
[]
[]
[]
[null,null,null,null,null,null,null,null,null,null,null,null,null,null,null,null,null,null,null,null,null,null,null,null,null,null,null,null,null,null,null,null,null,null,null,null,null,null,null,null,null,"2017/08/30　Okada　©"]
[]
[]
[]
[]
[]
[]
[]
[]
[]
[]
[]
[]
[null,null,null,null,null,"非営利活動法人　マネジメント　チェックリスト"]
[]
[]
[null,null,null,null,null,null,null,null,null,null,null,null,null,0]
[null,null,null,null,null,1,null,null,"読み方　カナ"]
[]
[null,null,null,null,null,null,2,null,"法人名"]
[]
[null,null,null,null,null,null,3,null,"代表理事"]
[]
[null,null,null,null,null,null,4,null,"担当者氏名"]
[]
[null,null,null,null,null,null,5,null,"担当役職"]
[]
[null,null,null,null,null,null,6,null,"Mail"]
[]
[null,null,null,null,null,null,7,null,"法人電話番号"]
[]
[null,null,null,null,null,null,8,null,"実施　日付",null,null,null,null,null,null,null,null,null,null,null,"年",null,null,null,null,"月",null,null,null,null,"日"]
[]
[]
[]
[]
[null,null,null,null,null,"●概要"]
[null,null,null,null,null,"　問は、マネジメントの考え方からの方向性をもつ質問である。"]
[null,null,null,null,null,"　問に正解であれば、「＋１０」不正解であれば、「－１０」加算される。総合点がマイナスになることもある。"]
[null,null,null,null,null," ","高得点を取得するということが、この「問」の目的ではなく、複数の人でこれを実施し、自分との違いから「なぜそう考える」 "]
[null,null,null,null,null,null,"かを考察し、視野を広くもつことに重点をおく。"]
[null,null,null,null,null,"　自分との「違い」を発見し、その原因を考えることに意味がある。イノベーションは、「違い」を考えることから生まれる。"]
[null,null,null,null,null,"　問の正解が、常に正しいということはなく、時間経過とともにその問の評価は変化するもので、絶対的なものではない。"]
[]
[null,null,null,null,null,"　個々各人が抱く活動目的へのベクトルの総合が、組織の目的への方向にあれば、組織は絶大な力を発揮する。"]
[null,null,null,null,null,"　各人様々な方向を向く活動目的ベクトルを、考察と合意から、組織目的へ、ベクトルを合わせ共有することが目的である。"]
[]
[]
[]
[null,"１．使命　（ミッション）",null,null,null,null,null,null,null,null,null,null,null,null,null,null,null,null,null,null,null,null,null,null,null,null,null,null,null,null,null,null,null,null,"　共感する項目にチェックを入れてください。　記入【✓】"]
[null,null,null,null,null,null,null,null,null,null,null,null,null,null,null,null,null,null,null,null,null,null,null,null,null,null,null,null,null,null,null,null,1,null,null,"すべての関係者と使命は共有されている。"]
[null,"法人の使命　(ミッション)を簡潔に記載してください。"]
[null,null,null,null,null,null,null,null,null,null,null,null,null,null,null,null,null,null,null,null,null,null,null,null,null,null,null,null,null,null,null,null,2,null,null,"法人の強みを使命とした。"]
[]
[null,null,null,null,null,null,null,null,null,null,null,null,null,null,null,null,null,null,null,null,null,null,null,null,null,null,null,null,null,null,null,null,3,null,null,"ミッションからスタートして、どのような事業を実施するかを決定した。"]
[]
[null,null,null,null,null,null,null,null,null,null,null,null,null,null,null,null,null,null,null,null,null,null,null,null,null,null,null,null,null,null,null,null,4,null,null,"使命決定は、組織として最初に取り組む課題である。"]
[]
[null,null,null,null,null,null,null,null,null,null,null,null,null,null,null,null,null,null,null,null,null,null,null,null,null,null,null,null,null,null,null,null,5,null,null,"使命は変更しないというものではなく、常に再考と改革が必要。"]
[]
[null,null,null,null,null,null,null,null,null,null,null,null,null,null,null,null,null,null,null,null,null,null,null,null,null,null,null,null,null,null,null,null,6,null,null,"法人の強みである実施事業にあうミッションとした。"]
[]
[null,null,null,null,null,null,null,null,null,null,null,null,null,null,null,null,null,null,null,null,null,null,null,null,null,null,null,null,null,null,null,null,7,null,null,"ＮＰＯ法人は、社会の公器であるということはない。"]
[]
[null,null,null,null,null,null,null,null,null,null,null,null,null,null,null,null,null,null,null,null,null,null,null,null,null,null,null,null,null,null,null,null,8,null,null,"使命を設定しなくとも事業成功を達成できる。"]
[]
[null,null,null,null,null,null,null,null,null,null,null,null,null,null,null,null,null,null,null,null,null,null,null,null,null,null,null,null,null,null,null,null,9,null,null,"法人の使命は、経営責任者・役員が周知していればよい事項。"]
[]
[null,null,null,null,null,null,null,null,null,null,null,null,null,null,null,null,null,null,null,null,null,null,null,null,null,null,null,null,null,null,null,null,10,null,null,"ミッションが法人の意思決定に影響することはない。"]
[]
[null,null,null,null,null,null,null,null,null,null,null,null,null,null,null,null,null,null,null,null,null,null,null,null,null,null,null,null,null,null,null,null,11,null,null,"使命は、組織活動の方向性を示すものではない。"]
[]
[null,null,null,null,null,null,null,null,null,null,null,null,null,null,null,null,null,null,null,null,null,null,null,null,null,null,null,null,null,null,null,null,12,null,null,"法人の使命は、組織内部に貢献するミッションである。"]
[]
[null,null,null,null,null,null,null,null,null,null,null,null,null,null,null,null,null,null,null,null,null,null,null,null,null,null,null,null,null,null,null,null,13,null,null,"社会貢献活動は組織の唯一の使命である。"]
[]
[null,null,null,null,null,null,null,null,null,null,null,null,null,null,null,null,null,null,null,null,null,null,null,null,null,null,null,null,null,null,null,null,14,null,null,"相互扶助の地域コミュニティ構築は、ＮＰＯ法人の共通使命である。"]
[]
[null,null,null,null,null,null,null,null,null,null,null,null,null,null,null,null,null,null,null,null,null,null,null,null,null,null,null,null,null,null,null,null,15,null,null,"個人の尊厳を大切にするということは、ＮＰＯ法人共通の使命である。"]
[]
[null,null,null,null,null,null,null,null,null,null,null,null,null,null,null,null,null,null,null,null,null,null,null,null,null,null,null,null,null,null,null,null,16,null,null,"専門家育成とサポートは、ＮＰＯ法人の必須使命である。"]
[]
[null,null,null,null,null,null,null,null,null,null,null,null,null,null,null,null,null,null,null,null,null,null,null,null,null,null,null,null,null,null,null,null,17,null,null,"ボランティアの使命は、組織外部への社会貢献のみである。"]
[null,"自己評価　１．使命　　　　　　　　　　　　　最高点（５）"]
[null,null,null,null,null,null,null,null,null,null,null,null,null,null,null,null,null,null,null,null,null,null,null,null,null,null,null,null,null,null,null,null,18,null,null,"ＮＰＯ法人の使命は、社会への価値あるライフスタイルの提供に尽きる。"]
[null,null,null,null,null,null,5,null,null,null,null,4,null,null,null,null,3,null,null,null,null,2,null,null,null,null,1]
[null,null,null,null,null,null,null,null,null,null,null,null,null,null,null,null,null,null,null,null,null,null,null,null,null,null,null,null,null,null,null,null,19,null,null,"どこにも依存することがなく自由で自律した市民組織とすることは、ＮＰＯ法人の使命である。"]
[]
[null,null,null,null,null,null,null,null,null,null,null,null,null,null,null,null,null,null,null,null,null,null,null,null,null,null,null,null,null,null,null,null,20,null,null,"組織の透明化と説明責任は、ＮＰＯ法人の使命である。"]
[]
[null,"２．目的　（ビジョン）",null,null,null,null,null,null,null,null,null,null,null,null,null,null,null,null,null,null,null,null,null,null,null,null,null,null,null,null,null,null,null,null,"　共感する項目にチェックを入れてください。　記入【✓】"]
[null,null,null,null,null,null,null,null,null,null,null,null,null,null,null,null,null,null,null,null,null,null,null,null,null,null,null,null,null,null,null,null,1,null,null,"法人の活動目的と、法人のビジョンは同じには、ならない。"]
[]
[null,null,null,null,null,null,null,null,null,null,null,null,null,null,null,null,null,null,null,null,null,null,null,null,null,null,null,null,null,null,null,null,2,null,null,"互助共助の地域コミュニティ構築は、ＮＰＯ法人の共通目的である。"]
[]
[null,null,null,null,null,null,null,null,null,null,null,null,null,null,null,null,null,null,null,null,null,null,null,null,null,null,null,null,null,null,null,null,3,null,null,"ロジックモデルとビジネスモデルは目的達成への最強のツールである。"]
[]
[null,null,null,null,null,null,null,null,null,null,null,null,null,null,null,null,null,null,null,null,null,null,null,null,null,null,null,null,null,null,null,null,4,null,null,"法人目的達成評価より、事業達成評価が重要である。"]
[]
[null,null,null,null,null,null,null,null,null,null,null,null,null,null,null,null,null,null,null,null,null,null,null,null,null,null,null,null,null,null,null,null,5,null,null,"目的は、法人が最終的に目指す社会の在り方であり社会の状態である。"]
[]
[null,null,null,null,null,null,null,null,null,null,null,null,null,null,null,null,null,null,null,null,null,null,null,null,null,null,null,null,null,null,null,null,6,null,null,"目的達成評価は法人の内部評価よりできる。"]
[]
[null,null,null,null,null,null,null,null,null,null,null,null,null,null,null,null,null,null,null,null,null,null,null,null,null,null,null,null,null,null,null,null,7,null,null,"規定した目的は、法人が目指す事業の方向性とは同じでない場合もある。"]
[]
[null,null,null,null,null,null,null,null,null,null,null,null,null,null,null,null,null,null,null,null,null,null,null,null,null,null,null,null,null,null,null,null,8,null,null,"目的達成評価をするには、積極的に外部情報を収集しなければならない。"]
[]
[null,null,null,null,null,null,null,null,null,null,null,null,null,null,null,null,null,null,null,null,null,null,null,null,null,null,null,null,null,null,null,null,9,null,null,"社会的インパクトやアウトカムの評価は、支援者や受益者にとって大切な情報である。"]
[]
[null,null,null,null,null,null,null,null,null,null,null,null,null,null,null,null,null,null,null,null,null,null,null,null,null,null,null,null,null,null,null,null,10,null,null,"個の尊厳が大切にされ、個がサポートされている社会は、ＮＰＯ法人の共通目的である。"]
[]
[null,null,null,null,null,null,null,null,null,null,null,null,null,null,null,null,null,null,null,null,null,null,null,null,null,null,null,null,null,null,null,null,11,null,null,"法人の目的は、社会へのより良い価値とライフスタイルの提供である。"]
[]
[null,null,null,null,null,null,null,null,null,null,null,null,null,null,null,null,null,null,null,null,null,null,null,null,null,null,null,null,null,null,null,null,12,null,null,"ＮＰＯ法人の所有者は、理事である。"]
[]
[null,null,null,null,null,null,null,null,null,null,null,null,null,null,null,null,null,null,null,null,null,null,null,null,null,null,null,null,null,null,null,null,13,null,null,"事業の成功と拡大の目標を定めて法人の目的とした。"]
[]
[null,null,null,null,null,null,null,null,null,null,null,null,null,null,null,null,null,null,null,null,null,null,null,null,null,null,null,null,null,null,null,null,14,null,null,"法人の目標は、収益を上げて、継続的に存続する安定した組織とすることである。"]
[]
[null,null,null,null,null,null,null,null,null,null,null,null,null,null,null,null,null,null,null,null,null,null,null,null,null,null,null,null,null,null,null,null,15,null,null,"ＮＰＯ法人の目的は、会員への利便性提供にある。"]
[]
[null,null,null,null,null,null,null,null,null,null,null,null,null,null,null,null,null,null,null,null,null,null,null,null,null,null,null,null,null,null,null,null,16,null,null,"目指すビジョンとミッションとのギャプを埋める努力が常に必要である。"]
[]
[null,null,null,null,null,null,null,null,null,null,null,null,null,null,null,null,null,null,null,null,null,null,null,null,null,null,null,null,null,null,null,null,17,null,null,"法人の目的は、社会貢献であり、スタッフの働きやすい労働環境などの内部環境改善は法人が取り組む別の事業である。"]
[null,"自己評価　２．目的　(ビジョン)　　　　　　　　最高点（５）"]
[null,null,null,null,null,null,null,null,null,null,null,null,null,null,null,null,null,null,null,null,null,null,null,null,null,null,null,null,null,null,null,null,18,null,null,"使命と目的を明確にすることでは、組織の意思決定は速くならない。"]
[null,null,null,null,null,null,5,null,null,null,null,4,null,null,null,null,3,null,null,null,null,2,null,null,null,null,1]
[null,null,null,null,null,null,null,null,null,null,null,null,null,null,null,null,null,null,null,null,null,null,null,null,null,null,null,null,null,null,null,null,19,null,null,"目的は、法人活動により達成される社会の変化や社会の在り方である。"]
[]
[null,null,null,null,null,null,null,null,null,null,null,null,null,null,null,null,null,null,null,null,null,null,null,null,null,null,null,null,null,null,null,null,20,null,null,"法人が規定した目的は、簡単に変更すべきではない。"]
[]
[null,"３．事業組立",null,null,null,null,null,null,null,null,null,null,null,null,null,null,null,null,null,null,null,null,null,null,null,null,null,null,null,null,null,null,null,null,"　共感する項目にチェックを入れてください。　記入【✓】"]
[null,null,null,null,null,null,null,null,null,null,null,null,null,null,null,null,null,null,null,null,null,null,null,null,null,null,null,null,null,null,null,null,1,null,null,"特定非営利活動とは、「不特定かつ多数の者の利益の増進に寄与することを目的とするもの」である。"]
[]
[null,null,null,null,null,null,null,null,null,null,null,null,null,null,null,null,null,null,null,null,null,null,null,null,null,null,null,null,null,null,null,null,2,null,null,"法人の目的とは、異なる事業は、廃止すべきである。"]
[]
[null,null,null,null,null,null,null,null,null,null,null,null,null,null,null,null,null,null,null,null,null,null,null,null,null,null,null,null,null,null,null,null,3,null,null,"定款に規定した実施事業は、変更・廃止ができない。"]
[]
[null,null,null,null,null,null,null,null,null,null,null,null,null,null,null,null,null,null,null,null,null,null,null,null,null,null,null,null,null,null,null,null,4,null,null,"法人税が課税される事業は、「その他の事業」のみである。"]
[]
[null,null,null,null,null,null,null,null,null,null,null,null,null,null,null,null,null,null,null,null,null,null,null,null,null,null,null,null,null,null,null,null,5,null,null,"特定非営利活動に付随するその目的に沿った事業であっても、収益事業は、特定非営利活動ではない。"]
[]
[null,null,null,null,null,null,null,null,null,null,null,null,null,null,null,null,null,null,null,null,null,null,null,null,null,null,null,null,null,null,null,null,6,null,null,"二種類以上の異なる事業を実施する場合、その活動成果目的を同一としなければ、法人の目的と整合性がない。"]
[]
[null,null,null,null,null,null,null,null,null,null,null,null,null,null,null,null,null,null,null,null,null,null,null,null,null,null,null,null,null,null,null,null,7,null,null,"特定非営利活動とは、「ＮＰＯ法第二条別表に掲げる分野に該当する活動」をいう。"]
[]
[null,null,null,null,null,null,null,null,null,null,null,null,null,null,null,null,null,null,null,null,null,null,null,null,null,null,null,null,null,null,null,null,8,null,null,"事業実施成果（アウトプット）と活動目的成果（アウトカム）は、同じである。"]
[]
[null,null,null,null,null,null,null,null,null,null,null,null,null,null,null,null,null,null,null,null,null,null,null,null,null,null,null,null,null,null,null,null,9,null,null,"会員限定である会員間相互扶助のための福利厚生、共済等は、「その他の事業」である。"]
[]
[null,null,null,null,null,null,null,null,null,null,null,null,null,null,null,null,null,null,null,null,null,null,null,null,null,null,null,null,null,null,null,null,10,null,null,"専門知識がなくても実施できる事業はある。"]
[]
[null,null,null,null,null,null,null,null,null,null,null,null,null,null,null,null,null,null,null,null,null,null,null,null,null,null,null,null,null,null,null,null,11,null,null,"「対価を得て行う事業」や「収益（利益）が生じる事業」を「その他の事業」としている。"]
[]
[null,null,null,null,null,null,null,null,null,null,null,null,null,null,null,null,null,null,null,null,null,null,null,null,null,null,null,null,null,null,null,null,12,null,null,"法人目的達成の為に実施した事業の活動成果（インパクト）が重要な法人評価項目である。"]
[]
[null,null,null,null,null,null,null,null,null,null,null,null,null,null,null,null,null,null,null,null,null,null,null,null,null,null,null,null,null,null,null,null,13,null,null,"特定非営利活動であれば、課税されない。"]
[]
[null,null,null,null,null,null,null,null,null,null,null,null,null,null,null,null,null,null,null,null,null,null,null,null,null,null,null,null,null,null,null,null,14,null,null,"特定非営利活動法人は、特定非営利活動を行うことを主たる目的としなければならない。"]
[]
[null,null,null,null,null,null,null,null,null,null,null,null,null,null,null,null,null,null,null,null,null,null,null,null,null,null,null,null,null,null,null,null,15,null,null,"事業実施回数、集客数、講座開催回数は、法人の社会的存続価値の評価指標となる。"]
[]
[null,null,null,null,null,null,null,null,null,null,null,null,null,null,null,null,null,null,null,null,null,null,null,null,null,null,null,null,null,null,null,null,16,null,null,"「その他の事業」とは、「不特定かつ多数の者の利益の増進に寄与することを目的とするもの」ではない事業である。"]
[]
[null,null,null,null,null,null,null,null,null,null,null,null,null,null,null,null,null,null,null,null,null,null,null,null,null,null,null,null,null,null,null,null,17,null,null,"社会貢献事業であれば、法人の目的との整合性を問わない。"]
[null,"自己評価　３．事業組立　　　　　　　　　　最高点（５）"]
[null,null,null,null,null,null,null,null,null,null,null,null,null,null,null,null,null,null,null,null,null,null,null,null,null,null,null,null,null,null,null,null,18,null,null,"委託事業があれば、収益が安定するので法人の収益事業は必要ない。"]
[null,null,null,null,null,null,5,null,null,null,null,4,null,null,null,null,3,null,null,null,null,2,null,null,null,null,1]
[null,null,null,null,null,null,null,null,null,null,null,null,null,null,null,null,null,null,null,null,null,null,null,null,null,null,null,null,null,null,null,null,19,null,null,"事業は、必ず陳腐化するので、弛まない見直しと改善・改革が必要である。"]
[]
[null,null,null,null,null,null,null,null,null,null,null,null,null,null,null,null,null,null,null,null,null,null,null,null,null,null,null,null,null,null,null,null,20,null,null,"「その他の事業」とは、法第二条別表に該当しない事業のこと。"]
[]
[null,"４．組織",null,null,null,null,null,null,null,null,null,null,null,null,null,null,null,null,null,null,null,null,null,null,null,null,null,null,null,null,null,null,null,null,"　共感する項目にチェックを入れてください。　記入【✓】"]
[null,null,null,null,null,null,null,null,null,null,null,null,null,null,null,null,null,null,null,null,null,null,null,null,null,null,null,null,null,null,null,null,1,null,null,"ＮＰＯ法人の顧客は、受益者と支援者の二者であり、スタッフは顧客ではない。"]
[null,"意思決定や強味を活かす仕組み等はありますか？　どのような組織として、在りたいと思うか？　"]
[null,null,null,null,null,null,null,null,null,null,null,null,null,null,null,null,null,null,null,null,null,null,null,null,null,null,null,null,null,null,null,null,2,null,null,"ＮＰＯ法人の共通使命は、自由で自律した市民セクターを構築することにある。"]
[]
[null,null,null,null,null,null,null,null,null,null,null,null,null,null,null,null,null,null,null,null,null,null,null,null,null,null,null,null,null,null,null,null,3,null,null,"組織は、専門家を育成し、登用しなければ、経営にいき詰まる。"]
[]
[null,null,null,null,null,null,null,null,null,null,null,null,null,null,null,null,null,null,null,null,null,null,null,null,null,null,null,null,null,null,null,null,4,null,null,"ロジックモデルからは、組織活動の成果指標を設定することはできない。"]
[]
[null,null,null,null,null,null,null,null,null,null,null,null,null,null,null,null,null,null,null,null,null,null,null,null,null,null,null,null,null,null,null,null,5,null,null,"組織に、規則ばかりで仕組みがなければ、行動に繋がらない。"]
[]
[null,null,null,null,null,null,null,null,null,null,null,null,null,null,null,null,null,null,null,null,null,null,null,null,null,null,null,null,null,null,null,null,6,null,null,"ＰＤＣＡサイクルは、計画前提で制御していくサイクルであり、数値目標がある。"]
[]
[null,null,null,null,null,null,null,null,null,null,null,null,null,null,null,null,null,null,null,null,null,null,null,null,null,null,null,null,null,null,null,null,7,null,null,"組織をマネジメントする方法は、意外と新しい考え方である。"]
[]
[null,null,null,null,null,null,null,null,null,null,null,null,null,null,null,null,null,null,null,null,null,null,null,null,null,null,null,null,null,null,null,null,8,null,null,"組織のミッションとビジョンは、直接事業計画に影響はない。"]
[]
[null,null,null,null,null,null,null,null,null,null,null,null,null,null,null,null,null,null,null,null,null,null,null,null,null,null,null,null,null,null,null,null,9,null,null,"組織活動の成果評価は、事業成果の数値目標より評価される。"]
[]
[null,null,null,null,null,null,null,null,null,null,null,null,null,null,null,null,null,null,null,null,null,null,null,null,null,null,null,null,null,null,null,null,10,null,null,"ＮＰＯ法人は、参加する会員に制限を設けなくて、参加と退会が自由な組織である。"]
[]
[null,null,null,null,null,null,null,null,null,null,null,null,null,null,null,null,null,null,null,null,null,null,null,null,null,null,null,null,null,null,null,null,11,null,null,"ＮＰＯ法人は、社会貢献への使命をもつが、地域コミュニティを構築する使命はない。"]
[]
[null,null,null,null,null,null,null,null,null,null,null,null,null,null,null,null,null,null,null,null,null,null,null,null,null,null,null,null,null,null,null,null,12,null,null,"ＮＰＯ法人の単独活動よりも、社会的役割をもち他と連携した活動が望ましい。"]
[]
[null,null,null,null,null,null,null,null,null,null,null,null,null,null,null,null,null,null,null,null,null,null,null,null,null,null,null,null,null,null,null,null,13,null,null,"組織マネジメントに、複数の人が従事すると混乱しゆすい。"]
[null,null,null,null,null,null,null,null,null,null,null,null,null,null,null,null,null,null,null,null,null,null,null,null,null,null,null,null,null,null,null,null,null,null,null,"トップマネジャーは、一人でよい。"]
[null,null,null,null,null,null,null,null,null,null,null,null,null,null,null,null,null,null,null,null,null,null,null,null,null,null,null,null,null,null,null,null,14,null,null,"組織は、個の力を何倍にも増幅する力がある。"]
[]
[null,null,null,null,null,null,null,null,null,null,null,null,null,null,null,null,null,null,null,null,null,null,null,null,null,null,null,null,null,null,null,null,15,null,null,"ロジックモデルは、事業計画に役立つが、戦略的な事業計画をたてプレゼンをするのには、役に立たない。"]
[]
[null,null,null,null,null,null,null,null,null,null,null,null,null,null,null,null,null,null,null,null,null,null,null,null,null,null,null,null,null,null,null,null,16,null,null,"組織の新しい事への改革は、PDCAサイクルでできる。"]
[]
[null,null,null,null,null,null,null,null,null,null,null,null,null,null,null,null,null,null,null,null,null,null,null,null,null,null,null,null,null,null,null,null,17,null,null,"社会貢献をする組織には、社会は、尊厳を与え、継続的存続を支援する。"]
[null,"自己評価　４．組織　　　　　　　　　　　　　最高点（５）"]
[null,null,null,null,null,null,null,null,null,null,null,null,null,null,null,null,null,null,null,null,null,null,null,null,null,null,null,null,null,null,null,null,18,null,null,"行政及びＮＰＯ法人は、「公平・平等」の考えより、個人へ直接支援やサポートをしない。"]
[null,null,null,null,null,null,5,null,null,null,null,4,null,null,null,null,3,null,null,null,null,2,null,null,null,null,1]
[null,null,null,null,null,null,null,null,null,null,null,null,null,null,null,null,null,null,null,null,null,null,null,null,null,null,null,null,null,null,null,null,19,null,null,"命令の縦組織ではなく、責任と分担のフラットな組織とする。"]
[]
[null,null,null,null,null,null,null,null,null,null,null,null,null,null,null,null,null,null,null,null,null,null,null,null,null,null,null,null,null,null,null,null,20,null,null,"ＮＰＯ法人に、組織マネジメントは、特に必要としない。"]
[]
[null,"５．組織組立",null,null,null,null,null,null,null,null,null,null,null,null,null,null,null,null,null,null,null,null,null,null,null,null,null,null,null,null,null,null,null,null,"　共感する項目にチェックを入れてください。　記入【✓】"]
[null,null,null,null,null,null,null,null,null,null,null,null,null,null,null,null,null,null,null,null,null,null,null,null,null,null,null,null,null,null,null,null,1,null,null,"ＮＰＯ法人の最高意思決定機関は、社員総会ではなく、理事会であってもよい。"]
[null,"総会の権能・理事会の権能　その他委員会等があれば記載してください。"]
[null,null,null,null,null,null,null,null,null,null,null,null,null,null,null,null,null,null,null,null,null,null,null,null,null,null,null,null,null,null,null,null,2,null,null,"ＮＰＯ法人の経営は、専門家育成及びその専門知識活用や、人材登用の仕組みまでを考えなくてもよい。"]
[]
[null,null,null,null,null,null,null,null,null,null,null,null,null,null,null,null,null,null,null,null,null,null,null,null,null,null,null,null,null,null,null,null,3,null,null,"代表理事と副理事及び常任理事、非常勤理事、専務理事などの理事役職の選任・解任・重任を理事長権限とした。"]
[]
[null,null,null,null,null,null,null,null,null,null,null,null,null,null,null,null,null,null,null,null,null,null,null,null,null,null,null,null,null,null,null,null,4,null,null,"ＮＰＯ法人の背景には、「ＮＰＯ法人に対する行政監督は、最小限に留めＮＰＯは、市民自らが監督し育てていくものだ」という考えがある。"]
[]
[null,null,null,null,null,null,null,null,null,null,null,null,null,null,null,null,null,null,null,null,null,null,null,null,null,null,null,null,null,null,null,null,5,null,null,"定款は、総会の権能と理事会の権能に重複や整合性に矛盾がないようにする。"]
[]
[null,null,null,null,null,null,null,null,null,null,null,null,null,null,null,null,null,null,null,null,null,null,null,null,null,null,null,null,null,null,null,null,6,null,null,"ＮＰＯ法人は、定款規定がすべてであり、会則やさまざまな細則規約の作成は、特に必要がない。"]
[]
[null,null,null,null,null,null,null,null,null,null,null,null,null,null,null,null,null,null,null,null,null,null,null,null,null,null,null,null,null,null,null,null,7,null,null,"委託事業で運営できれは、法人独自の収益事業は必要がない。"]
[]
[null,null,null,null,null,null,null,null,null,null,null,null,null,null,null,null,null,null,null,null,null,null,null,null,null,null,null,null,null,null,null,null,8,null,null,"組織の使命と活動目的は、明確に規定し、理事が共有すればよく、スタッフ及びすべての関係者が共有認知する必要はない。"]
[]
[null,null,null,null,null,null,null,null,null,null,null,null,null,null,null,null,null,null,null,null,null,null,null,null,null,null,null,null,null,null,null,null,9,null,null,"社員総会と理事会の議事録は、議事経過概要及び議決結果を簡潔に記載し、2名以上の議事録署名人が署名、押印しなければならない。"]
[]
[null,null,null,null,null,null,null,null,null,null,null,null,null,null,null,null,null,null,null,null,null,null,null,null,null,null,null,null,null,null,null,null,10,null,null,"会議の発言において、「私は、」ではなく「我々は、」と言わなければならない。"]
[]
[null,null,null,null,null,null,null,null,null,null,null,null,null,null,null,null,null,null,null,null,null,null,null,null,null,null,null,null,null,null,null,null,11,null,null,"理事の選任・解任・重任について、理事会で議決し、総会で承認とすることはできない。"]
[]
[null,null,null,null,null,null,null,null,null,null,null,null,null,null,null,null,null,null,null,null,null,null,null,null,null,null,null,null,null,null,null,null,12,null,null,"資源流通と資源獲得の工夫と仕組みがなければ、ＮＰＯ法人は経営ができない。"]
[]
[null,null,null,null,null,null,null,null,null,null,null,null,null,null,null,null,null,null,null,null,null,null,null,null,null,null,null,null,null,null,null,null,13,null,null,"ＮＰＯ法人は、役割をもって地域コミュニティを構築し、積極的に顧客からの情報収集と情報交換をすることは、法人の使命である。"]
[]
[null,null,null,null,null,null,null,null,null,null,null,null,null,null,null,null,null,null,null,null,null,null,null,null,null,null,null,null,null,null,null,null,14,null,null,"定款変更・解散・合併以外の事項を理事会の議決事項として定款に規定することができる。"]
[]
[null,null,null,null,null,null,null,null,null,null,null,null,null,null,null,null,null,null,null,null,null,null,null,null,null,null,null,null,null,null,null,null,15,null,null,"理事の選任・解任・重任について、社員総会の議決事項とするこしはできるが、選挙で選任することは、できない。"]
[]
[null,null,null,null,null,null,null,null,null,null,null,null,null,null,null,null,null,null,null,null,null,null,null,null,null,null,null,null,null,null,null,null,16,null,null,"「収益＞（費用＋法人管理費）」であるように事業を組み立てなければ、法人の継続的存続は望めない。"]
[]
[null,null,null,null,null,null,null,null,null,null,null,null,null,null,null,null,null,null,null,null,null,null,null,null,null,null,null,null,null,null,null,null,17,null,null,"各事業ごとに、事業部会をおき、理事会ではなく、理事と担当部会責任者で構成する総部会で議決することができる。"]
[null,"自己評価　５．組織組立　　　　　　　　　　最高点（５）"]
[null,null,null,null,null,null,null,null,null,null,null,null,null,null,null,null,null,null,null,null,null,null,null,null,null,null,null,null,null,null,null,null,18,null,null,"特定非営利活動法人は、社員総会と理事で構成する理事会をおかなければならない。"]
[null,null,null,null,null,null,5,null,null,null,null,4,null,null,null,null,3,null,null,null,null,2,null,null,null,null,1]
[null,null,null,null,null,null,null,null,null,null,null,null,null,null,null,null,null,null,null,null,null,null,null,null,null,null,null,null,null,null,null,null,19,null,null,"マネジメントは、最高管理責任者が実施する組織経営の考え方である。"]
[]
[null,null,null,null,null,null,null,null,null,null,null,null,null,null,null,null,null,null,null,null,null,null,null,null,null,null,null,null,null,null,null,null,20,null,null,"特定非営利活動法人は、公器として、開かれた自由で自律した組織として、社会貢献活動を実施する。"]
[]
[null,"６．マネジメント",null,null,null,null,null,null,null,null,null,null,null,null,null,null,null,null,null,null,null,null,null,null,null,null,null,null,null,null,null,null,null,null,"　共感する項目にチェックを入れてください。　記入【✓】"]
[null,null,null,null,null,null,null,null,null,null,null,null,null,null,null,null,null,null,null,null,null,null,null,null,null,null,null,null,null,null,null,null,1,null,null,"マネジメントは考え方であり、基本と原則がある。"]
[null,"法人の経営に必要な仕組みを記載してください。"]
[null,null,null,null,null,null,null,null,null,null,null,null,null,null,null,null,null,null,null,null,null,null,null,null,null,null,null,null,null,null,null,null,2,null,null,"マネジメントサイクルを回転させ、組織マネジメントをしても、戦略的事業計画や新しいステップへの改革は難しい。"]
[]
[null,null,null,null,null,null,null,null,null,null,null,null,null,null,null,null,null,null,null,null,null,null,null,null,null,null,null,null,null,null,null,null,3,null,null,"マネジメントにより方向付けされ到達点であるビジョンが明確であれば、現場での意思決定は早まる。"]
[]
[null,null,null,null,null,null,null,null,null,null,null,null,null,null,null,null,null,null,null,null,null,null,null,null,null,null,null,null,null,null,null,null,4,null,null,"「マネジメント＝管理」ではない。マネジメントの真の目的は、「高い目標を目指し組織を発展させること」である。"]
[]
[null,null,null,null,null,null,null,null,null,null,null,null,null,null,null,null,null,null,null,null,null,null,null,null,null,null,null,null,null,null,null,null,5,null,null,"すべてのものは、陳腐化する。したがって、自ら改革・改新する努力と全体を鳥瞰する目をもってしても最適に改善できない。"]
[]
[null,null,null,null,null,null,null,null,null,null,null,null,null,null,null,null,null,null,null,null,null,null,null,null,null,null,null,null,null,null,null,null,6,null,null,"小規模なＮＰＯ法人に、マネジメントは、特に必要としない。"]
[]
[null,null,null,null,null,null,null,null,null,null,null,null,null,null,null,null,null,null,null,null,null,null,null,null,null,null,null,null,null,null,null,null,7,null,null,"マネジメントは「組織の内部において、成果をあげるためのもの」である。"]
[]
[null,null,null,null,null,null,null,null,null,null,null,null,null,null,null,null,null,null,null,null,null,null,null,null,null,null,null,null,null,null,null,null,8,null,null,"ミッションは、責任をもて果たす任務であり、ビジョンは、目的とする社会の状態である将来像である。"]
[]
[null,null,null,null,null,null,null,null,null,null,null,null,null,null,null,null,null,null,null,null,null,null,null,null,null,null,null,null,null,null,null,null,9,null,null,"人のマネジメントは、人の弱みを無くさせることであり、その為の具体的な仕組みがなければならない。"]
[]
[null,null,null,null,null,null,null,null,null,null,null,null,null,null,null,null,null,null,null,null,null,null,null,null,null,null,null,null,null,null,null,null,10,null,null,"法人目的（ビジョン）は、理想であり、現状とギャプがある。したがって、活動成果において、ギャプがあるのは必然である。"]
[]
[null,null,null,null,null,null,null,null,null,null,null,null,null,null,null,null,null,null,null,null,null,null,null,null,null,null,null,null,null,null,null,null,11,null,null,"トップマネジメントは、チームによる仕事である。"]
[null,null,null,null,null,null,null,null,null,null,null,null,null,null,null,null,null,null,null,null,null,null,null,null,null,null,null,null,null,null,null,null,null,null,null,"権限や権威ではない。"]
[null,null,null,null,null,null,null,null,null,null,null,null,null,null,null,null,null,null,null,null,null,null,null,null,null,null,null,null,null,null,null,null,12,null,null,"マネジメントは、ＮＰＯ法人のバックボーン（拠り所）にはならない。"]
[]
[null,null,null,null,null,null,null,null,null,null,null,null,null,null,null,null,null,null,null,null,null,null,null,null,null,null,null,null,null,null,null,null,13,null,null,"「みんなは、個の為に。個はみんなの為に」は、マネジメントと齟齬はない。利他優先であり、組織は貢献する個に報いる。"]
[]
[null,null,null,null,null,null,null,null,null,null,null,null,null,null,null,null,null,null,null,null,null,null,null,null,null,null,null,null,null,null,null,null,14,null,null,"マネジメントには、「創造的機能（人のマネジメント）」と「管理的機能（物のマネジメント）」の二種類ある。"]
[]
[null,null,null,null,null,null,null,null,null,null,null,null,null,null,null,null,null,null,null,null,null,null,null,null,null,null,null,null,null,null,null,null,15,null,null,"マネージャーの役割は、オーケストラの指揮者に該当し成果に責任を持つ者である。「役割と責任の組織」である。"]
[]
[null,null,null,null,null,null,null,null,null,null,null,null,null,null,null,null,null,null,null,null,null,null,null,null,null,null,null,null,null,null,null,null,16,null,null,"非営利活動（ＮＰＯ法人）と営利活動（企業）とのマネジメントは違いがある。"]
[]
[null,"自己評価　６．マネジメント　　　　　　　　　　最高点（５）",null,null,null,null,null,null,null,null,null,null,null,null,null,null,null,null,null,null,null,null,null,null,null,null,null,null,null,null,null,null,17,null,null,"トップマネジメントは、方向付けを行い、ビジョンを明らかにし、基準を設定する機関である。"]
[]
[null,null,null,null,null,null,null,null,null,null,null,null,null,null,null,null,null,null,null,null,null,null,null,null,null,null,null,null,null,null,null,null,18,null,null,"事業の成功が目的であり、事業成果が法人評価の指標となる。"]
[null,null,null,null,null,null,5,null,null,null,null,4,null,null,null,null,3,null,null,null,null,2,null,null,null,null,1]
[null,null,null,null,null,null,null,null,null,null,null,null,null,null,null,null,null,null,null,null,null,null,null,null,null,null,null,null,null,null,null,null,19,null,null,"社会貢献をする組織に社会は、「尊厳」を与えるが、「組織の継続的存続」を支援しない。"]
[]
[null,null,null,null,null,null,null,null,null,null,null,null,null,null,null,null,null,null,null,null,null,null,null,null,null,null,null,null,null,null,null,null,20,null,null,"「我々の使命は何か？」の問が、すべてのスタートである。"]
[]
[null,"７．ロジックモデル",null,null,null,null,null,null,null,null,null,null,null,null,null,null,null,null,null,null,null,null,null,null,null,null,null,null,null,null,null,null,null,null,"　共感する項目にチェックを入れてください。　記入【✓】"]
[null,null,null,null,null,null,null,null,null,null,null,null,null,null,null,null,null,null,null,null,null,null,null,null,null,null,null,null,null,null,null,null,1,null,null,"ロジックモデルから論理的な事業計画は作成できないが、説得力があるプレゼンができる。"]
[null,"事業指標・法人目的達成指標を記載してください。"]
[null,"「インプット」「アウトプット」「アウトカム」「インパクト」について記載してください。",null,null,null,null,null,null,null,null,null,null,null,null,null,null,null,null,null,null,null,null,null,null,null,null,null,null,null,null,null,null,2,null,null,"ロジックモデルを使用して、戦略的事業計画を作成すれば、事業効率を上げ、確実な成果を得ることができる。"]
[]
[null,null,null,null,null,null,null,null,null,null,null,null,null,null,null,null,null,null,null,null,null,null,null,null,null,null,null,null,null,null,null,null,3,null,null,"社会的インパクトは、法人活動のアウトカムが影響を与えた社会の状態であり、これにより社会的存続価値を評価される。"]
[]
[null,null,null,null,null,null,null,null,null,null,null,null,null,null,null,null,null,null,null,null,null,null,null,null,null,null,null,null,null,null,null,null,4,null,null,"活動の欄に事業達成に必要な作業（タスク）に細分し記載する。作業の細分に漏れがあっても支障はない。"]
[]
[null,null,null,null,null,null,null,null,null,null,null,null,null,null,null,null,null,null,null,null,null,null,null,null,null,null,null,null,null,null,null,null,5,null,null,"アウトプットの数値目標管理が過ぎると、ノルマが課せられ、本来の目的を見失ってしまい自死に至る。"]
[]
[null,null,null,null,null,null,null,null,null,null,null,null,null,null,null,null,null,null,null,null,null,null,null,null,null,null,null,null,null,null,null,null,6,null,null,"ロジックモデルで公開した目的成果指標（アウトカム）は、法人の社会貢献活動の確約であり責任である。"]
[]
[null,null,null,null,null,null,null,null,null,null,null,null,null,null,null,null,null,null,null,null,null,null,null,null,null,null,null,null,null,null,null,null,7,null,null,"ロジックモデルを使用した、法人活動のプレゼン（説明）は、説得力があり理解が速く論理的である。"]
[]
[null,null,null,null,null,null,null,null,null,null,null,null,null,null,null,null,null,null,null,null,null,null,null,null,null,null,null,null,null,null,null,null,8,null,null,"ロジックモデルの右端に記載するビジョンは、理想とする社会の状態であり、得るものは感動とみんなの幸せである。"]
[]
[null,null,null,null,null,null,null,null,null,null,null,null,null,null,null,null,null,null,null,null,null,null,null,null,null,null,null,null,null,null,null,null,9,null,null,"集客数・開催数・生産量などは、アウトプット管理の指標であり、数値で表す指標になりにくい。"]
[]
[null,null,null,null,null,null,null,null,null,null,null,null,null,null,null,null,null,null,null,null,null,null,null,null,null,null,null,null,null,null,null,null,10,null,null,"ロジックモデルの左端に記載するのは、事業計画での事業であり、定款で規定した事業ということではない。"]
[]
[null,null,null,null,null,null,null,null,null,null,null,null,null,null,null,null,null,null,null,null,null,null,null,null,null,null,null,null,null,null,null,null,11,null,null,"ロジックモデルからは、年度事業計画での中期・長期の成果指標を作成することはできない。"]
[]
[null,null,null,null,null,null,null,null,null,null,null,null,null,null,null,null,null,null,null,null,null,null,null,null,null,null,null,null,null,null,null,null,12,null,null,"短期・中期・長期で計画されたアウトカムは、事業実施後の社会状態を表す。数値指標として表すのは困難な評価指標である。"]
[]
[null,null,null,null,null,null,null,null,null,null,null,null,null,null,null,null,null,null,null,null,null,null,null,null,null,null,null,null,null,null,null,null,13,null,null,"ロジックモデルのアウトカム成果指標は、ビジョン達成を目指すが、やる気と勇気を引き出す行動の指標とはならない。"]
[]
[null,null,null,null,null,null,null,null,null,null,null,null,null,null,null,null,null,null,null,null,null,null,null,null,null,null,null,null,null,null,null,null,14,null,null,"ロジックモデル作成では、法人の活動全体を鳥瞰するツールにはならない。"]
[]
[null,null,null,null,null,null,null,null,null,null,null,null,null,null,null,null,null,null,null,null,null,null,null,null,null,null,null,null,null,null,null,null,15,null,null,"ロジックモデルは、短期・中期・長期での予測する社会状態の過程を表すフローチャートである。"]
[]
[null,null,null,null,null,null,null,null,null,null,null,null,null,null,null,null,null,null,null,null,null,null,null,null,null,null,null,null,null,null,null,null,16,null,null,"PDCAサイクルは、数値目標から実施度や生産量を評価する。次のステップアップや改革にも適する。"]
[]
[null,null,null,null,null,null,null,null,null,null,null,null,null,null,null,null,null,null,null,null,null,null,null,null,null,null,null,null,null,null,null,null,17,null,null,"ロジックモデルからは、各事業の関連性が明確になり、無駄がない資源投資が計画できる。"]
[null,"自己評価　７．ロジックモデル　　　　　　　　最高点（５）"]
[null,null,null,null,null,null,null,null,null,null,null,null,null,null,null,null,null,null,null,null,null,null,null,null,null,null,null,null,null,null,null,null,18,null,null,"SIBは、法人活動のインパクト評価より投資されるが、現状では、その評価方法が難しい。"]
[null,null,null,null,null,null,5,null,null,null,null,4,null,null,null,null,3,null,null,null,null,2,null,null,null,null,1]
[null,null,null,null,null,null,null,null,null,null,null,null,null,null,null,null,null,null,null,null,null,null,null,null,null,null,null,null,null,null,null,null,19,null,null,"ＮＰＯ法の「その他の事業」は、ビジョン達成へ貢献する事業ではないので、ロジックモデルに記載する必要がない。"]
[]
[null,null,null,null,null,null,null,null,null,null,null,null,null,null,null,null,null,null,null,null,null,null,null,null,null,null,null,null,null,null,null,null,20,null,null,"各事業目的とアウトカム指標から、成果目標が明確になる。"]
[]
[null,"８．ビジネスモデル",null,null,null,null,null,null,null,null,null,null,null,null,null,null,null,null,null,null,null,null,null,null,null,null,null,null,null,null,null,null,null,null,"　共感する項目にチェックを入れてください。　記入【✓】"]
[null,null,null,null,null,null,null,null,null,null,null,null,null,null,null,null,null,null,null,null,null,null,null,null,null,null,null,null,null,null,null,null,1,null,null,"委託事業が実施事業の大半である場合、法人独自の収益事業は、委託事業と協働できる事業であっても法人の負担増となる。"]
[null,"資源流通の工夫、顧客及び支援者やスタッフについて記載する。"]
[null,null,null,null,null,null,null,null,null,null,null,null,null,null,null,null,null,null,null,null,null,null,null,null,null,null,null,null,null,null,null,null,2,null,null,"内部環境(人・物・金・情報)と外部環境(行政・経済・人口・就労形態・技術などの動向)を分析しニーズの変化を確認することまではしない。"]
[]
[null,null,null,null,null,null,null,null,null,null,null,null,null,null,null,null,null,null,null,null,null,null,null,null,null,null,null,null,null,null,null,null,3,null,null,"受益者から直接費用を得ないＮＰＯ活動は、委託・補助金・寄付と会費により運営され、資源獲得の工夫をする必要がない。"]
[]
[null,null,null,null,null,null,null,null,null,null,null,null,null,null,null,null,null,null,null,null,null,null,null,null,null,null,null,null,null,null,null,null,4,null,null,"ビジネスモデルで構築するＮＰＯの共通活動目的は、「互助の地域コミュニティ構築」と「みんなの幸せ」である。"]
[]
[null,null,null,null,null,null,null,null,null,null,null,null,null,null,null,null,null,null,null,null,null,null,null,null,null,null,null,null,null,null,null,null,5,null,null,"ビジネスモデルは、資源流通と資源獲得の工夫をして、支援者・受益者・企業・ＮＰＯの相互に利益がある互助の仕組みを考えることだ。"]
[]
[null,null,null,null,null,null,null,null,null,null,null,null,null,null,null,null,null,null,null,null,null,null,null,null,null,null,null,null,null,null,null,null,6,null,null,"個の尊厳を守り、その強みを活かす仕組みを考え実施するのは、ＮＰＯ法人では、困難である。"]
[]
[null,null,null,null,null,null,null,null,null,null,null,null,null,null,null,null,null,null,null,null,null,null,null,null,null,null,null,null,null,null,null,null,7,null,null,"ビジネスモデルからでは、顧客のニーズやまだ潜在化しているニーズを発見し、その要求に答えることはできない。"]
[]
[null,null,null,null,null,null,null,null,null,null,null,null,null,null,null,null,null,null,null,null,null,null,null,null,null,null,null,null,null,null,null,null,8,null,null,"マネジメントサイクルを回転させ、ビジネスモデルを再考・改善・改革することは、活動の陳腐化を改善し改革する。"]
[]
[null,null,null,null,null,null,null,null,null,null,null,null,null,null,null,null,null,null,null,null,null,null,null,null,null,null,null,null,null,null,null,null,9,null,null,"特定非営利活動法人は、非営利・公益法人なので、「収益＝費用」でなければならない。"]
[]
[null,null,null,null,null,null,null,null,null,null,null,null,null,null,null,null,null,null,null,null,null,null,null,null,null,null,null,null,null,null,null,null,10,null,null,"中間支援センターでないＮＰＯ法人は、他団体の動向分析や情報ネットワーク構築や地域コミュニティ構築までを考える必要がない。"]
[]
[null,null,null,null,null,null,null,null,null,null,null,null,null,null,null,null,null,null,null,null,null,null,null,null,null,null,null,null,null,null,null,null,11,null,null,"受益者は、「してもらう」ばかりでなく、「感謝や無形の報酬」をリターンする相互流通コミュニケーションがなければならない。"]
[]
[null,null,null,null,null,null,null,null,null,null,null,null,null,null,null,null,null,null,null,null,null,null,null,null,null,null,null,null,null,null,null,null,12,null,null,"法人単独ではなく、企業や支援者及び寄付者を巻き込み活発な情報交換ができるビジネスモデルとする。"]
[]
[null,null,null,null,null,null,null,null,null,null,null,null,null,null,null,null,null,null,null,null,null,null,null,null,null,null,null,null,null,null,null,null,13,null,null,"ビジネスモデルに、専門家育成・登用・研修の仕組みを組み込む必要がない。"]
[]
[null,null,null,null,null,null,null,null,null,null,null,null,null,null,null,null,null,null,null,null,null,null,null,null,null,null,null,null,null,null,null,null,14,null,null,"支援者・法人・寄付者・受益者・企業の相互関係に、双方リターンがある仕組みがなければ、資源流通経済活動にはならない。"]
[]
[null,null,null,null,null,null,null,null,null,null,null,null,null,null,null,null,null,null,null,null,null,null,null,null,null,null,null,null,null,null,null,null,15,null,null,"フルコストは、【事業費用＋法人管理費】であり、収益＝フルコストでなければならない。"]
[]
[null,null,null,null,null,null,null,null,null,null,null,null,null,null,null,null,null,null,null,null,null,null,null,null,null,null,null,null,null,null,null,null,16,null,null,"ビジネスモデルの根底には、マネジメントの基本と原則があり、誠意と道徳がなければならない。"]
[]
[null,null,null,null,null,null,null,null,null,null,null,null,null,null,null,null,null,null,null,null,null,null,null,null,null,null,null,null,null,null,null,null,17,null,null,"事業を細分した作業(タスク)の「収益」と「費用」を計算・集計して、それぞれの事業において、「収益＞費用」を確認する。"]
[null,"自己評価　８．ビジネスモデル　　　　　　　　最高点（５）"]
[null,null,null,null,null,null,null,null,null,null,null,null,null,null,null,null,null,null,null,null,null,null,null,null,null,null,null,null,null,null,null,null,18,null,null,"各事業を細分化した作業から、項目・収益・費用・単価・数量・金額を計算・集計して、積上げ積算である正確な予算書が作成できる。"]
[null,null,null,null,null,null,5,null,null,null,null,4,null,null,null,null,3,null,null,null,null,2,null,null,null,null,1]
[null,null,null,null,null,null,null,null,null,null,null,null,null,null,null,null,null,null,null,null,null,null,null,null,null,null,null,null,null,null,null,null,19,null,null,"法人の顧客は、「第一に受益者」「第二に支援者・寄付者」「第三に法人内部関係者(スタッフ)」があり、それぞれの顧客満足度を評価する。"]
[]
[null,null,null,null,null,null,null,null,null,null,null,null,null,null,null,null,null,null,null,null,null,null,null,null,null,null,null,null,null,null,null,null,20,null,null,"ビジネスモデル構築に専門知識は、必要がない。"]
[]
[null,"９．監査・情報収集　",null,null,null,null,null,null,null,null,null,null,null,null,null,null,null,null,null,null,null,null,null,null,null,null,null,null,null,null,null,null,null,null,"　共感する項目にチェックを入れてください。　記入【✓】"]
[null,null,null,null,null,null,null,null,null,null,null,null,null,null,null,null,null,null,null,null,null,null,null,null,null,null,null,null,null,null,null,null,1,null,null,"メールにはシグネチャを、ＨＰには発信元案内頁を掲載し、PDFやワードなどの発信物にも日付と発信元・連絡先を掲載すべきだ。"]
[null,"監査方針等について記載してください。"]
[null,"どのようにして、情報収集を実行しているかを記載してください。",null,null,null,null,null,null,null,null,null,null,null,null,null,null,null,null,null,null,null,null,null,null,null,null,null,null,null,null,null,null,2,null,null,"監事は、不正を発見した時は、総会を招集して報告することができる。又、理事会を招集して意見を述べることができる。"]
[]
[null,null,null,null,null,null,null,null,null,null,null,null,null,null,null,null,null,null,null,null,null,null,null,null,null,null,null,null,null,null,null,null,3,null,null,"インターネット利用には、ルールとマナー(ネチケット)があり、法律で禁止されている事項もある。"]
[]
[null,null,null,null,null,null,null,null,null,null,null,null,null,null,null,null,null,null,null,null,null,null,null,null,null,null,null,null,null,null,null,null,4,null,null,"内部情報収集(スタッフの満足度・就労環境)や外部情報収集(顧客の満足度・状態変化・アンケート)などまで収集する必要はない。"]
[]
[null,null,null,null,null,null,null,null,null,null,null,null,null,null,null,null,null,null,null,null,null,null,null,null,null,null,null,null,null,null,null,null,5,null,null,"監事は、ＮＰＯ活動に詳しい人とＮＰＯ会計に詳しい人の二名以上を社員総会で選任するのがよい。"]
[]
[null,null,null,null,null,null,null,null,null,null,null,null,null,null,null,null,null,null,null,null,null,null,null,null,null,null,null,null,null,null,null,null,6,null,null,"法人のメールやＨＰは、法人独自のサーバーを使うより、SNSやグーグルのサービスやアドレスを使用した方がセキュリティでも安全だ。"]
[]
[null,null,null,null,null,null,null,null,null,null,null,null,null,null,null,null,null,null,null,null,null,null,null,null,null,null,null,null,null,null,null,null,7,null,null,"監査は、会計帳簿・預金通帳の残高に誤りがなく、適正な会計であることを総会で報告することである。"]
[]
[null,null,null,null,null,null,null,null,null,null,null,null,null,null,null,null,null,null,null,null,null,null,null,null,null,null,null,null,null,null,null,null,8,null,null,"個人情報及び情報収集や広報・HPについて、専門知識がある理事を情報担当責任者として選任する必要がある。"]
[]
[null,null,null,null,null,null,null,null,null,null,null,null,null,null,null,null,null,null,null,null,null,null,null,null,null,null,null,null,null,null,null,null,9,null,null,"監査項目には、事業活動のアウトプット指標による評価を入るが、アウトカム指標による評価は入れる必要がなく、監査も必要がない。"]
[]
[null,null,null,null,null,null,null,null,null,null,null,null,null,null,null,null,null,null,null,null,null,null,null,null,null,null,null,null,null,null,null,null,10,null,null,"法人HPには、所轄庁へ報告義務がある情報のみを掲載すればよく、その他の監査情報や内部・外部評価情報は、掲載しない。"]
[]
[null,null,null,null,null,null,null,null,null,null,null,null,null,null,null,null,null,null,null,null,null,null,null,null,null,null,null,null,null,null,null,null,11,null,null,"監事は、誰でもなることができ、ＮＰＯ法やＮＰＯ会計基準を知らなくても役目を果たすことができる。"]
[]
[null,null,null,null,null,null,null,null,null,null,null,null,null,null,null,null,null,null,null,null,null,null,null,null,null,null,null,null,null,null,null,null,12,null,null,"監事は、総会・理事会議事録及び会計証憑(内部外部証拠書類)や法人経営や定款の内容と実務の整合性など、監査項目は多い。"]
[]
[null,null,null,null,null,null,null,null,null,null,null,null,null,null,null,null,null,null,null,null,null,null,null,null,null,null,null,null,null,null,null,null,13,null,null,"公開記事には、著作権や肖像権及びインターネットセキュリティに十分な注意と配慮が必要である。"]
[]
[null,null,null,null,null,null,null,null,null,null,null,null,null,null,null,null,null,null,null,null,null,null,null,null,null,null,null,null,null,null,null,null,14,null,null,"財務諸表の注記にある「事業別損益の状況」の表は、重要な監査項目ではない。"]
[]
[null,null,null,null,null,null,null,null,null,null,null,null,null,null,null,null,null,null,null,null,null,null,null,null,null,null,null,null,null,null,null,null,15,null,null,"内部(スタッフや役員)や外部(受益者・支援者・寄付者・協力企業)から直接面接や取材及びアンケート収集までしての情報収集は必要ない。"]
[]
[null,null,null,null,null,null,null,null,null,null,null,null,null,null,null,null,null,null,null,null,null,null,null,null,null,null,null,null,null,null,null,null,16,null,null,"財務諸表など会計書類の整合性を監査することで、すべての会計不備を発見できるということではない。"]
[]
[null,null,null,null,null,null,null,null,null,null,null,null,null,null,null,null,null,null,null,null,null,null,null,null,null,null,null,null,null,null,null,null,17,null,null,"監事は、理事会に出席して意見を言うことはできなく、議決権も代表権もない。"]
[null,"自己評価　９．監査・情報収集　　　　　　　最高点（５）"]
[null,null,null,null,null,null,null,null,null,null,null,null,null,null,null,null,null,null,null,null,null,null,null,null,null,null,null,null,null,null,null,null,18,null,null,"個人情報は掲載しない。本人の承諾を得ても個人の紹介記事をHPに掲載することはできない。"]
[null,null,null,null,null,null,5,null,null,null,null,4,null,null,null,null,3,null,null,null,null,2,null,null,null,null,1]
[null,null,null,null,null,null,null,null,null,null,null,null,null,null,null,null,null,null,null,null,null,null,null,null,null,null,null,null,null,null,null,null,19,null,null,"クラウドファンディングの仕組みにより、法人活動の説明を行い寄付者や支援者とのコミュニケーションを図ることは重要である。"]
[]
[null,null,null,null,null,null,null,null,null,null,null,null,null,null,null,null,null,null,null,null,null,null,null,null,null,null,null,null,null,null,null,null,20,null,null,"監査は、会計と事業監査リストを作成して、社員総会で報告するべきだ。"]
[]
[null,"１０．改善・改革",null,null,null,null,null,null,null,null,null,null,null,null,null,null,null,null,null,null,null,null,null,null,null,null,null,null,null,null,null,null,null,null,"　共感する項目にチェックを入れてください。　記入【✓】"]
[null,null,null,null,null,null,null,null,null,null,null,null,null,null,null,null,null,null,null,null,null,null,null,null,null,null,null,null,null,null,null,null,1,null,null,"改善・改革とコンプライアンス（法令遵守）は関係がない。"]
[null,"顧客のニーズについて提案。改善・改革の提案"]
[null,null,null,null,null,null,null,null,null,null,null,null,null,null,null,null,null,null,null,null,null,null,null,null,null,null,null,null,null,null,null,null,2,null,null,"今、起きている事象と未来は関係がなく、未来はおとづれる。"]
[]
[null,null,null,null,null,null,null,null,null,null,null,null,null,null,null,null,null,null,null,null,null,null,null,null,null,null,null,null,null,null,null,null,3,null,null,"事業廃棄と新規事業開拓は、トップマネジメントの決断と責任による。"]
[]
[null,null,null,null,null,null,null,null,null,null,null,null,null,null,null,null,null,null,null,null,null,null,null,null,null,null,null,null,null,null,null,null,4,null,null,"過去の失敗は、改善改革には、なくてはならない経験値である。"]
[]
[null,null,null,null,null,null,null,null,null,null,null,null,null,null,null,null,null,null,null,null,null,null,null,null,null,null,null,null,null,null,null,null,5,null,null,"発明は、優れた人材により突然開発され、すでにある幾つかの組み合わせで新しいものが生まれるということはない。"]
[]
[null,null,null,null,null,null,null,null,null,null,null,null,null,null,null,null,null,null,null,null,null,null,null,null,null,null,null,null,null,null,null,null,6,null,null,"就労環境及び福祉厚生などの取り組みや内部環境の改善は、非営利のＮＰＯ法人では、特に必要としない。"]
[]
[null,null,null,null,null,null,null,null,null,null,null,null,null,null,null,null,null,null,null,null,null,null,null,null,null,null,null,null,null,null,null,null,7,null,null,"すべての事業成果評価が法人の目的達成に貢献しなくても、全体的に良く、活動が社会貢献であれば、改善の必要はない。"]
[]
[null,null,null,null,null,null,null,null,null,null,null,null,null,null,null,null,null,null,null,null,null,null,null,null,null,null,null,null,null,null,null,null,8,null,null,"改革は、思い切った廃棄の決断とリスクへの覚悟が必要だ。"]
[]
[null,null,null,null,null,null,null,null,null,null,null,null,null,null,null,null,null,null,null,null,null,null,null,null,null,null,null,null,null,null,null,null,9,null,null,"事業が成功・拡大していれば、法人目的達成の評価が得られなくても問題はない。"]
[]
[null,null,null,null,null,null,null,null,null,null,null,null,null,null,null,null,null,null,null,null,null,null,null,null,null,null,null,null,null,null,null,null,10,null,null,"PDCAサイクル指標である数値目標達成の管理では、法人の目的を見失う。"]
[]
[null,null,null,null,null,null,null,null,null,null,null,null,null,null,null,null,null,null,null,null,null,null,null,null,null,null,null,null,null,null,null,null,11,null,null,"改善と改革に「組織風土や文化」及び「誠意」や「道徳」などの精神活動は、関係がない。"]
[]
[null,null,null,null,null,null,null,null,null,null,null,null,null,null,null,null,null,null,null,null,null,null,null,null,null,null,null,null,null,null,null,null,12,null,null,"現状に満足することなく、自ら積極的に、新規改革の事業を考案し、実働に向けて研究・準備しなければならない。"]
[]
[null,null,null,null,null,null,null,null,null,null,null,null,null,null,null,null,null,null,null,null,null,null,null,null,null,null,null,null,null,null,null,null,13,null,null,"社会的インパクトは、内部情報からは、評価できない。これを改善するには、事業計画の大幅な見直しが必要だ。"]
[]
[null,null,null,null,null,null,null,null,null,null,null,null,null,null,null,null,null,null,null,null,null,null,null,null,null,null,null,null,null,null,null,null,14,null,null,"事業達成の指標から活動評価ができ、アウトプットの指標からは、活動評価はできない。"]
[]
[null,null,null,null,null,null,null,null,null,null,null,null,null,null,null,null,null,null,null,null,null,null,null,null,null,null,null,null,null,null,null,null,15,null,null,"定款記載の「その他の事業」について、継続して資源を投資すべきか、廃棄すべきかを検討する。"]
[]
[null,null,null,null,null,null,null,null,null,null,null,null,null,null,null,null,null,null,null,null,null,null,null,null,null,null,null,null,null,null,null,null,16,null,null,"成功した事業であっても、すでに顧客のニーズが変化して、陳腐化した事業となっていることがある。"]
[]
[null,null,null,null,null,null,null,null,null,null,null,null,null,null,null,null,null,null,null,null,null,null,null,null,null,null,null,null,null,null,null,null,17,null,null,"予め設定した管理指標がなくても、何を改善すべきかは、その結果から改善すべき点が明確になる。"]
[null,"自己評価　１０．改善・改革　　　　　　　　　　　最高点（５）"]
[null,null,null,null,null,null,null,null,null,null,null,null,null,null,null,null,null,null,null,null,null,null,null,null,null,null,null,null,null,null,null,null,18,null,null,"PDCAサイクル管理は、組織経営になくてはならない唯一の管理手法だ。"]
[null,null,null,null,null,null,5,null,null,null,null,4,null,null,null,null,3,null,null,null,null,2,null,null,null,null,1]
[null,null,null,null,null,null,null,null,null,null,null,null,null,null,null,null,null,null,null,null,null,null,null,null,null,null,null,null,null,null,null,null,19,null,null,"組織風土や地域文化は、法人活動に影響力が大きい。常に、これに関心をもち組織改善・改革に活かさなければならない。"]
[]
[null,null,null,null,null,null,null,null,null,null,null,null,null,null,null,null,null,null,null,null,null,null,null,null,null,null,null,null,null,null,null,null,20,null,null,"法人目的(ビジョン)に貢献しない事業は、多少の収益があっても廃棄すべきだ。"]
[]
[null,"１１．内部評価・外部評価",null,null,null,null,null,null,null,null,null,null,null,null,null,null,null,null,null,null,null,null,null,null,null,null,null,null,null,null,null,null,null,null,"　共感する項目にチェックを入れてください。　記入【✓】"]
[null,null,null,null,null,null,null,null,null,null,null,null,null,null,null,null,null,null,null,null,null,null,null,null,null,null,null,null,null,null,null,null,1,null,null,"インプット・アウトプット・アウトカム更にインパクトを評価することで、事業実施のプロセスを管理できる。"]
[null,"事業管理指標や活動成果指標について記載する。"]
[null,"内部環境や外部環境の変化への対応",null,null,null,null,null,null,null,null,null,null,null,null,null,null,null,null,null,null,null,null,null,null,null,null,null,null,null,null,null,null,2,null,null,"内部評価情報より、顧客の満足度や潜在的な顧客の存在がわかる。"]
[]
[null,null,null,null,null,null,null,null,null,null,null,null,null,null,null,null,null,null,null,null,null,null,null,null,null,null,null,null,null,null,null,null,3,null,null,"法人事業活動において、担当者の自己管理は、ロジックモデルで設定した管理指標からは、評価できない。"]
[]
[null,null,null,null,null,null,null,null,null,null,null,null,null,null,null,null,null,null,null,null,null,null,null,null,null,null,null,null,null,null,null,null,4,null,null,"予め活動評価目標と事業管理目標を定めておき、それに基づいて、法人活動(ソーシャルインパクト)を評価する。"]
[]
[null,null,null,null,null,null,null,null,null,null,null,null,null,null,null,null,null,null,null,null,null,null,null,null,null,null,null,null,null,null,null,null,5,null,null,"外部からの評価を受け入れるためには、アンケート調査や顧客への面接・取材による情報収集が必須である。"]
[]
[null,null,null,null,null,null,null,null,null,null,null,null,null,null,null,null,null,null,null,null,null,null,null,null,null,null,null,null,null,null,null,null,6,null,null,"評価の対象となるものは、事業成果評価のみであり、組織の内部や外部に与えた影響や環境及び事業プロセスは評価の対象ではない。"]
[]
[null,null,null,null,null,null,null,null,null,null,null,null,null,null,null,null,null,null,null,null,null,null,null,null,null,null,null,null,null,null,null,null,7,null,null,"法人の自己評価は、内部情報であり、外部に広報するようなものではない。"]
[]
[null,null,null,null,null,null,null,null,null,null,null,null,null,null,null,null,null,null,null,null,null,null,null,null,null,null,null,null,null,null,null,null,8,null,null,"組織の社会的インパクト情報は、外部評価情報よりもたらせられる。"]
[]
[null,null,null,null,null,null,null,null,null,null,null,null,null,null,null,null,null,null,null,null,null,null,null,null,null,null,null,null,null,null,null,null,9,null,null,"自己評価が改善・改革に繋がらければ意味がない。"]
[]
[null,null,null,null,null,null,null,null,null,null,null,null,null,null,null,null,null,null,null,null,null,null,null,null,null,null,null,null,null,null,null,null,10,null,null,"法人の事業担当スタッフも、自己管理目標をたて、自己管理することで、効率をあげることができレベルアップが図れる。"]
[]
[null,null,null,null,null,null,null,null,null,null,null,null,null,null,null,null,null,null,null,null,null,null,null,null,null,null,null,null,null,null,null,null,11,null,null,"評価実施においては、情報収集・編集・広報の専門知識をもつ情報担当管理者を選任する必要はない。"]
[]
[null,null,null,null,null,null,null,null,null,null,null,null,null,null,null,null,null,null,null,null,null,null,null,null,null,null,null,null,null,null,null,null,12,null,null,"法人の自己評価は、法人の都合良く評価されやすく評価があまくなる。"]
[]
[null,null,null,null,null,null,null,null,null,null,null,null,null,null,null,null,null,null,null,null,null,null,null,null,null,null,null,null,null,null,null,null,13,null,null,"活動目的は、法人活動社会的インパクトによる良好な社会の変化であるが、これを確認するのに積極的な外部評価を収集する必要はない。"]
[]
[null,null,null,null,null,null,null,null,null,null,null,null,null,null,null,null,null,null,null,null,null,null,null,null,null,null,null,null,null,null,null,null,14,null,null,"個人の管理目標に対して、研修やコンサルなどの支援が必要であるが、それらの支援は、組織の使命ではない。"]
[]
[null,null,null,null,null,null,null,null,null,null,null,null,null,null,null,null,null,null,null,null,null,null,null,null,null,null,null,null,null,null,null,null,15,null,null,"活動評価は、直観的に良し悪しが判断できるので、広い見識と専門知識は必要ではない。"]
[]
[null,null,null,null,null,null,null,null,null,null,null,null,null,null,null,null,null,null,null,null,null,null,null,null,null,null,null,null,null,null,null,null,16,null,null,"組織風土や地域文化を基準とした評価は、曖昧になりがちでありリスクもあるので、常に見直しと観察が必要である。"]
[]
[null,null,null,null,null,null,null,null,null,null,null,null,null,null,null,null,null,null,null,null,null,null,null,null,null,null,null,null,null,null,null,null,17,null,null,"個々に実施した個人レベルでの自己評価は、組織運営には関係がない。"]
[null,"自己評価　１１．内部評価・外部評価　　　　　最高点（５）"]
[null,null,null,null,null,null,null,null,null,null,null,null,null,null,null,null,null,null,null,null,null,null,null,null,null,null,null,null,null,null,null,null,18,null,null,"評価は、毎度同じ項目なので、評価項目チェックリストを作成する必要はない。"]
[null,null,null,null,null,null,5,null,null,null,null,4,null,null,null,null,3,null,null,null,null,2,null,null,null,null,1]
[null,null,null,null,null,null,null,null,null,null,null,null,null,null,null,null,null,null,null,null,null,null,null,null,null,null,null,null,null,null,null,null,19,null,null,"苦情やクレームは外部からの貴重な評価である。"]
[]
[null,null,null,null,null,null,null,null,null,null,null,null,null,null,null,null,null,null,null,null,null,null,null,null,null,null,null,null,null,null,null,null,20,null,null,"内部評価のみでなく、外部からの評価も受け活動報告書を作成すべきだ。"]
[]
[null,"１２．評価",null,null,null,null,null,null,null,null,null,null,null,null,null,null,null,null,null,null,null,null,null,null,null,null,null,null,null,null,null,null,null,null,"　共感する項目にチェックを入れてください。　記入【✓】"]
[null,null,null,null,null,null,null,null,null,null,null,null,null,null,null,null,null,null,null,null,null,null,null,null,null,null,null,null,null,null,null,null,1,null,null,"評価することでは、法人活動目的や事業活動成果を共有することはできない。"]
[null,"評価の仕組みがあるか？　何を評価するか？"]
[null,null,null,null,null,null,null,null,null,null,null,null,null,null,null,null,null,null,null,null,null,null,null,null,null,null,null,null,null,null,null,null,2,null,null,"評価は、手数とコストが掛かる。また活動成果は、数値化や定量化の観測が難しい。他の業務に追われて評価実施する時間がない。"]
[]
[null,null,null,null,null,null,null,null,null,null,null,null,null,null,null,null,null,null,null,null,null,null,null,null,null,null,null,null,null,null,null,null,3,null,null,"クラウドファンディングは、透明度が高い法人情報と事業説明を掲載して、寄付者や支援者が自ら評価できる良い仕組みである。"]
[]
[null,null,null,null,null,null,null,null,null,null,null,null,null,null,null,null,null,null,null,null,null,null,null,null,null,null,null,null,null,null,null,null,4,null,null,"ロジックモデルとビジネスモデルを使用したプレゼンでは、専門家でなくても評価できる情報とはならない。"]
[]
[null,null,null,null,null,null,null,null,null,null,null,null,null,null,null,null,null,null,null,null,null,null,null,null,null,null,null,null,null,null,null,null,5,null,null,"活動評価を実施することで、事業運営の効果や効率がよくなり、明確な活動成果(ソーシャルインパクト)を確認できるようになる。"]
[]
[null,null,null,null,null,null,null,null,null,null,null,null,null,null,null,null,null,null,null,null,null,null,null,null,null,null,null,null,null,null,null,null,6,null,null,"信頼や権威があることが第一であり、事業説明をしたり、活動成果評価を受けたり、寄付者が選択できる情報を広報する必要は特にない。"]
[]
[null,null,null,null,null,null,null,null,null,null,null,null,null,null,null,null,null,null,null,null,null,null,null,null,null,null,null,null,null,null,null,null,7,null,null,"ＮＰＯ法人は、組織と活動を企業以上に透明化し、説明責任を果たし、外部からの評価に耐える組織運営を要求される。"]
[]
[null,null,null,null,null,null,null,null,null,null,null,null,null,null,null,null,null,null,null,null,null,null,null,null,null,null,null,null,null,null,null,null,8,null,null,"ロジックモデルとビジネスモデルで、事業説明をすれば、正確で論理的な説明ができるが、良い評価を受けやすくなるということはない。"]
[]
[null,null,null,null,null,null,null,null,null,null,null,null,null,null,null,null,null,null,null,null,null,null,null,null,null,null,null,null,null,null,null,null,9,null,null,"組織経営に長年の実績があり、信頼があることが第一であり、これにより特に詳細な事業説明や外部評価を受けることなく、借入ができる。"]
[]
[null,null,null,null,null,null,null,null,null,null,null,null,null,null,null,null,null,null,null,null,null,null,null,null,null,null,null,null,null,null,null,null,10,null,null,"ロジックモデルとビジネスモデルで、事業計画を作成すれば、外部の評価に耐えわかりやすい強力な資料となる。プレゼン必須アイテムだ。"]
[]
[null,null,null,null,null,null,null,null,null,null,null,null,null,null,null,null,null,null,null,null,null,null,null,null,null,null,null,null,null,null,null,null,11,null,null,"すべてのＮＰＯ法人がロジックモデルとビジネスモデルを使用して、事業説明し事業説明書を作成すれば、公平平等な評価が可能だ。"]
[]
[null,null,null,null,null,null,null,null,null,null,null,null,null,null,null,null,null,null,null,null,null,null,null,null,null,null,null,null,null,null,null,null,12,null,null,"継続的に存続でき、社会貢献できる組織かを一般市民が評価できるように、活動評価事項と事業説明を一般に広報するＮＰＯ法人は多い。"]
[]
[null,null,null,null,null,null,null,null,null,null,null,null,null,null,null,null,null,null,null,null,null,null,null,null,null,null,null,null,null,null,null,null,13,null,null,"組織の内部環境である就労環境や意思決定の仕組みや事業計画のプロセスなどは、評価の対象とはならない。"]
[]
[null,null,null,null,null,null,null,null,null,null,null,null,null,null,null,null,null,null,null,null,null,null,null,null,null,null,null,null,null,null,null,null,14,null,null,"ＮＰＯ活動を専門に取材する記者は、必要とされ、プロ記者からの情報発信は、評価の助けとなる。"]
[]
[null,null,null,null,null,null,null,null,null,null,null,null,null,null,null,null,null,null,null,null,null,null,null,null,null,null,null,null,null,null,null,null,15,null,null,"寄付者や支援者にとって、信頼性のある情報は口コミであり、寄付文化を促す重要な役割をもつ。この口コミ情報で十分である。"]
[]
[null,null,null,null,null,null,null,null,null,null,null,null,null,null,null,null,null,null,null,null,null,null,null,null,null,null,null,null,null,null,null,null,16,null,null,"活動評価を第三者機関が評価するというのも良いが、一般市民が自ら評価できる評価基準がありそれに基づいて情報を広報すべきだ。"]
[]
[null,null,null,null,null,null,null,null,null,null,null,null,null,null,null,null,null,null,null,null,null,null,null,null,null,null,null,null,null,null,null,null,17,null,null,"ロジックモデルとビジネスモデル作成のコストは、戦略的な事業計画作成や強力なプレゼン資料となるので、無駄ではない。"]
[null,"自己評価　１２．評価　　　　　　　　　　　　最高点（５）"]
[null,null,null,null,null,null,null,null,null,null,null,null,null,null,null,null,null,null,null,null,null,null,null,null,null,null,null,null,null,null,null,null,18,null,null,"資金を調達する資源獲得の共通活動評価方法と社会的な寄付支援の仕組みが必要だ。（中間支援センターが運営するクラウドファンディング）"]
[null,null,null,null,null,null,5,null,null,null,null,4,null,null,null,null,3,null,null,null,null,2,null,null,null,null,1]
[null,null,null,null,null,null,null,null,null,null,null,null,null,null,null,null,null,null,null,null,null,null,null,null,null,null,null,null,null,null,null,null,19,null,null,"委託や補助ではなく、民間資金の活用が国レベルで実行されようとしている現在、早急にＮＰＯ法人活動評価方法の確立が必要とされる。"]
[]
[null,null,null,null,null,null,null,null,null,null,null,null,null,null,null,null,null,null,null,null,null,null,null,null,null,null,null,null,null,null,null,null,20,null,null,"事業成果評価のみでは、「振り返り」「学び」「改革」はできない。"]
[]
[]
[null,null,null,null,"各項目　自己評価"]
[null,null,null,null,null,null,null,null,null,null,null,null,null,null,null,null,null,null,null,null,"　　　"]
[null,null,null,1,null,0,"使命（ミッション）"]
[null,null,null,2,null,0,"目的（ビジョン）"]
[null,null,null,3,null,0,"事業組立　特定非営利活動"]
[null,null,null,4,null,0,"組織"]
[null,null,null,5,null,0,"組織組立"]
[null,null,null,6,null,0,"マネジメント"]
[null,null,null,7,null,0,"ロジックモデル"]
[null,null,null,8,null,0,"ビジネスモデル"]
[null,null,null,9,null,0,"監査・情報"]
[null,null,null,10,null,0,"改善・改革"]
[null,null,null,11,null,0,"内部評価・外部評価"]
[null,null,12,12,null,0,"評価"]
[]
[]
[]
[]
[]
[]
[]
[]
[]
[]
[]
[]
[]
[]
[]
[]
[]
[]
[]
[]
[]
["マネジメントサイクル　チェックリスト 計算"]
[]
[null,1,null,null,null,2,null,null,null,3,null,null,null,4,null,null,null,5,null,null,null,6,null,null,null,7,null,null,null,8,null,null,null,null,9,null,null,null,10,null,null,null,11,null,null,null,12]
[1,"✔",null,-10,1,null,null,0,1,"✔",null,-10,1,null,null,0,1,null,null,0,1,"✔",null,-10,1,null,null,0,1,null,null,0,null,1,"✔",null,-10,1,null,null,0,1,"✔",null,-10,1,null,null,0]
[2,"✔",null,-10,2,"✔",null,-10,2,"✔",null,-10,2,"✔",null,-10,2,null,null,0,2,null,null,0,2,"✔",null,-10,2,null,null,0,null,2,"✔",null,-10,2,null,null,0,2,null,null,0,2,null,null,0]
[3,"✔",null,-10,3,"✔",null,-10,3,null,null,0,3,"✔",null,-10,3,null,null,0,3,"✔",null,-10,3,"✔",null,-10,3,null,null,0,null,3,"✔",null,-10,3,"✔",null,-10,3,null,null,0,3,"✔",null,-10]
[4,"✔",null,-10,4,null,null,0,4,null,null,0,4,null,null,0,4,"✔",null,-10,4,"✔",null,-10,4,null,null,0,4,"✔",null,-10,null,4,null,null,0,4,"✔",null,-10,4,"✔",null,-10,4,null,null,0]
[5,"✔",null,-10,5,"✔",null,-10,5,null,null,0,5,"✔",null,-10,5,"✔",null,-10,5,null,null,0,5,"✔",null,-10,5,"✔",null,-10,null,5,"✔",null,-10,5,null,null,0,5,"✔",null,-10,5,"✔",null,-10]
[6,null,null,0,6,null,null,0,6,"✔",null,-10,6,"✔",null,-10,6,null,null,0,6,null,null,0,6,"✔",null,-10,6,null,null,0,null,6,null,null,0,6,null,null,0,6,null,null,0,6,null,null,0]
[7,null,null,0,7,null,null,0,7,"✔",null,-10,7,"✔",null,-10,7,null,null,0,7,null,null,0,7,"✔",null,-10,7,null,null,0,null,7,null,null,0,7,null,null,0,7,null,null,0,7,"✔",null,-10]
[8,null,null,0,8,"✔",null,-10,8,null,null,0,8,null,null,0,8,null,null,0,8,"✔",null,-10,8,"✔",null,-10,8,"✔",null,-10,null,8,"✔",null,-10,8,"✔",null,-10,8,"✔",null,-10,8,null,null,0]
[9,null,null,0,9,"✔",null,-10,9,"✔",null,-10,9,null,null,0,9,"✔",null,-10,9,null,null,0,9,null,null,0,9,null,null,0,null,9,null,null,0,9,null,null,0,9,"✔",null,-10,9,null,null,0]
[10,null,null,0,10,"✔",null,-10,10,null,null,0,10,"✔",null,-10,10,"✔",null,-10,10,null,null,0,10,null,null,0,10,null,null,0,null,10,null,null,0,10,"✔",null,-10,10,"✔",null,-10,10,"✔",null,-10]
[11,null,null,0,11,"✔",null,-10,11,null,null,0,11,null,null,0,11,null,null,0,11,"✔",null,-10,11,null,null,0,11,"✔",null,-10,null,11,null,null,0,11,null,null,0,11,null,null,0,11,"✔",null,-10]
[12,null,null,0,12,null,null,0,12,"✔",null,-10,12,"✔",null,-10,12,"✔",null,-10,12,null,null,0,12,"✔",null,-10,12,"✔",null,-10,null,12,"✔",null,-10,12,"✔",null,-10,12,"✔",null,-10,12,null,null,0]
[13,null,null,0,13,null,null,0,13,null,null,0,13,null,null,0,13,"✔",null,-10,13,"✔",null,-10,13,null,null,0,13,null,null,0,null,13,"✔",null,-10,13,"✔",null,-10,13,null,null,0,13,null,null,0]
[14,"✔",null,-10,14,"✔",null,-10,14,"✔",null,-10,14,"✔",null,-10,14,"✔",null,-10,14,"✔",null,-10,14,null,null,0,14,"✔",null,-10,null,14,null,null,0,14,null,null,0,14,null,null,0,14,"✔",null,-10]
[15,"✔",null,-10,15,null,null,0,15,null,null,0,15,null,null,0,15,null,null,0,15,"✔",null,-10,15,"✔",null,-10,15,null,null,0,null,15,null,null,0,15,"✔",null,-10,15,null,null,0,15,null,null,0]
[16,"✔",null,-10,16,"✔",null,-10,16,"✔",null,-10,16,null,null,0,16,"✔",null,-10,16,null,null,0,16,null,null,0,16,"✔",null,-10,null,16,"✔",null,-10,16,"✔",null,-10,16,"✔",null,-10,16,"✔",null,-10]
[17,null,null,0,17,null,null,0,17,null,null,0,17,"✔",null,-10,17,"✔",null,-10,17,"✔",null,-10,17,null,null,0,17,"✔",null,-10,null,17,null,null,0,17,null,null,0,17,null,null,0,17,"✔",null,-10]
[18,null,null,0,18,null,null,0,18,null,null,0,18,null,null,0,18,null,null,0,18,null,null,0,18,"✔",null,-10,18,"✔",null,-10,null,18,null,null,0,18,null,null,0,18,null,null,0,18,"✔",null,-10]
[19,"✔",null,-10,19,"✔",null,-10,19,"✔",null,-10,19,"✔",null,-10,19,null,null,0,19,null,null,0,19,null,null,0,19,"✔",null,-10,null,19,"✔",null,-10,19,"✔",null,-10,19,"✔",null,-10,19,"✔",null,-10]
[20,"✔",null,-10,20,null,null,0,20,"✔",null,-10,20,null,null,0,20,"✔",null,-10,20,"✔",null,-10,20,"✔",null,-10,20,null,null,0,null,20,"✔",null,-10,20,"✔",null,-10,20,"✔",null,-10,20,null,null,0]
[null,{"$f":"SUM(D614:D633)","v":-100},null,null,null,{"$f":"SUM(H614:H633)","v":-100},null,null,null,{"$f":"SUM(L614:L633)","v":-100},null,null,null,{"$f":"SUM(P614:P633)","v":-100},null,null,null,{"$f":"SUM(T614:T633)","v":-100},null,null,null,{"$f":"SUM(X614:X633)","v":-100},null,null,null,{"$f":"SUM(AB614:AB633)","v":-100},null,null,null,{"$f":"SUM(AF614:AF633)","v":-100},null,null,null,null,{"$f":"SUM(AK614:AK633)","v":-100},null,null,null,{"$f":"SUM(AO614:AO633)","v":-100},null,null,null,{"$f":"SUM(AS614:AS633)","v":-100},null,null,null,{"$f":"SUM(AW614:AW633)","v":-100},null,null,null,1010,1010,1010,1010,1010,1010]
[]
[null,"使命",null,null,null,"目的",null,null,null,"事業組立",null,null,null,"組織",null,null,null,"組織組立",null,null,null,"マネジメント",null,null,null,"ロジックモデル",null,null,null,"ビジネスモデル",null,null,null,null,"監査情報",null,null,null,"改善改革",null,null,null,"内部外部評価",null,null,null,"評価"]
[]
[]
[]
[]
[]
[]
[]
[]
[null,null,1,null,"使命（ミッション）",null,null,null,null,null,null,null,null,null,null,null,{"$f":"B634","v":-100}]
[null,null,2,null,"目的（ビジョン）",null,null,null,null,null,null,null,null,null,null,null,{"$f":"F634","v":-100}]
[null,null,3,null,"事業組立　特定非営利活動",null,null,null,null,null,null,null,null,null,null,null,{"$f":"J634","v":-100}]
[null,null,4,null,"組織",null,null,null,null,null,null,null,null,null,null,null,{"$f":"N634","v":-100}]
[null,null,5,null,"組織組立",null,null,null,null,null,null,null,null,null,null,null,{"$f":"R634","v":-100}]
[null,null,6,null,"マネジメント",null,null,null,null,null,null,null,null,null,null,null,{"$f":"V634","v":-100}]
[null,null,7,null,"ロジックモデル",null,null,null,null,null,null,null,null,null,null,null,{"$f":"Z634","v":-100}]
[null,null,8,null,"ビジネスモデル",null,null,null,null,null,null,null,null,null,null,null,{"$f":"AD634","v":-100}]
[null,null,9,null,"監査・情報",null,null,null,null,null,null,null,null,null,null,null,{"$f":"AI634","v":-100}]
[null,null,10,null,"改善・改革",null,null,null,null,null,null,null,null,null,null,null,{"$f":"AM634","v":-100}]
[null,null,11,null,"内部評価・外部評価",null,null,null,null,null,null,null,null,null,null,null,{"$f":"AQ634","v":-100}]
[null,null,12,null,"評価",null,null,null,null,null,null,null,null,null,null,null,{"$f":"AU634","v":-100}]

{"sheet":"ロジックモデル","index":1,"n_rows":266,"n_cols":32,"rows_kept":266,"cut":false,"hidden":false,"merged":[[224,31,224,55],[246,31,246,55],[262,4,262,30],[264,4,264,30],[265,4,265,30],[228,4,229,28],[231,4,232,28],[236,4,237,28],[247,4,248,28],[254,4,255,28],[259,4,260,28],[249,4,249,30],[257,4,257,30],[252,4,252,30],[245,2,245,3],[252,2,252,3],[234,4,234,30],[238,4,238,30],[239,4,239,30],[244,3,244,30],[223,1,223,27],[225,2,225,27],[226,4,226,27],[9,16,11,45],[35,30,35,54],[45,0,45,27],[47,1,47,27],[45,30,45,56],[46,30,46,56],[47,30,47,56],[48,30,48,56],[49,30,49,56],[49,1,49,27],[50,30,50,56],[51,30,51,56],[52,30,52,56],[89,1,89,27],[82,2,82,27],[77,1,77,27],[79,1,79,27],[75,2,75,27],[76,3,76,27],[64,1,64,27],[55,1,55,27],[56,1,56,27],[59,1,59,27],[50,1,50,27],[51,1,51,27],[52,1,52,27],[53,1,53,27],[54,1,54,27],[59,30,59,56],[61,30,61,56],[62,30,62,56],[63,30,63,56],[64,30,64,56],[65,30,65,56],[53,30,53,56],[54,30,54,56],[55,30,55,56],[56,30,56,56],[57,30,57,56],[58,30,58,56],[90,30,90,56],[91,30,91,56],[92,30,92,56],[93,30,93,56],[94,30,94,56],[66,3,67,27],[68,3,69,27],[84,30,84,56],[85,30,85,56],[86,30,86,56],[87,30,87,56],[88,30,88,56],[89,30,89,56],[78,30,78,56],[79,30,79,56],[80,30,80,56],[81,30,81,56],[82,30,82,56],[83,30,83,56],[68,30,68,56],[69,30,69,56],[72,30,72,56],[73,30,73,56],[77,30,77,56],[83,2,84,27],[85,2,88,27],[57,1,57,27],[134,0,134,27],[135,2,135,27],[61,2,63,27],[65,2,65,27],[72,2,73,26],[78,2,78,27],[70,3,70,27],[80,2,81,27],[94,1,94,27],[95,1,95,27],[90,1,90,27],[91,1,91,27],[92,1,92,27],[93,1,93,27],[134,29,134,56],[135,30,136,56],[138,30,139,56],[142,29,142,56],[165,4,167,27],[168,4,169,27],[170,4,170,27],[157,4,160,27],[162,4,163,27],[155,4,156,27],[149,3,149,27],[150,3,150,27],[151,3,151,27],[153,1,153,27],[154,3,154,27],[136,2,136,27],[137,2,137,27],[138,2,138,27],[139,2,139,27],[147,0,147,27],[148,1,148,27],[161,29,161,56],[162,30,164,56],[165,30,165,56],[153,29,153,56],[157,30,158,16383],[154,30,156,56],[174,4,174,27],[143,30,144,56],[146,30,147,56],[149,30,150,16383],[152,29,152,56],[172,3,172,27],[173,4,173,27],[178,1,178,27],[179,30,179,56],[180,30,180,56],[181,30,181,56],[182,30,182,56],[183,30,183,56],[184,30,184,56],[185,30,185,56],[186,30,186,56],[198,31,198,56],[199,31,199,56],[216,31,216,55],[217,31,217,56],[218,31,218,55],[219,31,219,56],[220,31,221,55],[187,30,187,56],[188,30,188,56],[189,30,189,56],[190,30,190,56],[191,30,191,56],[192,30,192,56],[193,30,193,56],[194,30,194,56],[195,31,196,16383]]}
[]
[]
[]
[]
[]
[]
[]
[]
[]
[null,null,null,null,null,null,null,null,null,null,null,null,null,null,null,null,"非営利活動支援ツール　　ロジックモデル"]
[]
[]
[]
[]
[]
[]
[]
[]
[]
[]
[]
[]
[]
[]
[]
[]
[]
[]
[]
[]
[]
[]
[]
[]
[]
[null,null,null,null,null,null,null,null,null,null,null,null,null,null,null,null,null,null,null,null,null,null,null,null,null,null,null,null,null,null,"2017/09/04 OKADA  ©"]
[]
[]
[]
[]
[]
[]
[]
[]
[]
["ロジックモデル　"]
[null,null,null,null,null,null,null,null,null,null,null,null,null,null,null,null,null,null,null,null,null,null,null,null,null,null,null,null,null,null,"ロジックモデル"]
[null,"●ロジックモデルでできること。"]
[]
[null,"　1)　プレゼン資料作成"]
[null,"　2)　論理的な事業構築プロセスの作成"]
[null,"　3)　インプット　　投資事業・資源"]
[null,"　4)　アウトプット　事業目標指標作成"]
[null,"　5)　アウトカム　　１年間を短期・中期・長期に分けて、事業成果指標を作成する。"]
[null,"　6)　事業計画書"]
[null,"　7)　事業報告書"]
[null,"　8)　ビジョンと事業の整合性確認できる。"]
[null,"　9)　法人活動が、鳥瞰でき、全体を把握できる。"]
[]
[null,"【１】　ロジックモデル作成"]
[]
[null,"Ａ．","ロジックモデル作成は、3年から5年の長期計画で、作成してもよいが、NPO法人の事業計画は、法人が定める事業年度の1年間で作成するので、期間を法人の事業年度の1年間とする。"]
[]
[]
[]
[null,"Ｂ．","ロジックモデルの左端に、定款で規定した事業を記載する。"]
[null,null,null,"ＮＰＯ法人は、定款で規定した事業以外は、実施しないので、定款にない事業を実施する場合は、定款変更の手続きが必要になる。"]
[]
[null,"　",null,"特定非営利活動の種類にない事業や職員の福祉厚生などの共益事業の場合は、「その他の事業」とする。"]
[]
[null,null,null,"実施する事業は、法人の目的達成に関連し、貢献する活動でなければならない。"]
[]
[null,"Ｃ","左端に記載した事業を達成させるのに必要な作業(タスク)に、漏れなく細分化した作業名を事業名の次に縦に並べて作業名と活動内容を記載する。(インプット)　"]
[]
[]
[null,"Ｄ","作業名の右に、作業の実施内容の直接成果を記載する。（アウトプット）"]
[null,null,null,"アウトプットは、内部活動であり、数値目標を定めてＰＤＣＡサイクルで管理する。"]
[]
[null,"Ｅ．","法人のビジョンをロジックモデルの右端に記載する。（計画したアウトカム）"]
[]
[null,"Ｆ","ビジョンにつづいて、その左の長期計画の欄に、年間計画の場合は、ビジョン達成直前の状態を記載する。"]
[]
[null,null,"１年を超える長期計画の場合は、ビジョン達成度を年度数に分解して記載する。"]
[null,null,"アウトプットに関連付けて、その時点での成果状態を短期・中期・長期の成果目標を計画する。（予想した成果指標　短期・中期・長期アウトカム）"]
[]
[null,null,"このアウトカム指標での評価は、外部からの顧客などからのフィードバックより評価されるので、ＰＤＣＡサイクルでは、管理できない。外部環境変化や外部評価情報より管理される。　「その他の事業」は、ロジックモデルに記載するが、法人のビジョン達成には、貢献しない事業。したがって、右端のビジョンには、繋がりがない。"]
[]
[]
[]
[null,null,null,null,null,null,null,null,null,null,null,null,null,null,null,null,null,null,null,null,null,null,null,null,null,null,null,null,null,null,"【事業計画書】"]
[]
[]
[]
[]
[]
[]
[]
[]
[]
[]
[]
[]
[]
[]
[]
[]
[]
[]
[]
[]
[]
[]
[]
[]
[]
[]
[]
[]
[]
[]
[]
[]
[]
[]
[]
[]
[]
[]
[]
[]
[]
[]
[]
[]
[null,null,null,null,null,null,null,null,null,null,null,null,null,null,null,null,null,null,null,null,null,null,null,null,null,null,null,null,null,"●事業担当者の自己管理"]
[null,null,null,null,null,null,null,null,null,null,null,null,null,null,null,null,null,null,null,null,null,null,null,null,null,null,null,null,null,null,"各事業担当者（作業）がロジックモデルのインプット管理指標より自己管理することで、事業の効率化と無駄を省くことができる。"]
[]
[]
[null,null,null,null,null,null,null,null,null,null,null,null,null,null,null,null,null,null,null,null,null,null,null,null,null,null,null,null,null,null,"中間でのアウトプット管理指標より成果を評価するには、顧客へのアンケート・面接・取材による情報収取が必要になる。"]
[]
[]
[]
[null,null,null,null,null,null,null,null,null,null,null,null,null,null,null,null,null,null,null,null,null,null,null,null,null,null,null,null,null,"●法人活動の評価"]
[null,null,null,null,null,null,null,null,null,null,null,null,null,null,null,null,null,null,null,null,null,null,null,null,null,null,null,null,null,null,"法人の社会的影響力（ソーシャルインパクト）が最も評価すべき項目である。"]
[]
[]
[null,null,null,null,null,null,null,null,null,null,null,null,null,null,null,null,null,null,null,null,null,null,null,null,null,null,null,null,null,null,"アウトプットは数値化しやすいので、一般的には、アウトプット（講座開催数・イベント開催数・集客数）で、評価されている。"]
["●事業計画書"]
[null,"１．事業実施の方針"]
[null,null,null,"法人の活動目的と使命を明確に記載する。",null,null,null,null,null,null,null,null,null,null,null,null,null,null,null,null,null,null,null,null,null,null,null,null,null,null,"法人活動が、社会へどのような影響力（インパクト）を持つかが活動支援への選択となれば、顧客や支援者は、納得がいく支援ができる。"]
[null,null,null,"活動目的達成の社会的なインパクトと必要性"]
[null,null,null,"何のための。何の活動かを明確に記載。"]
[]
[null,"２．事業の実施に関する事項",null,null,null,null,null,null,null,null,null,null,null,null,null,null,null,null,null,null,null,null,null,null,null,null,null,null,null,"●アカウンタビリティー"]
[null,null,null,"(1)特定非営利活動に係る事業",null,null,null,null,null,null,null,null,null,null,null,null,null,null,null,null,null,null,null,null,null,null,null,null,null,null,"全ての非営利活動法人が、ロジックモデル・ビジネスモデルを用いて、事業計画書を作成しアカウンタビリティー（説明責任）を果たすとして、これを公開すべきだ。"]
[null,null,null,"　","事務の手引きに記載する事項は、インプットとアウトプットの事項のみである。"]
[]
[null,null,null,null,"事業年度における短期・中期・長期でのアウトカムをロジックモデルより記載する。それぞれのアウトカム指標は、管理指標となるので、事業報告書には、これをもとにして、成果評価を自己評価して報告書を作成する。",null,null,null,null,null,null,null,null,null,null,null,null,null,null,null,null,null,null,null,null,null,null,null,null,null,"現在の公開資料が定款と財務諸表のみでは、正確な法人評価ができない。"]
[]
[]
[]
[null,null,null,null,null,null,null,null,null,null,null,null,null,null,null,null,null,null,null,null,null,null,null,null,null,null,null,null,null,"●作成コスト"]
[null,null,null,null,"それぞれの事業が関連性をもって、他の事業を補完し、法人の目標達成へと組立てられている事業プロセスを説明する。",null,null,null,null,null,null,null,null,null,null,null,null,null,null,null,null,null,null,null,null,null,null,null,null,null,"ロジックモデル及びビジネスモデルを作成するには、コスト(人件費)が掛かるが、作成されたものは、事業への拠り所、活動指針となるもので、どんな場合でも作成しなければならない必要なコストである。"]
[]
[]
[null,null,null,null,"事業計画書の年間成果目標は、ロジックモデルの右端に記載したビジョンであり、目標である。法人は、この達成度により評価される。",null,null,null,null,null,null,null,null,null,null,null,null,null,null,null,null,null,null,null,null,null,null,null,null,null,"むしろ、これを作成整備してあれば、事業に無駄がなくなり整理される。"]
[]
[]
[null,null,null,null,"公開されたアウトカムは、法人が顧客から支援をいただき実施する成果であり社会的責任と公約である。"]
[]
[null,null,null,null,"アウトカムが欠落した事業計画書は意味がない。"]
[]
[null,null,null,"(2)その他の事業"]
[null,null,null,null,"できれば、廃止すべき事業である。"]
[null,null,null,null,"事業収益はすべて、特定非営利活動へ充てなければならない。"]
[]
[]
[]
[null,"【2】事業報告書"]
[null,null,null,null,null,null,null,null,null,null,null,null,null,null,null,null,null,null,null,null,null,null,null,null,null,null,null,null,null,null,"●事務の手引きでの事業報告書の書式は、事業計画書に同じである。"]
[]
[null,null,null,null,null,null,null,null,null,null,null,null,null,null,null,null,null,null,null,null,null,null,null,null,null,null,null,null,null,null,"●記載事項は、アウトプト結果である「従事者の人数」「支出額」のみで、"]
[null,null,null,null,null,null,null,null,null,null,null,null,null,null,null,null,null,null,null,null,null,null,null,null,null,null,null,null,null,null,"　「集客数」はない。内部評価指標のみである。"]
[]
[null,null,null,null,null,null,null,null,null,null,null,null,null,null,null,null,null,null,null,null,null,null,null,null,null,null,null,null,null,null,"●重要事項の欠落"]
[null,null,null,null,null,null,null,null,null,null,null,null,null,null,null,null,null,null,null,null,null,null,null,null,null,null,null,null,null,null,"　非営利活動の評価は、アウトカムを評価することが最も重要です。"]
[null,null,null,null,null,null,null,null,null,null,null,null,null,null,null,null,null,null,null,null,null,null,null,null,null,null,null,null,null,null,"　目標としたロジックモデルからのアウトカム指標と実施結果との評価を"]
[null,null,null,null,null,null,null,null,null,null,null,null,null,null,null,null,null,null,null,null,null,null,null,null,null,null,null,null,null,null,"　記載すべきであり、そのことにより、改善と改革の提案ができる。"]
[]
[null,null,null,null,null,null,null,null,null,null,null,null,null,null,null,null,null,null,null,null,null,null,null,null,null,null,null,null,null,null,"　内部指標のみからの評価は、顧客不在であり、ニーズの確認ができない。"]
[]
[null,null,null,null,null,null,null,null,null,null,null,null,null,null,null,null,null,null,null,null,null,null,null,null,null,null,null,null,null,null,"●法人が顧客に対して、公開しアピールすべきは、法人活動が社会へ与え"]
[null,null,null,null,null,null,null,null,null,null,null,null,null,null,null,null,null,null,null,null,null,null,null,null,null,null,null,null,null,null,"　た影響力であるアウトカムである。"]
[null,null,null,null,null,null,null,null,null,null,null,null,null,null,null,null,null,null,null,null,null,null,null,null,null,null,null,null,null,null,"　アウトカム指標と活動成果を得たプロセス（事業の経緯と努力）を"]
[null,null,null,null,null,null,null,null,null,null,null,null,null,null,null,null,null,null,null,null,null,null,null,null,null,null,null,null,null,null,"　記載すべきである。"]
[null,null,null,null,null,null,null,null,null,null,null,null,null,null,null,null,null,null,null,null,null,null,null,null,null,null,null,null,null,null,"　","公開すべき顧客の為の事業報告書であり、行政への提出書類であってはならない。"]
[]
[]
[null,null,null,null,null,null,null,null,null,null,null,null,null,null,null,null,null,null,null,null,null,null,null,null,null,null,null,null,null,null,"●組織の成果は、常に外部に存在する。","組織の成果は、常に外部に存在する。"]
[null,null,null,null,null,null,null,null,null,null,null,null,null,null,null,null,null,null,null,null,null,null,null,null,null,null,null,null,null,null,null,"組織の内部は、コストが発生するにすぎない。　　（ドラッカー）"]
[]
[]
[]
[]
[]
[]
[]
[]
[]
[]
[]
[]
[]
[]
[]
[]
[null,null,null,null,null,null,null,null,null,null,null,null,null,null,null,null,null,null,null,null,null,null,null,null,null,null,null,null,null,null,"●","ソーシャル・インパクト"]
[null,null,null,null,null,null,null,null,null,null,null,null,null,null,null,null,null,null,null,null,null,null,null,null,null,null,null,null,null,null,null,"計画したアウトカム指標の達成により社会へ与えた影響・社会の状態"]
[null,null,null,null,null,null,null,null,null,null,null,null,null,null,null,null,null,null,null,null,null,null,null,null,null,null,null,null,null,null,null,"及び活動より予期しなかったインパクトを含めて法人を評価する。"]
[null,null,null,null,null,null,null,null,null,null,null,null,null,null,null,null,null,null,null,null,null,null,null,null,null,null,null,null,null,null,null,"法人活動の外部出力の結果であるソーシャルインパクトを評価する。"]
[null,null,null,null,null,null,null,null,null,null,null,null,null,null,null,null,null,null,null,null,null,null,null,null,null,null,null,null,null,null,null,"この外部成果評価により、社会は組織の継続的存続を支援し尊厳を与える。"]
[]
[]
[null,"【３】成果指標と事業管理指標"]
[null,null,null,null,null,null,null,null,null,null,null,null,null,null,null,null,null,null,null,null,null,null,null,null,null,null,null,null,null,null,null,"●指標"]
[null,null,"●成果指標　アウトカム指標"]
[null,null,null,"1)","ロジックモデルの短期・中期・長期アウトカムを指標とする。"]
[]
[null,null,null,"2)","事業目的を明確に決め事業実施前に、測定の指標を決め事業の対象となる顧客や支援者と市場の状態を調査し、記録する。計測よりなるべく対象を数値化する。"]
[]
[]
[null,null,null,"3)","事業実施後、アンケート・面接・取材・顧客のニーズ観察など情報を収集し、数値化する。"]
[]
[]
[null,null,null,"4)","事業前と事業後の計測値を比較し、評価する。"]
[]
[null,null,null,"5)","各事業担当者は、アウトカム指標を目的とし、自らの強みによりどのような事に貢献できるかを考え貢献への成果指標を作成する。"]
[]
[]
[null,null,null,"6)","事業をチームで担当し、それぞれの役割を調整する。"]
[]
[]
[]
[]
[null,null,"●","事業管理指標"]
[null,null,"①",null,"インプット"]
[null,null,null,null,null,null,null,null,null,null,null,null,null,null,null,null,null,null,null,null,null,null,null,null,null,null,null,null,null,null,null,"【４】希望と勇気と感動の実践"]
[null,null,null,"1)","目的の成果を確実にあげることができるように、必要なタスクを定め、イベント・講座・講習・サービスの実施などの事業実施計画を作成する。"]
[]
[null,null,null,null,"各タスクに効率よく、無駄のない資源を投入する。資源管理指標とする。"]
[]
[]
[null,null,"②",null,"アウトプット"]
[]
[null,null,null,"1)","各タスク実施の結果であり、イベント・講座・講習・サービス実施の回数や集客数と投入した資源"]
[]
[]
[null,null,null,"2)","各タスクの実施事業を数値で計画し、事業管理指標とする。"]
[]
[null,null,null,"3)","事業管理指標は、組織内部のコスト管理であり、事業目的成果を達成させる手段である。"]
[]
[]
[null,null,null,"4)","目的は事業の成功・拡大ではなく、事業成果目標の達成である。"]
[]
[null,null,null,"5)","成果は組織内部にあるのではなく、「組織の外にある」。"]
[null,null,null,null,"組織内部にあるのは、「コスト」である。"]

{"sheet":"ビジネスモデル","index":2,"n_rows":320,"n_cols":47,"rows_kept":320,"cut":false,"hidden":false,"merged":[[319,28,319,51],[313,27,313,51],[315,2,315,25],[316,2,316,25],[317,2,317,25],[318,2,318,25],[299,2,300,25],[311,27,311,51],[308,2,309,25],[311,2,312,25],[314,28,314,51],[315,28,315,51],[316,28,316,51],[317,28,317,51],[318,28,318,51],[313,2,313,25],[314,2,314,25],[155,28,155,52],[157,28,157,52],[144,28,145,52],[146,28,147,52],[149,28,150,52],[152,28,153,52],[120,1,120,25],[264,2,264,25],[266,2,267,25],[143,28,143,52],[160,1,160,25],[200,1,200,25],[220,29,220,52],[221,29,221,52],[222,29,222,52],[223,29,223,52],[224,29,224,52],[225,29,225,52],[163,2,163,25],[165,2,165,13],[165,14,165,25],[187,2,187,25],[188,2,188,25],[189,2,189,25],[280,1,280,25],[283,3,283,23],[282,3,282,23],[282,28,282,51],[308,27,309,51],[310,27,310,51],[301,2,301,25],[302,2,302,25],[303,2,303,25],[304,2,304,25],[305,2,305,25],[306,2,306,25],[307,2,307,25],[310,2,310,25],[164,29,164,51],[165,29,165,51],[166,29,166,51],[167,29,167,51],[181,29,181,51],[182,29,182,51],[183,29,183,51],[166,2,175,13],[166,14,175,25],[176,2,185,13],[176,14,185,25],[170,29,170,51],[171,29,171,51],[168,29,168,51],[169,29,169,51],[162,29,162,51],[279,2,279,25],[271,2,273,25],[240,28,240,52],[262,30,262,51],[266,30,266,51],[270,30,270,51],[271,30,271,51],[272,30,272,51],[273,30,273,51],[274,30,274,51],[275,30,275,51],[276,30,276,51],[277,30,277,51],[278,30,278,51],[279,30,279,51],[270,2,270,25],[274,2,274,25],[275,2,275,25],[277,2,277,25],[278,2,278,25],[241,1,241,25],[240,1,240,25],[261,9,261,21],[265,2,265,25],[269,2,269,25],[235,4,235,25],[236,4,236,25],[237,4,238,25],[276,2,276,25],[263,30,264,52],[267,30,269,51],[200,28,200,52],[202,29,202,52],[205,29,205,52],[206,29,206,52],[207,29,207,52],[208,29,208,52],[209,29,209,52],[203,29,204,52],[226,29,226,52],[227,29,227,52],[217,29,217,52],[218,29,218,52],[219,29,219,52],[234,4,234,25],[223,8,223,20],[227,4,227,22],[230,4,230,22],[224,8,224,20],[233,4,233,25],[210,29,210,52],[211,29,211,52],[212,29,212,52],[213,29,213,52],[214,29,214,52],[215,29,215,52],[216,29,216,52],[73,28,74,51],[77,28,77,51],[75,28,76,51],[68,28,68,51],[69,28,69,51],[71,28,71,51],[72,28,72,51],[49,29,49,51],[50,29,50,51],[51,29,51,51],[52,29,52,51],[65,28,65,51],[66,28,66,51],[67,28,67,51],[70,28,70,51],[42,29,42,51],[43,29,43,51],[44,29,44,51],[45,29,45,51],[46,29,46,51],[47,29,47,51],[48,29,48,51],[41,27,41,51],[64,3,64,25],[52,4,52,23],[47,4,47,23],[48,4,48,23],[49,4,49,23],[50,4,50,23],[51,4,51,23],[64,29,64,51],[59,3,59,25],[61,3,62,25],[55,1,55,23],[57,3,57,23],[40,0,40,23],[42,2,42,23],[44,4,44,23],[45,4,45,23],[46,4,46,23],[80,1,80,25],[82,30,82,33],[82,34,82,38],[82,39,82,41],[67,3,67,25],[68,3,68,25],[69,3,69,25],[70,3,70,25],[71,3,71,25],[65,3,66,25],[53,29,53,51],[54,29,54,51],[55,29,55,51],[58,27,58,51],[59,29,59,51],[60,29,60,51],[61,29,61,51],[62,29,62,51],[63,29,63,51],[86,39,86,41],[86,42,86,45],[86,46,86,51],[82,42,82,45],[83,30,83,33],[83,34,83,38],[83,39,83,41],[83,42,83,45],[82,46,82,51],[83,46,83,51],[84,30,84,33],[84,34,84,38],[84,39,84,41],[84,42,84,45],[84,46,84,51],[122,29,122,53],[126,29,126,52],[128,29,128,52],[131,29,131,52],[136,29,137,16383],[87,34,87,38],[87,39,87,41],[87,42,87,45],[87,46,87,51],[89,46,89,51],[88,30,88,33],[88,34,88,38],[88,39,88,41],[88,42,88,45],[88,46,88,51],[120,27,120,52],[10,14,12,45],[30,28,30,49],[90,30,90,33],[91,30,91,33],[90,34,90,38],[91,34,91,38],[90,39,90,41],[91,39,91,41],[90,42,90,45],[91,42,91,45],[90,46,90,51],[91,46,91,51],[89,30,89,33],[89,34,89,38],[89,39,89,41],[89,42,89,45],[87,30,87,33],[85,30,85,33],[85,34,85,38],[85,39,85,41],[85,42,85,45],[85,46,85,51],[86,30,86,33],[86,34,86,38],[195,2,195,25],[195,29,195,51],[196,29,196,51],[197,29,197,51],[190,29,191,51],[193,29,194,51],[186,29,186,51],[189,29,189,51],[187,29,188,51],[192,29,192,51],[190,2,190,25],[191,2,191,25],[192,2,192,25],[193,2,193,25],[194,2,194,25],[139,29,140,53],[196,2,196,25],[197,2,197,25],[198,2,198,25],[124,29,125,53],[127,29,127,53],[129,29,130,53],[132,29,134,52],[152,1,153,25],[155,1,155,25],[158,1,158,25],[156,1,157,25],[198,29,198,51],[166,1,175,1],[176,1,185,1],[172,29,172,51],[173,29,173,51],[175,29,175,51],[176,29,176,51],[179,29,179,51],[180,29,180,51],[184,29,185,51],[161,29,161,51],[163,29,163,51]]}
[]
[]
[]
[]
[]
[]
[]
[]
[]
[]
[null,null,null,null,null,null,null,null,null,null,null,null,null,null,"非営利活動支援ツール　ビジネスモデル"]
[]
[]
[]
[]
[]
[]
[]
[]
[]
[]
[]
[]
[]
[]
[]
[]
[]
[]
[]
[null,null,null,null,null,null,null,null,null,null,null,null,null,null,null,null,null,null,null,null,null,null,null,null,null,null,null,null,"2017/09/06　OKADA　©"]
[]
[]
[]
[]
[]
[]
[]
[]
[]
["ビジネスモデル"]
[null,null,null,null,null,null,null,null,null,null,null,null,null,null,null,null,null,null,null,null,null,null,null,null,null,null,null,"☆ビジネスモデルの型"]
[null,null,"●ビジネスモデルでできること",null,null,null,null,null,null,null,null,null,null,null,null,null,null,null,null,null,null,null,null,null,null,null,null,null,"●","寄付・会費・ボランティア型"]
[null,null,null,null,null,null,null,null,null,null,null,null,null,null,null,null,null,null,null,null,null,null,null,null,null,null,null,null,null,"小規模。持続的に引き付ける仕組みが必要。"]
[null,null,null,1,"資源獲得の工夫"]
[null,null,null,2,"内部環境・外部環境のみなおし",null,null,null,null,null,null,null,null,null,null,null,null,null,null,null,null,null,null,null,null,null,null,null,"●","収益事業型"]
[null,null,null,3,"SWOT分析　　　  「我々の事業はどうなるのか？」",null,null,null,null,null,null,null,null,null,null,null,null,null,null,null,null,null,null,null,null,null,null,null,null,"独自の価値提供。"]
[null,null,null,4,"成長マトリックス　「機会の発見」"]
[null,null,null,5,"「収益＞費用＋法人管理費」の確認　(事業別損益状況)",null,null,null,null,null,null,null,null,null,null,null,null,null,null,null,null,null,null,null,null,null,null,null,"●","委託事業・補助金型"]
[null,null,null,6,"活動予算書作成　　「事業予算の積み上げ積算」",null,null,null,null,null,null,null,null,null,null,null,null,null,null,null,null,null,null,null,null,null,null,null,null,"事業規模が大きい法人もある。契約により事業が制限される。"]
[null,null,null,7,"ＭＥマトリックス　「排除すべき事業の確認」"]
[null,null,null,8,"自主収益事業のみなおし",null,null,null,null,null,null,null,null,null,null,null,null,null,null,null,null,null,null,null,null,null,null,null,"●","委託事業＋法人事業型"]
[null,null,null,9,"受益者と支援者と協力企業とのネットワーク構築",null,null,null,null,null,null,null,null,null,null,null,null,null,null,null,null,null,null,null,null,null,null,null,null,"法人事業とのマッチング"]
[]
[null,null,null,null,null,null,null,null,null,null,null,null,null,null,null,null,null,null,null,null,null,null,null,null,null,null,null,null,"●","他の団体・企業との役割連携型"]
[null,"【１】ビジネスモデルの作成",null,null,null,null,null,null,null,null,null,null,null,null,null,null,null,null,null,null,null,null,null,null,null,null,null,null,null,"ビジョン達成への役割をもつ複数の団体との連携事業"]
[]
[null,null,"Ａ","左端に定款規定の事業を記載します。(ロジックモデルと同じ)"]
[null,null,null,null,null,null,null,null,null,null,null,null,null,null,null,null,null,null,null,null,null,null,null,null,null,null,null,"☆顧客は誰か？"]
[null,null,"Ｂ","事業を構成するタスクに分解する。(ロジックモデルと同じ)",null,null,null,null,null,null,null,null,null,null,null,null,null,null,null,null,null,null,null,null,null,null,null,null,"●","第一の顧客　－　事業活動直接の受益者"]
[]
[null,null,"Ｃ","資源（人件費、物、知識）を資源流通と獲得の工夫をして、相互流通を考えてタスクに分配する。",null,null,null,null,null,null,null,null,null,null,null,null,null,null,null,null,null,null,null,null,null,null,null,null,"●","第二の顧客　－　支援者・寄付者・企業"]
[]
[null,null,null,null,null,null,null,null,null,null,null,null,null,null,null,null,null,null,null,null,null,null,null,null,null,null,null,null,"●","第三の顧客　－　事業者のスタッフや関係者"]
[null,null,"Ｄ","タスク(作業)の収益と費用をタスク収益費用の表に書き込む。"]
[null,null,null,"この表の収益と費用の合計を事業タスクで総合計すれば、その事業の収益と費用が計算できる。"]
[null,null,null,null,null,null,null,null,null,null,null,null,null,null,null,null,null,null,null,null,null,null,null,null,null,null,null,"☆","法人の目的(ビジョン)"]
[null,null,null,null,null,null,null,null,null,null,null,null,null,null,null,null,null,null,null,null,null,null,null,null,null,null,null,null,"顧客との感動の共有、みんなの幸せ、社会問題の改善"]
[null,null,null,null,null,null,null,null,null,null,null,null,null,null,null,null,null,null,null,null,null,null,null,null,null,null,null,null,"互助の地域コミュニティ構築"]
[null,null,null,null,null,null,null,null,null,null,null,null,null,null,null,null,null,null,null,null,null,null,null,null,null,null,null,null,"市民セクターの構築"]
[]
[]
[null,null,null,null,null,null,null,null,null,null,null,null,null,null,null,null,null,null,null,null,null,null,null,null,null,null,null,"☆","企業CSR"]
[null,null,null,null,null,null,null,null,null,null,null,null,null,null,null,null,null,null,null,null,null,null,null,null,null,null,null,null,"環境問題や消費者への配慮のみでなく、社員の雇用、労働条件への適切な対応も求められている。"]
[]
[null,null,null,null,null,null,null,null,null,null,null,null,null,null,null,null,null,null,null,null,null,null,null,null,null,null,null,null,"企業ニーズとＮＰＯ法人とのマッチング。活動の求める方向性が共有できれば、企業との協働事業が可能。"]
[]
[]
[]
[]
[null,"【ビジネスモデル】"]
[]
[null,null,null,null,null,null,null,null,null,null,null,null,null,null,null,null,null,null,null,null,null,null,null,null,null,null,null,null,null,null,"項目",null,null,null,"内容",null,null,null,null,"回数",null,null,"単価",null,null,null,"収益"]
[null,null,null,null,null,null,null,null,null,null,null,null,null,null,null,null,null,null,null,null,null,null,null,null,null,null,null,null,null,null,"講座",null,null,null,"受講料20x3",null,null,null,null,60,null,null,5000,null,null,null,{"$f":"AN84*AQ84","v":300000}]
[null,null,null,null,null,null,null,null,null,null,null,null,null,null,null,null,null,null,null,null,null,null,null,null,null,null,null,null,null,null,null,null,null,null,null,null,null,null,null,null,null,null,null,null,null,null,{"$f":"AN85*AQ85","v":0}]
[null,null,null,null,null,null,null,null,null,null,null,null,null,null,null,null,null,null,null,null,null,null,null,null,null,null,null,null,null,null,null,null,null,null,null,null,null,null,null,null,null,null,null,null,null,null,0]
[null,null,null,null,null,null,null,null,null,null,null,null,null,null,null,null,null,null,null,null,null,null,null,null,null,null,null,null,null,null,"合計",null,null,null,null,null,null,null,null,null,null,null,null,null,null,null,{"$f":"AU84+AU85+AU86","v":300000}]
[null,null,null,null,null,null,null,null,null,null,null,null,null,null,null,null,null,null,null,null,null,null,null,null,null,null,null,null,null,null,"項目",null,null,null,"内容",null,null,null,null,"回数",null,null,"単価",null,null,null,"費用"]
[null,null,null,null,null,null,null,null,null,null,null,null,null,null,null,null,null,null,null,null,null,null,null,null,null,null,null,null,null,null,"講座",null,null,null,"講師謝金",null,null,null,null,3,null,null,50000,null,null,null,{"$f":"AN89*AQ89","v":150000}]
[null,null,null,null,null,null,null,null,null,null,null,null,null,null,null,null,null,null,null,null,null,null,null,null,null,null,null,null,null,null,"講座",null,null,null,"人件費3x3",null,null,null,null,9,null,null,8000,null,null,null,{"$f":"AN90*AQ90","v":72000}]
[null,null,null,null,null,null,null,null,null,null,null,null,null,null,null,null,null,null,null,null,null,null,null,null,null,null,null,null,null,null,"講座",null,null,null,"会場費",null,null,null,null,3,null,null,8000,null,null,null,24000]
[null,null,null,null,null,null,null,null,null,null,null,null,null,null,null,null,null,null,null,null,null,null,null,null,null,null,null,null,null,null,"合計",null,null,null,null,null,null,null,null,null,null,null,null,null,null,null,{"$f":"AU89+AU90+AU91","v":246000}]
[]
[]
[]
[]
[]
[]
[]
[]
[]
[]
[]
[]
[]
[]
[]
[]
[]
[]
[]
[]
[]
[]
[]
[]
[]
[]
[]
[]
[null,"【事業別損益の状況】",null,null,null,null,null,null,null,null,null,null,null,null,null,null,null,null,null,null,null,null,null,null,null,null,null,"【２】事業別損益の状況"]
[]
[null,null,null,null,null,null,null,null,null,null,null,null,null,null,null,null,null,null,null,null,null,null,null,null,null,null,null,null,null,"収益＞(事業費用＋管理部門費用)でなければ継続した経営は困難。"]
[]
[null,null,null,null,null,null,null,null,null,null,null,null,null,null,null,null,null,null,null,null,null,null,null,null,null,null,null,null,null,"収益－(事業費用＋管理部門費用)＞借入返済金でなければ、借入はできない。"]
[]
[]
[null,null,null,null,null,null,null,null,null,null,null,null,null,null,null,null,null,null,null,null,null,null,null,null,null,null,null,null,null,"収益が不振であれば、法人継続存続のリスクが高い。"]
[]
[null,null,null,null,null,null,null,null,null,null,null,null,null,null,null,null,null,null,null,null,null,null,null,null,null,null,null,null,null,"事業が法人の目的に合わない事業である場合又は、定款に規定してない事業は、定款と整合性がなくなる。"]
[]
[]
[null,null,null,null,null,null,null,null,null,null,null,null,null,null,null,null,null,null,null,null,null,null,null,null,null,null,null,null,null,"大きな収益があっても、法人の目的に合わない事業は、定款と事業の見直しが必要であり、特定非営利活動の種類にない事業は、「その他の事業」になる。"]
[]
[]
[]
[null,null,null,null,null,null,null,null,null,null,null,null,null,null,null,null,null,null,null,null,null,null,null,null,null,null,null,null,null,"(管理部門費用の人件費)＞(事業人件費の合計)である場合。法人経営の見直しが必要。"]
[]
[]
[null,null,null,null,null,null,null,null,null,null,null,null,null,null,null,null,null,null,null,null,null,null,null,null,null,null,null,null,null,"収益＝(事業費用＋管理費用)　小規模な法人であれば、あり得るかも知れないが健全とは言えない。"]
[]
[]
[]
[null,null,null,null,null,null,null,null,null,null,null,null,null,null,null,null,null,null,null,null,null,null,null,null,null,null,null,"☆","会計"]
[null,null,null,null,null,null,null,null,null,null,null,null,null,null,null,null,null,null,null,null,null,null,null,null,null,null,null,null,"経常費用＝管理費(人件費・その他の経費)＋事業費(人件費・その他経費)"]
[]
[null,null,null,null,null,null,null,null,null,null,null,null,null,null,null,null,null,null,null,null,null,null,null,null,null,null,null,null,"管理費＝法人維持管理費(会報発行・HP運営・総会理事会開催運営・経理労務に係る費用)"]
[]
[]
[null,null,null,null,null,null,null,null,null,null,null,null,null,null,null,null,null,null,null,null,null,null,null,null,null,null,null,null,"純利益＝[{(収益 - 費用) - 一般管理費} + その他の事業収益 - その他の事業費用] + 特別利益 - 特別損失　　　　　　　　　　　　　　　　　　　　　　　　　　"]
[]
[]
[null,"ビジネスモデルで事業のタスクごとに計算した収益と費用を合計し、事業の収益と費用を計算する。",null,null,null,null,null,null,null,null,null,null,null,null,null,null,null,null,null,null,null,null,null,null,null,null,null,null,"特別損失＝企業の経常的な経営活動とは直接関わりのない、特別な要因で発生した臨時的な損失のこと。"]
[]
[]
[null,"収益＞（費用＋管理部門費用）でなければならない。",null,null,null,null,null,null,null,null,null,null,null,null,null,null,null,null,null,null,null,null,null,null,null,null,null,null,"税引前当期純利益＝経常利益（損失）＋特別利益－特別損失"]
[null,"非営利活動（収益＝０）＜費用である場合、費用＝（寄付又は会費）または、費用＝（委託事業＋法人自主事業収益）を確認する。　"]
[]
[]
[]
[null,"【３】SWOT分析"]
[null,null,null,null,null,null,null,null,null,null,null,null,null,null,null,null,null,null,null,null,null,null,null,null,null,null,null,null,"●","Strengths（強み）"]
[]
[null,null,"強みを見つけるSWOT分析",null,null,null,null,null,null,null,null,null,null,null,null,null,null,null,null,null,null,null,null,null,null,null,null,null,"●","Weaknesses（弱み）"]
[]
[null,null,"組織の強み",null,null,null,null,null,null,null,null,null,null,null,"組織の弱み",null,null,null,null,null,null,null,null,null,null,null,null,null,"●","Opportunities（機会）"]
[null,"内部環境","　　　　　　　　　　　　　　　"]
[null,null,null,null,null,null,null,null,null,null,null,null,null,null,null,null,null,null,null,null,null,null,null,null,null,null,null,null,"●","Ｔhreats（脅威）"]
[]
[]
[null,null,null,null,null,null,null,null,null,null,null,null,null,null,null,null,null,null,null,null,null,null,null,null,null,null,null,null,"☆","クロスSWOT"]
[]
[null,null,null,null,null,null,null,null,null,null,null,null,null,null,null,null,null,null,null,null,null,null,null,null,null,null,null,null,null,"1)強み×機会を掛け合わせ"]
[null,null,null,null,null,null,null,null,null,null,null,null,null,null,null,null,null,null,null,null,null,null,null,null,null,null,null,null,null,"　　強みを最大限に活かした市場機会を模索"]
[]
[null,null,null,null,null,null,null,null,null,null,null,null,null,null,null,null,null,null,null,null,null,null,null,null,null,null,null,null,null,"2)弱み×脅威を掛け合わせ"]
[null,"外部環境",null,null,null,null,null,null,null,null,null,null,null,null,null,null,null,null,null,null,null,null,null,null,null,null,null,null,null,"　　最悪のシナリオを回避するための方法について検討"]
[]
[]
[null,null,null,null,null,null,null,null,null,null,null,null,null,null,null,null,null,null,null,null,null,null,null,null,null,null,null,null,"☆","クロスSWOT分析の目的"]
[null,null,null,null,null,null,null,null,null,null,null,null,null,null,null,null,null,null,null,null,null,null,null,null,null,null,null,null,null,"法人の目的成功要因を導き出すこと。"]
[null,null,null,null,null,null,null,null,null,null,null,null,null,null,null,null,null,null,null,null,null,null,null,null,null,null,null,null,null,"「我々の目的（ビジョン）は何であるか？」"]
[null,null,null,null,null,null,null,null,null,null,null,null,null,null,null,null,null,null,null,null,null,null,null,null,null,null,null,null,null,"法人の目的を明確にした上で分析する。"]
[]
[null,null,null,null,null,null,null,null,null,null,null,null,null,null,null,null,null,null,null,null,null,null,null,null,null,null,null,null,null,"• 強み×機会：強みを活かし、機会を勝ち取るための方策をどうするか"]
[]
[]
[null,"☆","内部環境",null,null,null,null,null,null,null,null,null,null,null,null,null,null,null,null,null,null,null,null,null,null,null,null,null,null,"• 強み×脅威：強みを活かし、脅威を機会に変えるにはどうすれば良いか"]
[null,null,"内部環境の分析　"]
[null,null,"外部環境要因に左右されない調整可能な要因"]
[null,null,"役員交代、会員の増減、事業の廃止、新規事業の開始",null,null,null,null,null,null,null,null,null,null,null,null,null,null,null,null,null,null,null,null,null,null,null,null,null,null,"• 弱み×機会：弱みを補強し、機会を掴むための方策をどうするか"]
[]
[]
[null,"☆","外部環境",null,null,null,null,null,null,null,null,null,null,null,null,null,null,null,null,null,null,null,null,null,null,null,null,null,null,"• 弱み×脅威：弱みから、最悪のシナリオを回避するにはどうすれば良いか"]
[null,null,"外部環境の分析"]
[null,null,"変えることができない外部環境要因　"]
[null,null,"行政・社会の動向、技術革新、景気の影響、雇用状態、少子高齢化"]
[null,null,"他団体の動向"]
[null,null,"顧客ニーズ、支援者・寄付者の動向"]
[]
[null,"【４】成長マトリックス",null,null,null,null,null,null,null,null,null,null,null,null,null,null,null,null,null,null,null,null,null,null,null,null,null,"☆","多角化戦略"]
[]
[null,null,null,null,null,null,null,null,null,null,null,null,null,null,null,null,null,null,null,null,null,null,null,null,null,null,null,null,"1)","水平型多角化"]
[null,null,null,null,null,null,null,null,null,null,null,null,null,null,null,null,null,null,null,null,null,null,null,null,null,null,null,null,null,"同じ分野で事業を広げるタイプ。"]
[]
[null,null,null,null,null,null,null,null,null,null,null,null,null,null,null,null,null,null,null,null,null,null,null,null,null,null,null,null,"2)","垂直型多角化"]
[null,null,null,null,null,null,null,null,null,null,null,null,null,null,null,null,null,null,null,null,null,null,null,null,null,null,null,null,null,"事業に関連する下流業種から上流業種まで事業を広げるタイプ。"]
[null,null,null,null,null,null,null,null,null,null,null,null,null,null,null,null,null,null,null,null,null,null,null,null,null,null,null,null,null,"製造から販売まで手掛けるケース。"]
[]
[null,null,null,null,null,null,null,null,null,null,null,null,null,null,null,null,null,null,null,null,null,null,null,null,null,null,null,null,"3)","集中型多角化"]
[null,null,null,null,null,null,null,null,null,null,null,null,null,null,null,null,null,null,null,null,null,null,null,null,null,null,null,null,null,"現状の製品に近い製品（サービス）によって新しい市場へと進出するタイプ"]
[]
[null,null,null,null,null,null,null,null,null,null,null,null,null,null,null,null,null,null,null,null,null,null,null,null,null,null,null,null,"4)","集成型多角化（コングロマリット型多角化）"]
[null,null,null,null,null,null,null,null,null,null,null,null,null,null,null,null,null,null,null,null,null,null,null,null,null,null,null,null,null,"複合企業。多種の業種・企業を統合してできた巨大集団"]
[null,null,null,null,null,null,null,null,null,null,null,null,null,null,null,null,null,null,null,null,null,null,null,null,null,null,null,null,null,"まったく新しい製品（サービス）を市場に導入していくタイプ"]
[]
[]
[]
[]
[]
[]
[]
[]
[null,null,null,null,null,null,null,null,"成長マトリックス"]
[]
[null,null,null,"1)","浸透拡大戦略"]
[null,null,null,null,"他との競争に勝つことによって、マーケットシェアを高める戦略"]
[null,null,null,null,"一般顧客・支援者をロイヤルカスタマーへ。"]
[]
[null,null,null,"2)","事業開発戦略"]
[null,null,null,null,"新しいサービスを現状の顧客に投入することで成長を図る戦略"]
[null,null,null,null,"まったく新しいサービスを開発。新しい機能を加える。"]
[]
[null,null,null,"3)","受益者・支援者開拓戦略"]
[null,null,null,null,"現状のサービスを新しい顧客へと広げることで成長を図る。"]
[]
[null,null,null,"4)","多角化戦略"]
[null,null,null,null,"現状の受益者・利用者・サービスでない、新しい分野に進出して成長を図る戦略。"]
[]
[]
[null,"【５】MEマトリックス",null,null,null,null,null,null,null,null,null,null,null,null,null,null,null,null,null,null,null,null,null,null,null,null,null,null,"【６】マズローの欲求段階"]
[]
[]
[]
[]
[]
[]
[]
[]
[]
[]
[]
[]
[]
[]
[]
[]
[]
[]
[]
[]
[]
[null,null,null,null,null,null,null,null,null,null,null,null,null,null,null,null,null,null,null,null,null,null,null,null,null,null,null,null,null,"1)","生理的欲求"]
[null,null,null,null,null,null,null,null,null,null,null,null,null,null,null,null,null,null,null,null,null,null,null,null,null,null,null,null,null,null,"空気、水、食べ物、睡眠など、人が生きていく上で欠かせない基本的な欲求。これが満たされないと、病気になり、いらだち、不快感を覚える。"]
[null,"1)","理想主義"]
[null,null,"使命の度合いが最高であるが収益がない。"]
[null,null,"非営利活動では、この事業がある。この事業のみでは、存続継続的な経営はできない。",null,null,null,null,null,null,null,null,null,null,null,null,null,null,null,null,null,null,null,null,null,null,null,null,null,null,"2)","安全欲求"]
[null,null,null,null,null,null,null,null,null,null,null,null,null,null,null,null,null,null,null,null,null,null,null,null,null,null,null,null,null,null,"正を脅かされないことの欲求で、生命として基本的な欲求。絶え間なく暴力などにより生存を脅かされると、その危険を回避し安全を確保することに必死になり、それ以外のことが考えにくくなる。"]
[]
[null,"2)","花形"]
[null,null,"使命の度合いが最高で収益性が高い。"]
[null,null,"受益者に負担をかけないように考える非営利活動では、資源獲得の工夫が必要。受益者でなく寄付や支援者に負担していただく。",null,null,null,null,null,null,null,null,null,null,null,null,null,null,null,null,null,null,null,null,null,null,null,null,null,null,"3)","社会的帰属欲求"]
[null,null,null,null,null,null,null,null,null,null,null,null,null,null,null,null,null,null,null,null,null,null,null,null,null,null,null,null,null,null,"会社、家族、国家などあるグループへ帰属していたいという欲求。"]
[]
[null,null,null,null,null,null,null,null,null,null,null,null,null,null,null,null,null,null,null,null,null,null,null,null,null,null,null,null,null,"4)","自我欲求"]
[null,"3)","落ちこぼれ",null,null,null,null,null,null,null,null,null,null,null,null,null,null,null,null,null,null,null,null,null,null,null,null,null,null,null,"他人から賞賛を求める欲求。承認の欲求。（グループへの帰属が前提）"]
[null,null,"使命に貢献せず、収益がない事業。「廃棄すべき事業」"]
[null,null,null,null,null,null,null,null,null,null,null,null,null,null,null,null,null,null,null,null,null,null,null,null,null,null,null,null,null,"5)","自己実現欲求"]
[null,"4)","乳牛",null,null,null,null,null,null,null,null,null,null,null,null,null,null,null,null,null,null,null,null,null,null,null,null,null,null,null,"あるべき自分になりたいという欲求。"]
[null,null,"使命に貢献しないが、収益が高い。「その他の事業」",null,null,null,null,null,null,null,null,null,null,null,null,null,null,null,null,null,null,null,null,null,null,null,null,null,null,null,"無償性が含まれているのが特徴。"]
[null,"【７】非営利活動　資源獲得の工夫"]
[]
[null,null,null,"営利組織　一般的資源流通経済活動",null,null,null,null,null,null,null,null,null,null,null,null,null,null,null,null,null,null,null,null,null,null,null,null,"非営利組織の資源流通"]
[]
[]
[]
[]
[]
[]
[]
[]
[]
[]
[]
[]
[]
[]
[]
[]
[null,null,"営利組織の物流は直線的であるが、非営利組織では、支援者・寄付者の存在とその物流を支援する中間支援センターが必要になる。"]
[]
[]
[null,null,"Ａ．　サービス・講座・研修　＜－＞　感謝、地域通貨、参加費"]
[null,null,"Ｂ．　受益者の生産物や感謝を仲介　＜－＞　ボランティア、人材"]
[null,null,"Ｃ．　資源提供、専門家コンサル　＜－＞　専門知識、事業報告、人材バンク"]
[null,null,"Ｄ．　地域通貨発行、活動広報情報提供　＜－＞　情報取得"]
[null,null,"Ｅ．　情報提供　＜－＞　寄付、人材"]
[null,null,"Ｆ．　感動の共有"]
[null,null,"それぞれ片側通行でなく、双方にやり取りがある流通でなければ、経済活動とは言えない。",null,null,null,null,null,null,null,null,null,null,null,null,null,null,null,null,null,null,null,null,null,null,null,null,"費用負担を受益者からいただこうとしない非営利活動では、支援者や寄付者を巻き込んだ資源の流通が必要になる。"]
[]
[null,null,null,null,null,null,null,null,null,null,null,null,null,null,null,null,null,null,null,null,null,null,null,null,null,null,null,"非営利活動の流通を支援する中間支援センターの役割は、益々重要になる。"]
[null,null,"非営利活動では、営利活動より、その流通経路は複雑であるから、中間支援センターの支援を必要とする。",null,null,null,null,null,null,null,null,null,null,null,null,null,null,null,null,null,null,null,null,null,null,null,null,"中間支援センターは、必要な資源獲得を支援する物流の市場。"]
[]
[null,null,null,null,null,null,null,null,null,null,null,null,null,null,null,null,null,null,null,null,null,null,null,null,null,null,null,"中間支援センターの役割"]
[null,null,null,null,null,null,null,null,null,null,null,null,null,null,null,null,null,null,null,null,null,null,null,null,null,null,null,1,"資源・専門知識提供とアーカイブ。　人材バンク、コンサルタントサポート"]
[null,null,null,null,null,null,null,null,null,null,null,null,null,null,null,null,null,null,null,null,null,null,null,null,null,null,null,2,"活動成果評価　（ソーシャルインパクト評価）"]
[null,null,null,null,null,null,null,null,null,null,null,null,null,null,null,null,null,null,null,null,null,null,null,null,null,null,null,3,"共助の地域コミュニケーション構築"]
[null,null,null,null,null,null,null,null,null,null,null,null,null,null,null,null,null,null,null,null,null,null,null,null,null,null,null,4,"ＮＰＯ記者育成と取材・広報。人材育成・人材バンク"]
[null,null,null,null,null,null,null,null,null,null,null,null,null,null,null,null,null,null,null,null,null,null,null,null,null,null,null,5,"クラウドファンディングによる寄付集めとコミュニケーション"]
[null,null,null,null,null,null,null,null,null,null,null,null,null,null,null,null,null,null,null,null,null,null,null,null,null,null,null,6,"地域通貨発行"]

{"sheet":"定款","index":3,"n_rows":113,"n_cols":23,"rows_kept":113,"cut":false,"hidden":false,"merged":[[114,21,114,38],[115,21,115,38],[102,21,111,38],[112,21,112,38],[113,21,113,38],[98,21,98,38],[99,21,99,38],[100,21,100,38],[111,1,111,18],[93,21,93,38],[94,21,94,38],[95,21,95,38],[96,21,96,38],[97,21,97,38],[103,1,109,18],[98,2,98,18],[88,2,96,18],[100,1,101,18],[101,21,101,38],[88,21,88,38],[89,21,89,38],[90,21,90,38],[91,21,91,38],[92,21,92,38],[78,21,79,38],[80,21,81,38],[76,21,76,38],[77,21,77,38],[67,21,67,38],[68,21,68,38],[69,21,69,38],[70,21,70,38],[71,21,71,38],[72,21,72,38],[73,21,73,38],[74,21,74,38],[75,21,75,38],[43,22,44,38],[45,22,46,38],[47,22,49,38],[51,22,52,38],[47,3,47,18],[48,3,48,18],[51,3,51,18],[49,3,50,18],[7,11,8,29],[21,22,21,35],[29,1,29,18],[33,0,33,18],[35,1,35,18],[29,21,29,38],[30,22,33,38],[35,22,35,38],[32,2,32,18],[30,2,31,18],[36,2,36,20],[70,2,70,18],[71,2,71,18],[72,2,72,18],[42,3,42,18],[45,3,45,18],[43,3,43,18],[44,3,44,18],[46,3,46,18],[37,2,37,20],[39,3,39,18],[40,3,40,18],[58,1,58,19],[69,2,69,18],[67,1,67,18],[59,2,61,18],[73,2,73,18],[74,2,74,18],[75,2,75,18],[76,2,76,18],[41,3,41,20],[63,2,63,18],[64,2,64,18],[77,3,77,18],[86,2,86,18],[87,2,87,18],[81,2,81,18],[82,2,82,18],[83,2,83,18],[84,2,84,18],[85,2,85,18],[78,2,78,18],[79,2,79,18],[58,21,58,38],[60,21,60,38],[61,21,61,38],[62,21,62,38],[66,21,66,38],[63,21,63,38],[64,21,64,38],[65,21,65,38]]}
[]
[]
[]
[]
[]
[]
[]
[null,null,null,null,null,null,null,null,null,null,null,"特定非営利活動法人　定款"]
[]
[]
[]
[]
[]
[]
[]
[]
[]
[]
[]
[]
[]
[null,null,null,null,null,null,null,null,null,null,null,null,null,null,null,null,null,null,null,null,null,null,"2017/09/09　OKADA　©"]
[]
[]
[]
[]
[]
[]
[]
[null,"【定款】",null,null,null,null,null,null,null,null,null,null,null,null,null,null,null,null,null,null,null,"２）　相対的記載事項　（ＮＰＯWEB　抜粋）"]
[null,null,"定款は、組織の目的・組織・活動・構成員・業務執行などについての基本規則、およびその内容を紙や電子媒体に記録したもの。",null,null,null,null,null,null,null,null,null,null,null,null,null,null,null,null,null,null,null,"定款に記載を欠いても定款自体が無効となることはないけれども、定款に記載しておかなければその事項について効力が生じない事項があります。そういう事項を相対的記載事項と呼びます。相対的記載事項は、NPO法ですでにルールが決められている事項について、定款で別に定めればNPO法の要件よりも定款の記載が優先されるというものです。"]
[]
[]
["☆定款記載事項の分類"]
[]
[null,"1)　絶対的記載事項　（法第十一条）",null,null,null,null,null,null,null,null,null,null,null,null,null,null,null,null,null,null,null,null,"相対的記載事項には次のようなものがあります。"]
[null,null,"定款に必ず記載しなければならない事項"]
[null,null,"これらが記載してなければ、定款自体が無効となる。",null,null,null,null,null,null,null,null,null,null,null,null,null,null,null,null,null,null,null,"・理事の代表権の制限（第１６条）"]
[null,null,null,null,null,null,null,null,null,null,null,null,null,null,null,null,null,null,null,null,null,null,"・理事による法人の業務の決定の方法（第１７条）"]
[null,null,1,"目的",null,null,null,null,null,null,null,null,null,null,null,null,null,null,null,null,null,null,"・定款の変更に係わる特別多数要件の変更（第２５条第２項）"]
[null,null,2,"名称",null,null,null,null,null,null,null,null,null,null,null,null,null,null,null,null,null,null,"・社員による臨時総会の開催の請求に必要な社員数（第３０条、民法６１条）"]
[null,null,3,"その行う特定非営利活動の種類及び当該特定非営利活動に係る事業の種類",null,null,null,null,null,null,null,null,null,null,null,null,null,null,null,null,null,null,"・理事その他の役員に委任される法人の事務（第３０条、民法６３条）"]
[null,null,4,"主たる事務所およびその他の事務所の所在地",null,null,null,null,null,null,null,null,null,null,null,null,null,null,null,null,null,null,"・総会の決議事項の事前通知の原則の例外規定（第３０条、民法６４条）"]
[null,null,5,"社員の資格の得喪に関する事項",null,null,null,null,null,null,null,null,null,null,null,null,null,null,null,null,null,null,"・「各社員の表決権は平等であること」を変更する規定　　　　　　　　　　（第３０条、民法６５条第３項）"]
[null,null,6,"役員に関する事項"]
[null,null,7,"会議に関する事項",null,null,null,null,null,null,null,null,null,null,null,null,null,null,null,null,null,null,"・総会に関して社員の書面による表決及び代理人を出席させることができる権限に関する規定を変更する規定（第３０条、民法６５条第３項）"]
[null,null,8,"資産に関する事項"]
[null,null,9,"会計に関する事項",null,null,null,null,null,null,null,null,null,null,null,null,null,null,null,null,null,null,"・「社員総会の決議」、「目的とする特定非営利活動に係る事業の成功の不能」、「社員の欠乏」、「合併」、「破産」、「第４３条の規定による設立の認証の取消」以外の解散事由（第３１条第２項）"]
[null,null,10,"事業年度"]
[null,null,11,"その他の事業を行う場合には、その種類その他当該そのほかの事業に関する事項"]
[null,null,null,null,null,null,null,null,null,null,null,null,null,null,null,null,null,null,null,null,null,null,"・残余財産の帰属先（第３２条第１項）"]
[null,null,12,"解散に関する事項",null,null,null,null,null,null,null,null,null,null,null,null,null,null,null,null,null,null,"・合併を決定する際の社員総会の議決における特別多数要件の変更　　　　　　　（第３４条第２項）"]
[null,null,13,"定款の変更に関する事項"]
[null,null,14,"広告の方法",null,null,null,null,null,null,null,null,null,null,null,null,null,null,null,null,null,null,"・解散の決議に関する特別多数要件の変更（第４０条、民法６９条）"]
[null,null,null,null,null,null,null,null,null,null,null,null,null,null,null,null,null,null,null,null,null,null,"・解散の場合に、理事以外を清算人に選任する規定（第４０条、民法７４条）"]
[]
[]
[]
[null,"３）任意的記載事項",null,null,null,null,null,null,null,null,null,null,null,null,null,null,null,null,null,null,"☆"," 特定非営利活動促進法別表 "]
[null,null,"公序良俗または会社の本質に反しない限り、いかなる事項でも定めることができます。事業年度、定時株主総会などがこれに当たります。\n定款外で定めてもよい事項ですが、定款に盛り込むことで内容が明確になります。"]
[null,null,null,null,null,null,null,null,null,null,null,null,null,null,null,null,null,null,null,null,null,"① 保健、医療又は福祉の増進を図る活動 "]
[null,null,null,null,null,null,null,null,null,null,null,null,null,null,null,null,null,null,null,null,null,"② 社会教育の推進を図る活動"]
[null,null,null,null,null,null,null,null,null,null,null,null,null,null,null,null,null,null,null,null,null,"③ まちづくりの推進を図る活動"]
[null,null,"部会又は委員会の設置",null,null,null,null,null,null,null,null,null,null,null,null,null,null,null,null,null,null,"④ 観光の振興を図る活動"]
[null,null,"役員選任の方法、役員の職務委任の方法、代表理事の任期",null,null,null,null,null,null,null,null,null,null,null,null,null,null,null,null,null,null,"⑤ 農山漁村又は中山間地域の振興を図る活動 "]
[null,null,null,null,null,null,null,null,null,null,null,null,null,null,null,null,null,null,null,null,null,"⑥ 学術、文化、芸術又はスポーツの振興を図る活動"]
[null,null,null,null,null,null,null,null,null,null,null,null,null,null,null,null,null,null,null,null,null,"⑦ 環境の保全を図る活動"]
["☆","総会の権能・理事会の権能",null,null,null,null,null,null,null,null,null,null,null,null,null,null,null,null,null,null,null,"⑧ 災害救援活動 "]
[null,null,null,null,null,null,null,null,null,null,null,null,null,null,null,null,null,null,null,null,null,"⑨ 地域安全活動"]
[null,"１）","総会の権能",null,null,null,null,null,null,null,null,null,null,null,null,null,null,null,null,null,null,"⑩ 人権の擁護又は平和の推進を図る活動"]
[null,null,"(1)　定款の変更　（法第２５条、第２６条）",null,null,null,null,null,null,null,null,null,null,null,null,null,null,null,null,null,null,"⑪ 国際協力の活動"]
[null,null,"(2)　解散　（法第31条の２）",null,null,null,null,null,null,null,null,null,null,null,null,null,null,null,null,null,null,"⑫ 男女共同参画社会の形成の促進を図る活動"]
[null,null,"(3)　合併　（法第３４条）",null,null,null,null,null,null,null,null,null,null,null,null,null,null,null,null,null,null,"⑬ 子どもの健全育成を図る活動 "]
[null,null,"(4)　事業計画及び活動予算",null,null,null,null,null,null,null,null,null,null,null,null,null,null,null,null,null,null,"⑭ 情報化社会の発展を図る活動"]
[null,null,"(5)　事業報告及び活動決算",null,null,null,null,null,null,null,null,null,null,null,null,null,null,null,null,null,null,"⑮ 科学技術の振興を図る活動 "]
[null,null,"(6)　役員の選任又は解任、職務及び報酬",null,null,null,null,null,null,null,null,null,null,null,null,null,null,null,null,null,null,"⑯ 経済活動の活性化を図る活動"]
[null,null,"(7)　借入金(その事業年度の収益をもって償還する短期借入金を除く。",null,null,null,null,null,null,null,null,null,null,null,null,null,null,null,null,null,null,"⑰ 職業能力の開発又は雇用機会の拡充を支援する活動"]
[null,null,null,"その他の新たな義務の負担及び権利の放棄",null,null,null,null,null,null,null,null,null,null,null,null,null,null,null,null,null,"⑱ 消費者の保護を図る活動"]
[null,null,"(8) その他運営に関する重要事項",null,null,null,null,null,null,null,null,null,null,null,null,null,null,null,null,null,null,"⑲ 前各号に掲げる活動を行う団体の運営又は活動に関する連絡、助言又は援助の活動 "]
[]
[null,null,null,null,null,null,null,null,null,null,null,null,null,null,null,null,null,null,null,null,null,"⑳ 前各号に掲げる活動に準ずる活動として都道府県又は指定都市の条例で定める活動"]
[null,"2)","理事会の権能"]
[null,null,"(1)　総会に付議すべき事項"]
[null,null,"(2)　総会の議決した事項の執行に関する事項"]
[null,null,"(3)　その他総会の議決を要しない皆無の執行にかんする事項"]
[null,null,"(4)　事業計画及び活動予算の変更"]
[null,null,"(5)　事務局の組織及び運営"]
[null,"☆","事業報告書等の情報公開"]
[null,null,"① 役員名簿\n② 定款\n③ 認証・登記に関する書類の写し\n④ 事業報告書\n⑤ 財産目録\n⑥ 貸借対照表\n⑦ 活動計算書\n⑧ 年間役員名簿（前事業年度において役員であった者の氏名及び住所又は居所並びに各役員\nについての報酬の有無を記載した名簿）\n⑨ 社員のうち 10 人以上の者の名簿",null,null,null,null,null,null,null,null,null,null,null,null,null,null,null,null,null,"☆","所轄庁へ届け出"]
[null,null,null,null,null,null,null,null,null,null,null,null,null,null,null,null,null,null,null,null,null,"設立－登記、財産目録"]
[null,null,null,null,null,null,null,null,null,null,null,null,null,null,null,null,null,null,null,null,null,"役員の使命又は住所もしくは居場所に変更があった場合－変更後の役員名簿"]
[null,null,null,null,null,null,null,null,null,null,null,null,null,null,null,null,null,null,null,null,null,"定款の変更－社員総会の議事録、変更後の定款"]
[null,null,null,null,null,null,null,null,null,null,null,null,null,null,null,null,null,null,null,null,null,"解散－届け出"]
[null,null,null,null,null,null,null,null,null,null,null,null,null,null,null,null,null,null,null,null,null,"清算人の届け出－氏名、住所"]
[null,null,null,null,null,null,null,null,null,null,null,null,null,null,null,null,null,null,null,null,null,"生産結了の届け出－清算人はその旨を届け出"]
[null,null,null,null,null,null,null,null,null,null,null,null,null,null,null,null,null,null,null,null,null,"代表者の氏名の変更－その旨を届け出"]
[null,null,null,null,null,null,null,null,null,null,null,null,null,null,null,null,null,null,null,null,null,"登記－登記事項証明書、財産目録"]
[]
[null,"☆","法人税法上の収益事業",null,null,null,null,null,null,null,null,null,null,null,null,null,null,null,null,null,"☆","登記事項"]
[null,null,null,null,null,null,null,null,null,null,null,null,null,null,null,null,null,null,null,null,null,"1) 　名称"]
[null,"　法人税法上の収益事業とは、次の３４種類の事業を、継続して事業場を設けて営むことをいいます。この事業には、その収益事業の事業活動の一環として、あるいは関連して付随的に行われる行為も含まれます。",null,null,null,null,null,null,null,null,null,null,null,null,null,null,null,null,null,null,null,"2)　事務所の所在場所"]
[null,null,null,null,null,null,null,null,null,null,null,null,null,null,null,null,null,null,null,null,null,"3)　目的及び業務"]
[null,null,null,null,null,null,null,null,null,null,null,null,null,null,null,null,null,null,null,null,null,"「目的等」\n目的及び事業\nこの法人は、○○に対して、○○に関する事業を行い、○○に寄与することを目的とする。この法人は、上記の目的を達成するため、次に掲げる種類の特定非営利活動を行う。\n１　○○活動\n２　○○活動\nこの法人は、上記の目的を達成するため、次の事業を行う。\n１　特定非営利活動に係る事業\n（１）○○事業\n（２）○○事業\n２　その他の事業\n（１）○○事業\n（２）○○事業"]
[null,"（１）物品販売業　（２）不動産販売業　（３）金銭貸付業　（４）物品貸付業　（５）不動産貸付業　（６）製造業　（７）通信業　（８）運送業　（９）倉庫業　（１０）請負業　（１１）印刷業　（１２）出版業　（１３）写真業　（１４）席貸業　（１５）旅館業　（１６）料理飲食業　（１７）周旋業　（１８）代理業　（１９）仲立業　（２０）問屋業　（２１）鉱業　（２２）土石採取業　（２３）浴場業　（２４）理容業　（２５）美容業　（２６）興行業　（２７）遊技所業　（２８）遊覧所業　（２９）医療保健業　（３０）技芸・学力教授業　（３１）駐車場業　（３２）信用保証業　（３３）無体財産権の提供業　（３４）労働者派遣業"]
[]
[]
[]
[]
[]
[]
[]
[null,"事務のてびき　Ⅸ－１、Ⅸ-2"]
[null,null,null,null,null,null,null,null,null,null,null,null,null,null,null,null,null,null,null,null,null,"4)　代表者り氏名、住所、資格"]

{"sheet":"マネジメント","index":4,"n_rows":109,"n_cols":33,"rows_kept":109,"cut":false,"hidden":false,"merged":[[11,16,13,43],[31,32,31,47],[41,1,41,25],[43,2,43,25],[44,2,44,25],[43,28,43,51],[42,28,42,51],[45,2,45,25],[46,2,46,25],[47,2,47,25],[48,2,48,25],[49,2,49,25],[55,5,56,25],[57,5,58,25],[59,5,60,25],[50,2,50,25],[51,2,51,25],[53,3,53,25],[54,4,54,25],[68,4,68,25],[69,4,69,25],[70,4,71,25],[61,5,61,25],[63,3,63,25],[64,4,64,25],[65,4,65,25],[66,4,66,25],[45,28,45,51],[46,30,46,51],[47,30,47,51],[48,30,48,51],[49,30,49,51],[54,32,56,51],[58,30,58,16383],[59,32,59,51],[50,30,50,51],[51,30,51,51],[52,30,52,51],[53,30,53,51],[60,32,60,51],[61,32,61,51],[62,32,62,51],[63,32,64,51],[65,32,65,51],[68,31,68,51],[69,31,69,51],[71,31,71,51],[72,31,72,51],[73,31,73,51],[79,31,79,51],[80,31,80,51],[74,31,74,51],[75,31,75,51],[76,31,76,51],[77,31,77,51],[78,31,78,51],[96,2,96,25],[82,2,82,25],[84,2,85,25],[89,2,89,25],[87,2,87,25],[103,2,103,25],[105,2,106,25],[82,28,82,51],[99,28,99,50],[102,28,102,50],[103,28,103,50],[104,28,104,50],[86,28,87,50],[97,2,97,25],[98,2,98,25],[99,2,99,25],[101,2,101,25],[91,2,91,25],[92,2,92,25],[93,2,93,25],[95,2,95,25],[108,2,108,25],[109,2,109,25],[110,2,110,25],[84,28,84,50],[85,28,85,50],[88,28,88,50],[89,28,89,50],[90,28,90,50],[91,28,91,50],[92,28,92,50],[93,28,93,50],[94,28,94,50],[95,28,95,50],[96,28,96,50],[97,28,97,50],[98,28,98,50]]}
[]
[]
[]
[]
[]
[]
[]
[]
[]
[]
[]
[null,null,null,null,null,null,null,null,null,null,null,null,null,null,null,null,"Management"]
[]
[]
[]
[]
[]
[]
[]
[]
[]
[]
[]
[]
[]
[]
[]
[]
[]
[]
[]
[null,null,null,null,null,null,null,null,null,null,null,null,null,null,null,null,null,null,null,null,null,null,null,null,null,null,null,null,null,null,null,null,"２０１７／０９／１２　OKADA　©"]
[]
[]
[]
[]
[]
[]
[]
[]
[]
[null,"【マネジメント】"]
[null,null,null,null,null,null,null,null,null,null,null,null,null,null,null,null,null,null,null,null,null,null,null,null,null,null,null,"●","マネジメントの基本と原則"]
[null,"●","マネジメントの機能",null,null,null,null,null,null,null,null,null,null,null,null,null,null,null,null,null,null,null,null,null,null,null,null,null,"マネジメントとは、考え方であり、その基本と原則がある。"]
[null,null,"（１）　管理的機能"]
[null,null,"　　　資産管理・人事管理等　生産性向上のための科学的管理手法",null,null,null,null,null,null,null,null,null,null,null,null,null,null,null,null,null,null,null,null,null,null,null,null,null,"（１）　基本と原則"]
[null,null,"　　　PDCAサイクル　数値目標をおき、数値で管理する。"]
[null,null,"　　　製品からスタートする管理手法",null,null,null,null,null,null,null,null,null,null,null,null,null,null,null,null,null,null,null,null,null,null,null,null,null,null,null,"A　組織と社会"]
[null,null,"　　　組織内部管理　　インプットとアウトプットの管理",null,null,null,null,null,null,null,null,null,null,null,null,null,null,null,null,null,null,null,null,null,null,null,null,null,null,null,"　　 組織は、社会の問題を解決する社会貢献を果たす。"]
[null,null,null,null,null,null,null,null,null,null,null,null,null,null,null,null,null,null,null,null,null,null,null,null,null,null,null,null,null,null,"　　  社会は、組織に「自由と尊厳」を与える。"]
[null,null,"（２）　創造的機能",null,null,null,null,null,null,null,null,null,null,null,null,null,null,null,null,null,null,null,null,null,null,null,null,null,null,null,"　　  継続的存続の認知と支援をする。"]
[null,null,"　　　顧客（人）からスタートする管理手法"]
[null,null,null,null,null,null,null,null,null,null,null,null,null,null,null,null,null,null,null,null,null,null,null,null,null,null,null,null,null,null,"Ｂ　個人と組織"]
[null,null,null,"1)実施方法",null,null,null,null,null,null,null,null,null,null,null,null,null,null,null,null,null,null,null,null,null,null,null,null,null,null,"　　   個人は組織を通じて自己実現をする。"]
[null,null,"　　　",null,"A　ロジックモデルでのアウトカムから管理指標を作成する。",null,null,null,null,null,null,null,null,null,null,null,null,null,null,null,null,null,null,null,null,null,null,null,null,null,null,null,"組織は、個人に生活の糧、社会的地位、社会における役割、自己実現の機会、チャレンジの機会、社会貢献への機会を与える。"]
[null,null,"　　　",null,"B","事業実施前に、事業の対象である受益者である顧客や支援者などのニーズや状態を調査しておく。"]
[]
[null,null,null,null,"C","事業実施の中間管理時期である短期・中期・長期の時点で、再調査を実施。"]
[null,null,null,null,null,null,null,null,null,null,null,null,null,null,null,null,null,null,null,null,null,null,null,null,null,null,null,null,null,null,"C　マネジメントの役割"]
[null,null,null,null,"D","調査結果から事業実施前と実施後とを比較して、事業成果の評価をする。",null,null,null,null,null,null,null,null,null,null,null,null,null,null,null,null,null,null,null,null,null,null,null,null,null,null,"働く人の強みを活かし、活き活きとする。"]
[null,null,null,null,null,null,null,null,null,null,null,null,null,null,null,null,null,null,null,null,null,null,null,null,null,null,null,null,null,null,null,null,"組織が使命や目的を果たせるようにする。"]
[null,null,null,null,"E","成果がなければ、改善と改革をする。",null,null,null,null,null,null,null,null,null,null,null,null,null,null,null,null,null,null,null,null,null,null,null,null,null,null,"社会の問題解決に貢献する。"]
[null,null,null,null,null,null,null,null,null,null,null,null,null,null,null,null,null,null,null,null,null,null,null,null,null,null,null,null,null,null,null,null,"向かう方向性と目的を共有して前進させる。"]
[null,null,null,"2)行動",null,null,null,null,null,null,null,null,null,null,null,null,null,null,null,null,null,null,null,null,null,null,null,null,null,null,null,null,"ビジョンと現実とのギャプを埋める努力を促し、イノベーションを果たす。"]
[null,null,null,null,"事業を実施したことによる組織の外の状態や変化を管理指標から評価する。"]
[null,null,null,null,"その結果から、行動の指針を決め行動に移す。",null,null,null,null,null,null,null,null,null,null,null,null,null,null,null,null,null,null,null,null,null,null,null,null,null,null,null,"内部環境・外部環境を観察させ、変化への対応を促す。"]
[null,null,null,null,"既存のもの管理をし、新しいものを創造する。"]
[]
[null,null,null,"3)","管理指標",null,null,null,null,null,null,null,null,null,null,null,null,null,null,null,null,null,null,null,null,null,null,null,null,null,"Ｄ","仕組み"]
[null,null,null,null,"アウトカム管理指標は、数値で表すことが困難な場合が多い。",null,null,null,null,null,null,null,null,null,null,null,null,null,null,null,null,null,null,null,null,null,null,null,null,null,null,"マネジメントの基本と原則に沿った組織内や社会に仕組みが必要。"]
[null,null,null,null,"事前調査から得た状態を極力数値化して、比較しやすい成果目標としておく。"]
[null,null,null,null,null,null,null,null,null,null,null,null,null,null,null,null,null,null,null,null,null,null,null,null,null,null,null,null,null,null,null,"活動評価方法と評価。"]
[null,null,null,null,null,null,null,null,null,null,null,null,null,null,null,null,null,null,null,null,null,null,null,null,null,null,null,null,null,null,null,"個人のスキルアップの為の研修や講座参加の機会"]
[null,null,null,null,null,null,null,null,null,null,null,null,null,null,null,null,null,null,null,null,null,null,null,null,null,null,null,null,null,null,null,"資源獲得と流通の社会的な仕組み"]
[null,null,null,null,null,null,null,null,null,null,null,null,null,null,null,null,null,null,null,null,null,null,null,null,null,null,null,null,null,null,null,"専門家育成と専門家による伴奏活動支援ネットワーク"]
[null,null,null,null,null,null,null,null,null,null,null,null,null,null,null,null,null,null,null,null,null,null,null,null,null,null,null,null,null,null,null,"人材バンク"]
[]
[null,null,null,null,null,null,null,null,null,null,null,null,null,null,null,null,null,null,null,null,null,null,null,null,null,null,null,null,null,null,null,"個人の強みを活かし支援する仕組みが、安心と安全を生む。"]
[]
[]
[]
[]
[null,"●","非営利活動法人の共通使命　基本と原則",null,null,null,null,null,null,null,null,null,null,null,null,null,null,null,null,null,null,null,null,null,null,null,null,"●","中間支援センターの役割　　基本と原則"]
[]
[null,null,"１．所有者は、役員でも社員でもなく、社会のインフラを構成する公器である。",null,null,null,null,null,null,null,null,null,null,null,null,null,null,null,null,null,null,null,null,null,null,null,null,null,"1．非営利活動組織の地域の要であり、資源流通の市場である。"]
[]
[null,null,null,null,null,null,null,null,null,null,null,null,null,null,null,null,null,null,null,null,null,null,null,null,null,null,null,null,"２．センターに繋がる非営利組織がネットワークで繋がり共助の社会をクラスター型に構成する、市民セクターを成す。"]
[null,null,"２．誰でもが自由に参加でき、何時でも退会できる組織である。"]
[]
[null,null,"３．共助社会の地域コミュニティを構築する。",null,null,null,null,null,null,null,null,null,null,null,null,null,null,null,null,null,null,null,null,null,null,null,null,null,"3．専門知識を蓄積し、専門家を育成して、非営利組織を支援する。"]
[]
[null,null,"４．第一の顧客は、受益者",null,null,null,null,null,null,null,null,null,null,null,null,null,null,null,null,null,null,null,null,null,null,null,null,null,"4．情報収集・取材して、誰でもが活動を評価できる情報を広報する。"]
[null,null,"　　第二の顧客は、寄付者、支援者、企業、ボランティア"]
[null,null,"　　第三の顧客は、非営利活動組織の関係者、スタッフ",null,null,null,null,null,null,null,null,null,null,null,null,null,null,null,null,null,null,null,null,null,null,null,null,null,"５．非営利活動を伴奏支援をする。"]
[]
[null,null,"５．すべての活動は、ミッションからスタートする。",null,null,null,null,null,null,null,null,null,null,null,null,null,null,null,null,null,null,null,null,null,null,null,null,null,"６．非営利活動法人を評価し、基金により活動支援と補償をする。"]
[]
[null,null,"６．活動成果評価は、アウトカムの評価であり、組織ビジョンを評価する。"]
[]
[null,null,"７．活動成果は組織の外にあり、組織には、コストがある。",null,null,null,null,null,null,null,null,null,null,null,null,null,null,null,null,null,null,null,null,null,null,null,null,"●","ネクスト・ソサエティ"]
[]
[null,null,"８．すべては、ミッションからスタートする。"]
[null,null,null,null,null,null,null,null,null,null,null,null,null,null,null,null,null,null,null,null,null,null,null,null,null,null,null,null,"個に希望と勇気を与える"]
[null,null,"９．社会貢献する個人は大切にされ、チャレンジの機会が与えられる。",null,null,null,null,null,null,null,null,null,null,null,null,null,null,null,null,null,null,null,null,null,null,null,null,null,"誰でもが、見たことがない、共助の社会が来る。"]
[]
[null,null,"１０．活動目的（ビジョン）は、「みんなのしあわせ」であり「自由」である。"]
[]
[]
[null,null,"１１．縦組織ではなく、「責任と役割」の組織である。"]

{"sheet":"LogicModelSheet","index":5,"n_rows":19,"n_cols":71,"rows_kept":19,"cut":false,"hidden":false,"merged":[[0,0,1,27],[0,28,1,38],[15,13,15,21],[15,40,15,49],[0,59,0,69],[1,59,1,61],[1,63,1,64],[1,66,1,67],[5,57,14,65],[5,35,14,43],[5,5,14,21],[3,23,3,33],[3,34,3,44],[3,45,3,55],[3,56,3,66],[0,39,0,58],[0,70,0,77],[1,70,1,77],[18,68,58,77],[5,68,6,77],[7,68,17,77],[3,67,3,77],[16,57,25,65],[27,57,36,65],[38,57,47,65],[49,57,58,65],[5,46,14,54],[16,46,25,54],[27,46,36,54],[38,46,47,54],[49,46,58,54],[16,35,25,43],[27,35,36,43],[38,35,47,43],[49,35,58,43],[5,24,14,32],[16,24,25,32],[27,24,36,32],[38,24,47,32],[49,24,58,32],[16,5,25,21],[27,5,36,21],[38,5,47,21],[49,5,58,21],[4,1,9,3],[10,1,17,3],[18,1,23,3],[24,1,58,3],[1,39,1,40],[1,42,1,43],[1,45,1,46],[1,49,1,50],[2,67,2,77],[2,45,2,55],[2,56,2,66],[2,1,3,3],[2,4,2,22],[3,4,3,22],[2,23,2,33],[2,34,2,44]]}
["ロジックモデルシート　　(定款に規定した事業ごとに作成する）",null,null,null,null,null,null,null,null,null,null,null,null,null,null,null,null,null,null,null,null,null,null,null,null,null,null,null,"年度事業計画　",null,null,null,null,null,null,null,null,null,null,"年度期間",null,null,null,null,null,null,null,null,null,null,null,null,null,null,null,null,null,null,null,"制作日",null,null,null,null,null,null,null,null,null,null,"制作者氏名"]
[null,null,null,null,null,null,null,null,null,null,null,null,null,null,null,null,null,null,null,null,null,null,null,null,null,null,null,null,null,null,null,null,null,null,null,null,null,null,null,null,null,"年",null,null,"月",null,null,"日","～",null,null,"年",null,null,"月",null,null,"日",null,null,null,null,"年",null,null,"月",null,null,"日"]
[null,"事業",null,null,"インプット　（タスクの目的を記載する）",null,null,null,null,null,null,null,null,null,null,null,null,null,null,null,null,null,null,"数値管理指標・アウトプット",null,null,null,null,null,null,null,null,null,null,"短期成果指標・アウトカム",null,null,null,null,null,null,null,null,null,null,"中期成果指標・アウトカム",null,null,null,null,null,null,null,null,null,null,"長期成果指標・アウトカム",null,null,null,null,null,null,null,null,null,null,"法人の目的"]
[null,null,null,null,"事業を分解したタスクの活動内容・投入する資源",null,null,null,null,null,null,null,null,null,null,null,null,null,null,null,null,null,null,"直接の結果",null,null,null,null,null,null,null,null,null,null,"短期成果",null,null,null,null,null,null,null,null,null,null,"中期成果",null,null,null,null,null,null,null,null,null,null,"長期成果",null,null,null,null,null,null,null,null,null,null,"成果目標（ビジョン）"]
[null,"定款に規定した事業事業名"]
[null,null,null,null,null,null,null,null,null,null,null,null,null,null,null,null,null,null,null,null,null,null,null,null,null,null,null,null,null,null,null,null,null,null,null,null,null,null,null,null,null,null,null,null,null,null,null,null,null,null,null,null,null,null,null,null,null,null,null,null,null,null,null,null,null,null,null,null,"ソーシャルインパクト"]
[]
[null,null,null,null,null,null,null,null,null,null,null,null,null,null,null,null,null,null,null,null,null,null,null,null,null,null,null,null,null,null,null,null,null,null,null,null,null,null,null,null,null,null,null,null,null,null,null,null,null,null,null,null,null,null,null,null,null,null,null,null,null,null,null,null,null,null,null,null,"　法人の事業年度（1年間)で作成する。1年以上の長期計画の場合は、分割した成果目標と法人の目的である最終成果目標も記載する。　　　　　　　　　　　　　　予想する社会的影響力（社会へ与える価値やライフスタイル）を記載する。"]
[]
[]
[]
[]
[]
[]
[]
[null,null,null,null,null,null,null,null,null,null,null,null,null,"タスクは関連性をもつ",null,null,null,null,null,null,null,null,null,null,null,null,null,null,null,null,null,null,null,null,null,null,null,null,null,null,"タスクごとの成果指標"]
[]
[]
[null,"事業　内容"]

{"sheet":"BusinessModelSheet","index":6,"n_rows":65,"n_cols":77,"rows_kept":65,"cut":false,"hidden":false,"merged":[[27,23,32,33],[33,23,38,33],[39,23,44,33],[45,23,50,33],[51,23,56,33],[57,23,62,33],[60,41,60,46],[61,41,61,46],[62,41,62,46],[32,41,32,46],[34,41,34,46],[35,41,35,46],[36,41,36,46],[51,41,51,46],[57,41,57,46],[27,41,27,46],[33,41,33,46],[39,41,39,46],[45,41,45,46],[15,34,26,40],[27,34,38,40],[39,34,50,40],[51,34,62,40],[53,41,53,46],[54,41,54,46],[55,41,55,46],[56,41,56,46],[58,41,58,46],[59,41,59,46],[46,41,46,46],[47,41,47,46],[48,41,48,46],[49,41,49,46],[50,41,50,46],[52,41,52,46],[38,41,38,46],[40,41,40,46],[41,41,41,46],[42,41,42,46],[43,41,43,46],[44,41,44,46],[30,41,30,46],[31,41,31,46],[16,41,16,46],[17,41,17,46],[18,41,18,46],[19,41,19,46],[20,41,20,46],[22,41,22,46],[23,41,23,46],[24,41,24,46],[15,41,15,46],[21,41,21,46],[25,41,25,46],[26,41,26,46],[28,41,28,46],[29,41,29,46],[61,47,61,59],[62,47,62,59],[2,41,2,46],[3,41,3,46],[4,41,4,46],[5,41,5,46],[6,41,6,46],[7,41,7,46],[8,41,8,46],[9,41,9,46],[54,47,54,59],[55,47,55,59],[56,47,56,59],[58,47,58,59],[59,47,59,59],[60,47,60,59],[45,47,45,59],[51,47,51,59],[57,47,57,59],[46,47,46,59],[47,47,47,59],[48,47,48,59],[49,47,49,59],[50,47,50,59],[52,47,52,59],[53,47,53,59],[40,47,40,59],[41,47,41,59],[42,47,42,59],[43,47,43,59],[44,47,44,59],[32,47,32,59],[27,47,27,59],[33,47,33,59],[34,47,34,59],[35,47,35,59],[36,47,36,59],[25,47,25,59],[26,47,26,59],[28,47,28,59],[29,47,29,59],[30,47,30,59],[31,47,31,59],[62,60,62,61],[62,62,62,65],[62,66,62,69],[62,70,62,73],[20,70,20,73],[27,70,27,73],[32,70,32,73],[39,70,39,73],[44,70,44,73],[51,70,51,73],[56,70,56,73],[60,60,60,61],[60,62,60,65],[60,66,60,69],[61,60,61,61],[61,62,61,65],[61,66,61,69],[58,60,58,61],[58,62,58,65],[58,66,58,69],[59,60,59,61],[59,62,59,65],[59,66,59,69],[56,60,56,61],[2,47,2,59],[3,47,3,59],[4,47,4,59],[5,47,5,59],[51,3,62,4],[39,3,50,4],[27,3,38,4],[15,23,20,33],[21,23,26,33],[15,3,26,4],[16,47,16,59],[17,47,17,59],[18,47,18,59],[19,47,19,59],[20,47,20,59],[21,47,21,59],[22,47,22,59],[9,47,9,59],[10,47,10,59],[11,47,11,59],[12,47,12,59],[13,47,13,59],[15,47,15,59],[39,47,39,59],[56,62,56,65],[56,66,56,69],[57,60,57,61],[57,62,57,65],[57,66,57,69],[55,60,55,61],[55,62,55,65],[55,66,55,69],[53,60,53,61],[53,62,53,65],[53,66,53,69],[54,60,54,61],[54,62,54,65],[54,66,54,69],[51,60,51,61],[51,62,51,65],[51,66,51,69],[52,60,52,61],[52,62,52,65],[52,66,52,69],[50,60,50,61],[50,62,50,65],[50,66,50,69],[50,70,50,73],[48,60,48,61],[48,62,48,65],[48,66,48,69],[49,60,49,61],[49,62,49,65],[49,66,49,69],[46,60,46,61],[46,62,46,65],[46,66,46,69],[47,60,47,61],[47,62,47,65],[47,66,47,69],[44,60,44,61],[44,62,44,65],[44,66,44,69],[45,60,45,61],[45,62,45,65],[45,66,45,69],[43,60,43,61],[43,62,43,65],[43,66,43,69],[41,60,41,61],[41,62,41,65],[41,66,41,69],[42,60,42,61],[42,62,42,65],[42,66,42,69],[39,60,39,61],[39,62,39,65],[39,66,39,69],[40,60,40,61],[40,62,40,65],[40,66,40,69],[38,60,38,61],[38,62,38,65],[38,66,38,69],[38,70,38,73],[37,47,37,59],[38,47,38,59],[37,41,37,46],[36,60,36,61],[36,62,36,65],[36,66,36,69],[37,60,37,61],[37,62,37,65],[37,66,37,69],[34,60,34,61],[34,62,34,65],[34,66,34,69],[35,60,35,61],[35,62,35,65],[35,66,35,69],[32,60,32,61],[32,62,32,65],[32,66,32,69],[33,60,33,61],[33,62,33,65],[33,66,33,69],[31,60,31,61],[31,62,31,65],[31,66,31,69],[29,60,29,61],[29,62,29,65],[29,66,29,69],[30,60,30,61],[30,62,30,65],[30,66,30,69],[27,60,27,61],[27,62,27,65],[27,66,27,69],[28,60,28,61],[28,62,28,65],[28,66,28,69],[26,60,26,61],[26,62,26,65],[26,66,26,69],[26,70,26,73],[24,60,24,61],[24,62,24,65],[24,66,24,69],[25,60,25,61],[25,62,25,65],[25,66,25,69],[22,60,22,61],[22,62,22,65],[22,66,22,69],[23,60,23,61],[23,62,23,65],[23,66,23,69],[20,60,20,61],[20,62,20,65],[20,66,20,69],[21,60,21,61],[21,62,21,65],[21,66,21,69],[19,60,19,61],[19,62,19,65],[19,66,19,69],[17,60,17,61],[17,62,17,65],[17,66,17,69],[18,60,18,61],[18,62,18,65],[18,66,18,69],[16,60,16,61],[16,62,16,65],[16,66,16,69],[7,70,7,73],[13,70,13,73],[15,60,15,61],[15,62,15,65],[15,66,15,69],[15,70,15,73],[7,47,7,59],[8,47,8,59],[8,66,8,69],[9,66,9,69],[10,66,10,69],[11,66,11,69],[12,66,12,69],[13,66,13,69],[9,62,9,65],[10,62,10,65],[11,62,11,65],[12,62,12,65],[13,62,13,65],[8,62,8,65],[8,60,8,61],[9,60,9,61],[10,60,10,61],[11,60,11,61],[10,41,10,46],[11,41,11,46],[12,41,12,46],[13,41,13,46],[3,66,3,69],[4,66,4,69],[5,66,5,69],[6,66,6,69],[7,66,7,69],[3,62,3,65],[4,62,4,65],[5,62,5,65],[6,62,6,65],[7,62,7,65],[2,70,2,73],[2,66,2,69],[2,62,2,65],[2,60,2,61],[23,47,23,59],[24,47,24,59],[2,3,3,6],[2,0,3,2],[4,0,9,2],[10,0,17,2],[18,0,23,2],[24,0,64,2],[63,70,63,73],[64,70,64,73],[63,60,63,69],[64,60,64,69],[12,60,12,61],[13,60,13,61],[3,60,3,61],[4,60,4,61],[5,60,5,61],[6,60,6,61],[7,60,7,61],[6,47,6,59],[0,32,0,51],[1,32,1,33],[1,35,1,36],[1,38,1,39],[1,52,1,54],[1,56,1,57],[1,59,1,60],[1,76,1,83],[0,0,1,22],[0,23,1,31],[0,52,0,62],[0,76,0,83],[1,42,1,43],[0,63,0,73],[1,63,1,73]]}
["　ビジネスモデルシート　　(定款に規定した事業ごとに作成する）",null,null,null,null,null,null,null,null,null,null,null,null,null,null,null,null,null,null,null,null,null,null,"年度事業計画",null,null,null,null,null,null,null,null,"年度期間",null,null,null,null,null,null,null,null,null,null,null,null,null,null,null,null,null,null,null,"制作日",null,null,null,null,null,null,null,null,null,null,"制作者氏名",null,null,null,null,null,null,null,null,null,null,null,null,"制作者氏名"]
[null,null,null,null,null,null,null,null,null,null,null,null,null,null,null,null,null,null,null,null,null,null,null,null,null,null,null,null,null,null,null,null,null,null,"年",null,null,"月",null,null,"日","～",null,null,"年",null,null,"月",null,null,"日",null,null,null,null,"年",null,null,"月",null,null,"日"]
["事業",null,null,null,null,null,null,null,null,null,null,null,null,null,null,null,null,null,null,null,null,null,null,null,null,null,null,null,null,null,null,null,null,null,null,null,null,null,null,null,null,"項目",null,null,null,null,null,"内容",null,null,null,null,null,null,null,null,null,null,null,null,"回数",null,"単価",null,null,null,"収益",null,null,null,"合計"]
[null,null,null,null,null,null,null,null,null,null,null,null,null,null,null,null,null,null,null,null,null,null,null,null,null,null,null,null,null,null,null,null,null,null,null,null,null,null,null,null,null,"講座　（記入例）",null,null,null,null,null,"受講料　　人数２０、回数３",null,null,null,null,null,null,null,null,null,null,null,null,60,null,5000,null,null,null,{"$f":"BI4*BK4","v":300000}]
["定款に規定した事業事業名"]
[]
[]
[null,null,null,null,null,null,null,null,null,null,null,null,null,null,null,null,null,null,null,null,null,null,null,null,null,null,null,null,null,null,null,null,null,null,null,null,null,null,null,null,null,null,null,null,null,null,null,null,null,null,null,null,null,null,null,null,null,null,null,null,null,null,null,null,null,null,null,null,null,null,{"$f":"BO4+BO5+BO6+BO7+BO8","v":300000}]
[null,null,null,null,null,null,null,null,null,null,null,null,null,null,null,null,null,null,null,null,null,null,null,null,null,null,null,null,null,null,null,null,null,null,null,null,null,null,null,null,null,"項目",null,null,null,null,null,"内容",null,null,null,null,null,null,null,null,null,null,null,null,"回数",null,"単価",null,null,null,"費用"]
[null,null,null,null,null,null,null,null,null,null,null,null,null,null,null,null,null,null,null,null,null,null,null,null,null,null,null,null,null,null,null,null,null,null,null,null,null,null,null,null,null,"講座　（記入例）",null,null,null,null,null,"講師謝金",null,null,null,null,null,null,null,null,null,null,null,null,3,null,50000,null,null,null,{"$f":"BI10*BK10","v":150000}]
[null,null,null,null,null,null,null,null,null,null,null,null,null,null,null,null,null,null,null,null,null,null,null,null,null,null,null,null,null,null,null,null,null,null,null,null,null,null,null,null,null,null,null,null,null,null,null,"人件費3x3",null,null,null,null,null,null,null,null,null,null,null,null,9,null,8000,null,null,null,{"$f":"BI11*BK11","v":72000}]
[null,null,null,null,null,null,null,null,null,null,null,null,null,null,null,null,null,null,null,null,null,null,null,null,null,null,null,null,null,null,null,null,null,null,null,null,null,null,null,null,null,null,null,null,null,null,null,"会場費",null,null,null,null,null,null,null,null,null,null,null,null,3,null,8000,null,null,null,{"$f":"BI12*BK12","v":24000}]
[null,null,null,null,null,null,null,null,null,null,null,null,null,null,null,null,null,null,null,null,null,null,null,null,null,null,null,null,null,null,null,null,null,null,null,null,null,null,null,null,null,null,null,null,null,null,null,null,null,null,null,null,null,null,null,null,null,null,null,null,null,null,null,null,null,null,{"$f":"BI13*BK13","v":0}]
[null,null,null,null,null,null,null,null,null,null,null,null,null,null,null,null,null,null,null,null,null,null,null,null,null,null,null,null,null,null,null,null,null,null,null,null,null,null,null,null,null,null,null,null,null,null,null,null,null,null,null,null,null,null,null,null,null,null,null,null,null,null,null,null,null,null,{"$f":"BI14*BK14","v":0},null,null,null,{"$f":"BO14+BO13+BO12+BO11+BO10","v":246000}]
[]
[null,null,null,null,null,null,null,null,null,null,null,null,null,null,null,null,null,null,null,null,null,null,null,null,null,null,null,null,null,null,null,null,null,null,null,null,null,null,null,null,null,"項目",null,null,null,null,null,"内容",null,null,null,null,null,null,null,null,null,null,null,null,"回数",null,"単価",null,null,null,"収益",null,null,null,"合計"]
[null,null,null,null,null,null,null,null,null,null,null,null,null,null,null,null,null,null,null,null,null,null,null,null,null,null,null,null,null,null,null,null,null,null,null,null,null,null,null,null,null,null,null,null,null,null,null,null,null,null,null,null,null,null,null,null,null,null,null,null,null,null,null,null,null,null,{"$f":"BI17*BK17","v":0}]
[null,null,null,null,null,null,null,null,null,null,null,null,null,null,null,null,null,null,null,null,null,null,null,null,null,null,null,null,null,null,null,null,null,null,null,null,null,null,null,null,null,null,null,null,null,null,null,null,null,null,null,null,null,null,null,null,null,null,null,null,null,null,null,null,null,null,{"$f":"BI18*BK18","v":0}]
["事業　内容",null,null,null,null,null,null,null,null,null,null,null,null,null,null,null,null,null,null,null,null,null,null,null,null,null,null,null,null,null,null,null,null,null,null,null,null,null,null,null,null,null,null,null,null,null,null,null,null,null,null,null,null,null,null,null,null,null,null,null,null,null,null,null,null,null,{"$f":"BI19*BK19","v":0}]
[null,null,null,null,null,null,null,null,null,null,null,null,null,null,null,null,null,null,null,null,null,null,null,null,null,null,null,null,null,null,null,null,null,null,null,null,null,null,null,null,null,null,null,null,null,null,null,null,null,null,null,null,null,null,null,null,null,null,null,null,null,null,null,null,null,null,{"$f":"BI20*BK20","v":0}]
[null,null,null,null,null,null,null,null,null,null,null,null,null,null,null,null,null,null,null,null,null,null,null,null,null,null,null,null,null,null,null,null,null,null,null,null,null,null,null,null,null,null,null,null,null,null,null,null,null,null,null,null,null,null,null,null,null,null,null,null,null,null,null,null,null,null,{"$f":"BI21*BK21","v":0},null,null,null,{"$f":"BO21+BO20+BO19+BO18+BO17","v":0}]
[null,null,null,null,null,null,null,null,null,null,null,null,null,null,null,null,null,null,null,null,null,null,null,null,null,null,null,null,null,null,null,null,null,null,null,null,null,null,null,null,null,"項目",null,null,null,null,null,"内容",null,null,null,null,null,null,null,null,null,null,null,null,"回数",null,"単価",null,null,null,"費用"]
[null,null,null,null,null,null,null,null,null,null,null,null,null,null,null,null,null,null,null,null,null,null,null,null,null,null,null,null,null,null,null,null,null,null,null,null,null,null,null,null,null,null,null,null,null,null,null,null,null,null,null,null,null,null,null,null,null,null,null,null,null,null,null,null,null,null,{"$f":"BI23*BK23","v":0}]
[null,null,null,null,null,null,null,null,null,null,null,null,null,null,null,null,null,null,null,null,null,null,null,null,null,null,null,null,null,null,null,null,null,null,null,null,null,null,null,null,null,null,null,null,null,null,null,null,null,null,null,null,null,null,null,null,null,null,null,null,null,null,null,null,null,null,{"$f":"BI24*BK24","v":0}]
[null,null,null,null,null,null,null,null,null,null,null,null,null,null,null,null,null,null,null,null,null,null,null,null,null,null,null,null,null,null,null,null,null,null,null,null,null,null,null,null,null,null,null,null,null,null,null,null,null,null,null,null,null,null,null,null,null,null,null,null,null,null,null,null,null,null,{"$f":"BI25*BK25","v":0}]
[null,null,null,null,null,null,null,null,null,null,null,null,null,null,null,null,null,null,null,null,null,null,null,null,null,null,null,null,null,null,null,null,null,null,null,null,null,null,null,null,null,null,null,null,null,null,null,null,null,null,null,null,null,null,null,null,null,null,null,null,null,null,null,null,null,null,{"$f":"BI26*BK26","v":0}]
[null,null,null,null,null,null,null,null,null,null,null,null,null,null,null,null,null,null,null,null,null,null,null,null,null,null,null,null,null,null,null,null,null,null,null,null,null,null,null,null,null,null,null,null,null,null,null,null,null,null,null,null,null,null,null,null,null,null,null,null,null,null,null,null,null,null,{"$f":"BI27*BK27","v":0},null,null,null,{"$f":"BO27+BO26+BO25+BO24+BO23","v":0}]
[null,null,null,null,null,null,null,null,null,null,null,null,null,null,null,null,null,null,null,null,null,null,null,null,null,null,null,null,null,null,null,null,null,null,null,null,null,null,null,null,null,"項目",null,null,null,null,null,"内容",null,null,null,null,null,null,null,null,null,null,null,null,"回数",null,"単価",null,null,null,"収益",null,null,null,"合計"]
[null,null,null,null,null,null,null,null,null,null,null,null,null,null,null,null,null,null,null,null,null,null,null,null,null,null,null,null,null,null,null,null,null,null,null,null,null,null,null,null,null,null,null,null,null,null,null,null,null,null,null,null,null,null,null,null,null,null,null,null,null,null,null,null,null,null,{"$f":"BI29*BK29","v":0}]
[null,null,null,null,null,null,null,null,null,null,null,null,null,null,null,null,null,null,null,null,null,null,null,null,null,null,null,null,null,null,null,null,null,null,null,null,null,null,null,null,null,null,null,null,null,null,null,null,null,null,null,null,null,null,null,null,null,null,null,null,null,null,null,null,null,null,{"$f":"BI30*BK30","v":0}]
[null,null,null,null,null,null,null,null,null,null,null,null,null,null,null,null,null,null,null,null,null,null,null,null,null,null,null,null,null,null,null,null,null,null,null,null,null,null,null,null,null,null,null,null,null,null,null,null,null,null,null,null,null,null,null,null,null,null,null,null,null,null,null,null,null,null,{"$f":"BI31*BK31","v":0}]
[null,null,null,null,null,null,null,null,null,null,null,null,null,null,null,null,null,null,null,null,null,null,null,null,null,null,null,null,null,null,null,null,null,null,null,null,null,null,null,null,null,null,null,null,null,null,null,null,null,null,null,null,null,null,null,null,null,null,null,null,null,null,null,null,null,null,{"$f":"BI32*BK32","v":0}]
[null,null,null,null,null,null,null,null,null,null,null,null,null,null,null,null,null,null,null,null,null,null,null,null,null,null,null,null,null,null,null,null,null,null,null,null,null,null,null,null,null,null,null,null,null,null,null,null,null,null,null,null,null,null,null,null,null,null,null,null,null,null,null,null,null,null,{"$f":"BI33*BK33","v":0},null,null,null,{"$f":"BO33+BO32+BO31+BO30+BO29","v":0}]
[null,null,null,null,null,null,null,null,null,null,null,null,null,null,null,null,null,null,null,null,null,null,null,null,null,null,null,null,null,null,null,null,null,null,null,null,null,null,null,null,null,"項目",null,null,null,null,null,"内容",null,null,null,null,null,null,null,null,null,null,null,null,"回数",null,"単価",null,null,null,"費用"]
[null,null,null,null,null,null,null,null,null,null,null,null,null,null,null,null,null,null,null,null,null,null,null,null,null,null,null,null,null,null,null,null,null,null,null,null,null,null,null,null,null,null,null,null,null,null,null,null,null,null,null,null,null,null,null,null,null,null,null,null,null,null,null,null,null,null,{"$f":"BI35*BK35","v":0}]
[null,null,null,null,null,null,null,null,null,null,null,null,null,null,null,null,null,null,null,null,null,null,null,null,null,null,null,null,null,null,null,null,null,null,null,null,null,null,null,null,null,null,null,null,null,null,null,null,null,null,null,null,null,null,null,null,null,null,null,null,null,null,null,null,null,null,{"$f":"BI36*BK36","v":0}]
[null,null,null,null,null,null,null,null,null,null,null,null,null,null,null,null,null,null,null,null,null,null,null,null,null,null,null,null,null,null,null,null,null,null,null,null,null,null,null,null,null,null,null,null,null,null,null,null,null,null,null,null,null,null,null,null,null,null,null,null,null,null,null,null,null,null,{"$f":"BI37*BK37","v":0}]
[null,null,null,null,null,null,null,null,null,null,null,null,null,null,null,null,null,null,null,null,null,null,null,null,null,null,null,null,null,null,null,null,null,null,null,null,null,null,null,null,null,null,null,null,null,null,null,null,null,null,null,null,null,null,null,null,null,null,null,null,null,null,null,null,null,null,{"$f":"BI38*BK38","v":0}]
[null,null,null,null,null,null,null,null,null,null,null,null,null,null,null,null,null,null,null,null,null,null,null,null,null,null,null,null,null,null,null,null,null,null,null,null,null,null,null,null,null,null,null,null,null,null,null,null,null,null,null,null,null,null,null,null,null,null,null,null,null,null,null,null,null,null,{"$f":"BI39*BK39","v":0},null,null,null,{"$f":"BO39+BO38+BO37+BO36+BO35","v":0}]
[null,null,null,null,null,null,null,null,null,null,null,null,null,null,null,null,null,null,null,null,null,null,null,null,null,null,null,null,null,null,null,null,null,null,null,null,null,null,null,null,null,"項目",null,null,null,null,null,"内容",null,null,null,null,null,null,null,null,null,null,null,null,"回数",null,"単価",null,null,null,"収益",null,null,null,"合計"]
[null,null,null,null,null,null,null,null,null,null,null,null,null,null,null,null,null,null,null,null,null,null,null,null,null,null,null,null,null,null,null,null,null,null,null,null,null,null,null,null,null,null,null,null,null,null,null,null,null,null,null,null,null,null,null,null,null,null,null,null,null,null,null,null,null,null,{"$f":"BI41*BK41","v":0}]
[null,null,null,null,null,null,null,null,null,null,null,null,null,null,null,null,null,null,null,null,null,null,null,null,null,null,null,null,null,null,null,null,null,null,null,null,null,null,null,null,null,null,null,null,null,null,null,null,null,null,null,null,null,null,null,null,null,null,null,null,null,null,null,null,null,null,{"$f":"BI42*BK42","v":0}]
[null,null,null,null,null,null,null,null,null,null,null,null,null,null,null,null,null,null,null,null,null,null,null,null,null,null,null,null,null,null,null,null,null,null,null,null,null,null,null,null,null,null,null,null,null,null,null,null,null,null,null,null,null,null,null,null,null,null,null,null,null,null,null,null,null,null,{"$f":"BI43*BK43","v":0}]
[null,null,null,null,null,null,null,null,null,null,null,null,null,null,null,null,null,null,null,null,null,null,null,null,null,null,null,null,null,null,null,null,null,null,null,null,null,null,null,null,null,null,null,null,null,null,null,null,null,null,null,null,null,null,null,null,null,null,null,null,null,null,null,null,null,null,{"$f":"BI44*BK44","v":0}]
[null,null,null,null,null,null,null,null,null,null,null,null,null,null,null,null,null,null,null,null,null,null,null,null,null,null,null,null,null,null,null,null,null,null,null,null,null,null,null,null,null,null,null,null,null,null,null,null,null,null,null,null,null,null,null,null,null,null,null,null,null,null,null,null,null,null,{"$f":"BI45*BK45","v":0},null,null,null,{"$f":"BO45+BO44+BO43+BO42+BO41","v":0}]
[null,null,null,null,null,null,null,null,null,null,null,null,null,null,null,null,null,null,null,null,null,null,null,null,null,null,null,null,null,null,null,null,null,null,null,null,null,null,null,null,null,"項目",null,null,null,null,null,"内容",null,null,null,null,null,null,null,null,null,null,null,null,"回数",null,"単価",null,null,null,"費用"]
[null,null,null,null,null,null,null,null,null,null,null,null,null,null,null,null,null,null,null,null,null,null,null,null,null,null,null,null,null,null,null,null,null,null,null,null,null,null,null,null,null,null,null,null,null,null,null,null,null,null,null,null,null,null,null,null,null,null,null,null,null,null,null,null,null,null,{"$f":"BI47*BK47","v":0}]
[null,null,null,null,null,null,null,null,null,null,null,null,null,null,null,null,null,null,null,null,null,null,null,null,null,null,null,null,null,null,null,null,null,null,null,null,null,null,null,null,null,null,null,null,null,null,null,null,null,null,null,null,null,null,null,null,null,null,null,null,null,null,null,null,null,null,{"$f":"BI48*BK48","v":0}]
[null,null,null,null,null,null,null,null,null,null,null,null,null,null,null,null,null,null,null,null,null,null,null,null,null,null,null,null,null,null,null,null,null,null,null,null,null,null,null,null,null,null,null,null,null,null,null,null,null,null,null,null,null,null,null,null,null,null,null,null,null,null,null,null,null,null,{"$f":"BI49*BK49","v":0}]
[null,null,null,null,null,null,null,null,null,null,null,null,null,null,null,null,null,null,null,null,null,null,null,null,null,null,null,null,null,null,null,null,null,null,null,null,null,null,null,null,null,null,null,null,null,null,null,null,null,null,null,null,null,null,null,null,null,null,null,null,null,null,null,null,null,null,{"$f":"BI50*BK50","v":0}]
[null,null,null,null,null,null,null,null,null,null,null,null,null,null,null,null,null,null,null,null,null,null,null,null,null,null,null,null,null,null,null,null,null,null,null,null,null,null,null,null,null,null,null,null,null,null,null,null,null,null,null,null,null,null,null,null,null,null,null,null,null,null,null,null,null,null,{"$f":"BI51*BK51","v":0},null,null,null,{"$f":"BO51+BO50+BO49+BO48+BO47","v":0}]
[null,null,null,null,null,null,null,null,null,null,null,null,null,null,null,null,null,null,null,null,null,null,null,null,null,null,null,null,null,null,null,null,null,null,null,null,null,null,null,null,null,"項目",null,null,null,null,null,"内容",null,null,null,null,null,null,null,null,null,null,null,null,"回数",null,"単価",null,null,null,"収益",null,null,null,"合計"]
[null,null,null,null,null,null,null,null,null,null,null,null,null,null,null,null,null,null,null,null,null,null,null,null,null,null,null,null,null,null,null,null,null,null,null,null,null,null,null,null,null,null,null,null,null,null,null,null,null,null,null,null,null,null,null,null,null,null,null,null,null,null,null,null,null,null,{"$f":"BI53*BK53","v":0}]
[null,null,null,null,null,null,null,null,null,null,null,null,null,null,null,null,null,null,null,null,null,null,null,null,null,null,null,null,null,null,null,null,null,null,null,null,null,null,null,null,null,null,null,null,null,null,null,null,null,null,null,null,null,null,null,null,null,null,null,null,null,null,null,null,null,null,{"$f":"BI54*BK54","v":0}]
[null,null,null,null,null,null,null,null,null,null,null,null,null,null,null,null,null,null,null,null,null,null,null,null,null,null,null,null,null,null,null,null,null,null,null,null,null,null,null,null,null,null,null,null,null,null,null,null,null,null,null,null,null,null,null,null,null,null,null,null,null,null,null,null,null,null,{"$f":"BI55*BK55","v":0}]
[null,null,null,null,null,null,null,null,null,null,null,null,null,null,null,null,null,null,null,null,null,null,null,null,null,null,null,null,null,null,null,null,null,null,null,null,null,null,null,null,null,null,null,null,null,null,null,null,null,null,null,null,null,null,null,null,null,null,null,null,null,null,null,null,null,null,{"$f":"BI56*BK56","v":0}]
[null,null,null,null,null,null,null,null,null,null,null,null,null,null,null,null,null,null,null,null,null,null,null,null,null,null,null,null,null,null,null,null,null,null,null,null,null,null,null,null,null,null,null,null,null,null,null,null,null,null,null,null,null,null,null,null,null,null,null,null,null,null,null,null,null,null,{"$f":"BI57*BK57","v":0},null,null,null,{"$f":"BO57+BO56+BO55+BO54+BO53","v":0}]
[null,null,null,null,null,null,null,null,null,null,null,null,null,null,null,null,null,null,null,null,null,null,null,null,null,null,null,null,null,null,null,null,null,null,null,null,null,null,null,null,null,"項目",null,null,null,null,null,"内容",null,null,null,null,null,null,null,null,null,null,null,null,"回数",null,"単価",null,null,null,"費用"]
[null,null,null,null,null,null,null,null,null,null,null,null,null,null,null,null,null,null,null,null,null,null,null,null,null,null,null,null,null,null,null,null,null,null,null,null,null,null,null,null,null,null,null,null,null,null,null,null,null,null,null,null,null,null,null,null,null,null,null,null,null,null,null,null,null,null,{"$f":"BI59*BK59","v":0}]
[null,null,null,null,null,null,null,null,null,null,null,null,null,null,null,null,null,null,null,null,null,null,null,null,null,null,null,null,null,null,null,null,null,null,null,null,null,null,null,null,null,null,null,null,null,null,null,null,null,null,null,null,null,null,null,null,null,null,null,null,null,null,null,null,null,null,{"$f":"BI60*BK60","v":0}]
[null,null,null,null,null,null,null,null,null,null,null,null,null,null,null,null,null,null,null,null,null,null,null,null,null,null,null,null,null,null,null,null,null,null,null,null,null,null,null,null,null,null,null,null,null,null,null,null,null,null,null,null,null,null,null,null,null,null,null,null,null,null,null,null,null,null,{"$f":"BI61*BK61","v":0}]
[null,null,null,null,null,null,null,null,null,null,null,null,null,null,null,null,null,null,null,null,null,null,null,null,null,null,null,null,null,null,null,null,null,null,null,null,null,null,null,null,null,null,null,null,null,null,null,null,null,null,null,null,null,null,null,null,null,null,null,null,null,null,null,null,null,null,{"$f":"BI62*BK62","v":0}]
[null,null,null,null,null,null,null,null,null,null,null,null,null,null,null,null,null,null,null,null,null,null,null,null,null,null,null,null,null,null,null,null,null,null,null,null,null,null,null,null,null,null,null,null,null,null,null,null,null,null,null,null,null,null,null,null,null,null,null,null,null,null,null,null,null,null,{"$f":"BI63*BK63","v":0},null,null,null,{"$f":"BO63+BO62+BO61+BO60+BO59","v":0}]
[null,null,null,null,null,null,null,null,null,null,null,null,null,null,null,null,null,null,null,null,null,null,null,null,null,null,null,null,null,null,null,null,null,null,null,null,null,null,null,null,null,null,null,null,null,null,null,null,null,null,null,null,null,null,null,null,null,null,null,null,"事業収益合計",null,null,null,null,null,null,null,null,null,{"$f":"BS21+BS33+BS45+BS57","v":0}]
[null,null,null,null,null,null,null,null,null,null,null,null,null,null,null,null,null,null,null,null,null,null,null,null,null,null,null,null,null,null,null,null,null,null,null,null,null,null,null,null,null,null,null,null,null,null,null,null,null,null,null,null,null,null,null,null,null,null,null,null,"事業費用合計",null,null,null,null,null,null,null,null,null,{"$f":"BS27+BS39+BS51+BS63","v":0}]

{"sheet":"表","index":7,"n_rows":693,"n_cols":41,"rows_kept":693,"cut":false,"hidden":false,"merged":[[522,1,522,41],[513,1,513,41],[514,1,514,41],[515,1,515,41],[516,1,516,41],[517,1,517,41],[518,1,518,41],[519,1,519,41],[520,1,520,41],[521,1,521,41],[23,38,23,43],[33,38,33,43],[34,38,34,43],[35,38,35,43],[36,38,36,43],[37,38,37,43],[38,38,38,43],[39,38,39,43],[40,38,40,43],[1,38,1,43],[9,38,9,43],[0,0,0,43],[3,38,3,43],[4,38,4,43],[5,38,5,43],[6,38,6,43],[7,38,7,43],[8,38,8,43],[6,28,6,32],[6,33,6,37],[7,28,7,32],[7,33,7,37],[4,28,4,32],[4,33,4,37],[2,28,2,32],[2,33,2,37],[5,28,5,32],[5,33,5,37],[8,28,8,32],[8,33,8,37],[9,8,9,12],[9,13,9,17],[9,18,9,22],[10,38,10,43],[11,38,11,43],[12,38,12,43],[13,38,13,43],[14,38,14,43],[15,38,15,43],[420,29,427,33],[420,34,427,37],[420,38,427,41],[91,22,91,40],[88,3,88,32],[85,33,85,37],[85,38,85,44],[86,0,86,7],[86,8,86,12],[86,13,86,17],[86,18,86,22],[86,23,86,27],[86,28,86,32],[86,33,86,37],[86,38,86,44],[85,0,85,7],[85,8,85,12],[85,13,85,17],[428,21,435,24],[428,25,435,28],[428,29,435,33],[428,34,435,37],[428,38,435,41],[404,29,411,33],[404,34,411,37],[404,38,411,41],[412,21,419,24],[412,25,419,28],[412,29,419,33],[412,34,419,37],[412,38,419,41],[396,1,403,7],[396,18,403,20],[396,29,403,33],[396,34,403,37],[396,38,403,41],[404,1,411,7],[412,1,419,7],[420,1,427,7],[428,1,435,7],[396,8,403,17],[404,8,411,17],[412,8,419,17],[420,8,427,17],[428,8,435,17],[404,18,411,20],[412,18,419,20],[420,18,427,20],[428,18,435,20],[396,21,403,24],[396,25,403,28],[404,21,411,24],[404,25,411,28],[420,21,427,24],[420,25,427,28],[185,1,240,1],[392,3,392,41],[394,1,395,7],[394,8,395,17],[394,18,395,20],[394,21,395,24],[390,3,390,41],[391,3,391,41],[354,22,354,40],[357,13,357,31],[359,3,359,41],[360,1,371,41],[372,1,378,41],[379,1,386,41],[394,25,395,28],[394,29,395,33],[394,34,395,37],[394,38,395,41],[333,1,333,41],[334,1,334,41],[335,1,335,41],[336,1,336,41],[337,1,338,41],[340,1,341,41],[91,3,91,21],[92,3,121,21],[92,22,121,40],[122,3,151,21],[122,22,151,40],[92,2,121,2],[122,2,151,2],[264,6,264,36],[186,3,188,3],[217,3,219,3],[184,5,184,7],[184,30,184,32],[185,23,212,41],[213,4,240,22],[237,3,239,3],[213,23,240,41],[178,4,178,40],[85,18,85,22],[85,23,85,27],[85,28,85,32],[82,33,82,37],[82,38,82,44],[84,0,84,7],[84,8,84,12],[84,13,84,17],[84,18,84,22],[84,23,84,27],[84,28,84,32],[84,33,84,37],[84,38,84,44],[82,0,82,7],[82,8,82,12],[82,13,82,17],[82,18,82,22],[82,23,82,27],[82,28,82,32],[80,33,80,37],[80,38,80,44],[81,0,81,7],[81,8,81,12],[81,13,81,17],[81,18,81,22],[81,23,81,27],[81,28,81,32],[81,33,81,37],[81,38,81,44],[80,0,80,7],[80,8,80,12],[80,13,80,17],[80,18,80,22],[80,23,80,27],[80,28,80,32],[79,0,79,7],[79,8,79,12],[79,13,79,17],[79,18,79,22],[79,23,79,27],[79,28,79,32],[79,33,79,37],[79,38,79,44],[78,0,78,7],[78,8,78,12],[78,13,78,17],[78,18,78,22],[78,23,78,27],[78,28,78,32],[77,0,77,7],[77,8,77,12],[77,13,77,17],[77,18,77,22],[77,23,77,27],[77,28,77,32],[77,33,77,37],[77,38,77,44],[78,33,78,37],[78,38,78,44],[75,28,75,32],[75,33,75,37],[75,38,75,44],[76,0,76,7],[76,8,76,12],[76,13,76,17],[76,18,76,22],[76,23,76,27],[76,28,76,32],[76,33,76,37],[76,38,76,44],[75,8,75,12],[75,13,75,17],[75,18,75,22],[75,23,75,27],[73,28,73,32],[73,33,73,37],[73,38,73,44],[74,28,74,32],[74,33,74,37],[74,38,74,44],[71,28,71,32],[71,33,71,37],[71,38,71,44],[72,28,72,32],[72,33,72,37],[72,38,72,44],[69,28,69,32],[69,33,69,37],[69,38,69,44],[70,28,70,32],[70,33,70,37],[70,38,70,44],[67,28,67,32],[67,33,67,37],[67,38,67,44],[68,28,68,32],[68,33,68,37],[68,38,68,44],[65,28,65,32],[65,33,65,37],[65,38,65,44],[66,28,66,32],[66,33,66,37],[66,38,66,44],[63,28,63,32],[63,33,63,37],[63,38,63,44],[64,28,64,32],[64,33,64,37],[64,38,64,44],[61,28,61,32],[61,33,61,37],[61,38,61,44],[62,28,62,32],[62,33,62,37],[62,38,62,44],[59,28,59,32],[59,33,59,37],[59,38,59,44],[60,38,60,44],[60,0,60,37],[61,8,61,12],[61,13,61,17],[61,18,61,22],[61,23,61,27],[62,8,62,12],[62,13,62,17],[62,18,62,22],[62,23,62,27],[59,8,59,12],[59,13,59,17],[59,18,59,22],[59,23,59,27],[59,0,59,7],[57,28,57,32],[57,33,57,37],[57,38,57,44],[58,38,58,44],[55,28,55,32],[55,33,55,37],[56,28,56,32],[56,33,56,37],[56,38,56,44],[58,0,58,37],[57,8,57,12],[57,13,57,17],[57,18,57,22],[57,23,57,27],[55,8,55,12],[55,13,55,17],[55,18,55,22],[55,23,55,27],[56,8,56,12],[56,13,56,17],[56,18,56,22],[56,23,56,27],[55,38,55,43],[53,28,53,32],[53,33,53,37],[54,28,54,32],[54,33,54,37],[51,28,51,32],[51,33,51,37],[52,28,52,32],[52,33,52,37],[51,38,51,43],[52,38,52,43],[53,38,53,43],[54,38,54,43],[49,28,49,32],[49,33,49,37],[50,28,50,32],[50,33,50,37],[47,28,47,32],[47,33,47,37],[48,28,48,32],[48,33,48,37],[47,38,47,43],[48,38,48,43],[49,38,49,43],[50,38,50,43],[45,28,45,32],[45,33,45,37],[46,28,46,32],[46,33,46,37],[43,28,43,32],[43,33,43,37],[44,28,44,32],[44,33,44,37],[43,38,43,43],[44,38,44,43],[45,38,45,43],[46,38,46,43],[41,28,41,32],[41,33,41,37],[42,28,42,32],[42,33,42,37],[39,28,39,32],[39,33,39,37],[40,28,40,32],[40,33,40,37],[41,38,41,43],[42,38,42,43],[37,28,37,32],[37,33,37,37],[38,28,38,32],[38,33,38,37],[35,28,35,32],[35,33,35,37],[36,28,36,32],[36,33,36,37],[33,28,33,32],[33,33,33,37],[34,28,34,32],[34,33,34,37],[31,28,31,32],[31,33,31,37],[31,38,31,44],[32,0,32,44],[33,8,33,12],[33,13,33,17],[33,18,33,22],[33,23,33,27],[34,8,34,12],[34,13,34,17],[34,18,34,22],[34,23,34,27],[31,8,31,12],[31,13,31,17],[31,18,31,22],[31,23,31,27],[34,0,34,7],[29,28,29,32],[29,33,29,37],[29,38,29,44],[30,28,30,32],[30,33,30,37],[30,38,30,44],[27,28,27,32],[27,33,27,37],[27,38,27,44],[28,38,28,44],[28,0,28,37],[29,8,29,12],[29,13,29,17],[29,18,29,22],[29,23,29,27],[30,8,30,12],[30,13,30,17],[30,18,30,22],[30,23,30,27],[27,8,27,12],[27,13,27,17],[27,18,27,22],[27,23,27,27],[27,0,27,7],[25,28,25,32],[25,33,25,37],[25,38,25,44],[26,38,26,44],[23,28,23,32],[23,33,23,37],[24,28,24,32],[24,33,24,37],[24,38,24,44],[26,0,26,37],[25,8,25,12],[25,13,25,17],[25,18,25,22],[25,23,25,27],[23,8,23,12],[23,13,23,17],[23,18,23,22],[23,23,23,27],[24,8,24,12],[24,13,24,17],[24,18,24,22],[24,23,24,27],[24,0,24,7],[25,0,25,7],[21,28,21,32],[21,33,21,37],[22,28,22,32],[22,33,22,37],[19,28,19,32],[19,33,19,37],[20,28,20,32],[20,33,20,37],[19,38,19,43],[20,38,20,43],[21,38,21,43],[22,38,22,43],[17,28,17,32],[17,33,17,37],[18,28,18,32],[18,33,18,37],[15,28,15,32],[15,33,15,37],[16,28,16,32],[16,33,16,37],[16,38,16,43],[17,38,17,43],[18,38,18,43],[13,28,13,32],[13,33,13,37],[14,28,14,32],[14,33,14,37],[11,28,11,32],[11,33,11,37],[12,28,12,32],[12,33,12,37],[10,28,10,32],[10,33,10,37],[73,8,73,12],[73,13,73,17],[73,18,73,22],[73,23,73,27],[74,8,74,12],[74,13,74,17],[74,18,74,22],[9,28,9,32],[9,33,9,37],[74,23,74,27],[71,8,71,12],[71,13,71,17],[71,18,71,22],[71,23,71,27],[72,8,72,12],[72,13,72,17],[72,18,72,22],[72,23,72,27],[69,8,69,12],[69,13,69,17],[69,18,69,22],[69,23,69,27],[70,8,70,12],[70,13,70,17],[70,18,70,22],[70,23,70,27],[67,8,67,12],[67,13,67,17],[67,18,67,22],[67,23,67,27],[68,8,68,12],[68,13,68,17],[68,18,68,22],[68,23,68,27],[65,8,65,12],[65,13,65,17],[65,18,65,22],[65,23,65,27],[66,8,66,12],[66,13,66,17],[66,18,66,22],[66,23,66,27],[63,8,63,12],[63,13,63,17],[63,18,63,22],[63,23,63,27],[64,8,64,12],[64,13,64,17],[64,18,64,22],[64,23,64,27],[53,8,53,12],[53,13,53,17],[53,18,53,22],[53,23,53,27],[54,8,54,12],[54,13,54,17],[54,18,54,22],[54,23,54,27],[51,8,51,12],[51,13,51,17],[51,18,51,22],[51,23,51,27],[52,8,52,12],[52,13,52,17],[52,18,52,22],[52,23,52,27],[49,8,49,12],[49,13,49,17],[49,18,49,22],[49,23,49,27],[50,8,50,12],[50,13,50,17],[50,18,50,22],[50,23,50,27],[47,8,47,12],[47,13,47,17],[47,18,47,22],[47,23,47,27],[48,8,48,12],[48,13,48,17],[48,18,48,22],[48,23,48,27],[45,8,45,12],[45,13,45,17],[45,18,45,22],[45,23,45,27],[46,8,46,12],[46,13,46,17],[46,18,46,22],[46,23,46,27],[43,8,43,12],[43,13,43,17],[43,18,43,22],[43,23,43,27],[44,8,44,12],[44,13,44,17],[44,18,44,22],[44,23,44,27],[41,8,41,12],[41,13,41,17],[41,18,41,22],[41,23,41,27],[42,8,42,12],[42,13,42,17],[42,18,42,22],[42,23,42,27],[39,8,39,12],[39,13,39,17],[39,18,39,22],[39,23,39,27],[40,8,40,12],[40,13,40,17],[40,18,40,22],[40,23,40,27],[37,8,37,12],[37,13,37,17],[37,18,37,22],[37,23,37,27],[38,8,38,12],[38,13,38,17],[38,18,38,22],[38,23,38,27],[35,8,35,12],[35,13,35,17],[35,18,35,22],[35,23,35,27],[36,8,36,12],[36,13,36,17],[36,18,36,22],[36,23,36,27],[21,13,21,17],[21,18,21,22],[21,23,21,27],[22,8,22,12],[22,13,22,17],[22,18,22,22],[22,23,22,27],[19,8,19,12],[19,13,19,17],[19,18,19,22],[19,23,19,27],[20,8,20,12],[20,13,20,17],[20,18,20,22],[20,23,20,27],[17,13,17,17],[17,18,17,22],[17,23,17,27],[18,8,18,12],[18,13,18,17],[18,18,18,22],[18,23,18,27],[15,8,15,12],[15,13,15,17],[15,18,15,22],[15,23,15,27],[16,8,16,12],[16,13,16,17],[16,18,16,22],[16,23,16,27],[13,13,13,17],[13,18,13,22],[13,23,13,27],[14,8,14,12],[14,13,14,17],[14,18,14,22],[14,23,14,27],[11,8,11,12],[11,13,11,17],[11,18,11,22],[11,23,11,27],[12,8,12,12],[12,13,12,17],[12,18,12,22],[12,23,12,27],[9,23,9,27],[10,8,10,12],[10,13,10,17],[10,18,10,22],[10,23,10,27],[7,8,7,12],[7,13,7,17],[7,18,7,22],[7,23,7,27],[8,8,8,12],[8,13,8,17],[8,18,8,22],[8,23,8,27],[5,13,5,17],[5,18,5,22],[5,23,5,27],[6,8,6,12],[6,13,6,17],[6,18,6,22],[6,23,6,27],[3,8,3,12],[3,13,3,17],[3,18,3,22],[3,23,3,27],[4,8,4,12],[4,13,4,17],[4,18,4,22],[4,23,4,27],[70,0,70,7],[71,0,71,7],[72,0,72,7],[73,0,73,7],[74,0,74,7],[75,0,75,7],[64,0,64,7],[65,0,65,7],[66,0,66,7],[67,0,67,7],[68,0,68,7],[69,0,69,7],[61,0,61,7],[62,0,62,7],[63,0,63,7],[52,0,52,7],[53,0,53,7],[54,0,54,7],[55,0,55,7],[56,0,56,7],[57,0,57,7],[46,0,46,7],[47,0,47,7],[48,0,48,7],[49,0,49,7],[50,0,50,7],[51,0,51,7],[40,0,40,7],[41,0,41,7],[42,0,42,7],[43,0,43,7],[44,0,44,7],[45,0,45,7],[35,0,35,7],[36,0,36,7],[37,0,37,7],[38,0,38,7],[39,0,39,7],[29,0,29,7],[30,0,30,7],[31,0,31,7],[33,0,33,7],[16,0,16,7],[17,0,17,7],[18,0,18,7],[19,0,19,7],[20,0,20,7],[21,0,21,7],[2,0,2,7],[3,0,3,7],[2,8,2,12],[5,8,5,12],[13,8,13,12],[17,8,17,12],[21,8,21,12],[2,13,2,17],[2,18,2,22],[2,23,2,27],[1,0,1,7],[1,8,1,12],[1,13,1,17],[1,18,1,22],[1,23,1,27],[3,28,3,32],[3,33,3,37],[343,1,344,41],[1,28,1,32],[1,33,1,37],[10,0,10,7],[11,0,11,7],[12,0,12,7],[13,0,13,7],[14,0,14,7],[15,0,15,7],[4,0,4,7],[5,0,5,7],[6,0,6,7],[7,0,7,7],[8,0,8,7],[9,0,9,7],[22,0,22,7],[23,0,23,7],[244,2,245,41],[154,2,154,40],[156,2,156,40],[183,4,183,41],[184,37,184,39],[185,4,212,22],[447,1,450,2],[447,3,450,4],[447,5,450,10],[447,28,450,31],[447,32,450,35],[447,36,450,37],[447,38,450,41],[447,11,450,14],[447,15,450,22],[447,23,450,27],[451,3,460,4],[451,5,460,10],[451,11,460,14],[451,15,460,22],[451,23,460,27],[451,28,460,31],[451,32,460,35],[451,36,460,37],[451,38,460,41],[461,3,470,4],[461,5,470,10],[461,11,470,14],[461,15,470,22],[461,23,470,27],[461,28,470,31],[461,32,470,35],[461,36,470,37],[461,38,470,41],[481,11,490,14],[481,15,490,22],[481,23,490,27],[481,28,490,31],[481,32,490,35],[481,36,490,37],[481,38,490,41],[471,3,480,4],[471,5,480,10],[471,11,480,14],[471,15,480,22],[471,23,480,27],[471,28,480,31],[471,32,480,35],[471,36,480,37],[471,38,480,41],[451,1,500,2],[507,1,507,41],[508,1,508,41],[509,1,509,41],[510,1,510,41],[511,1,511,41],[512,1,512,41],[444,2,444,41],[445,2,445,41],[446,28,446,31],[446,32,446,33],[446,35,446,36],[446,38,446,39],[491,3,500,4],[491,5,500,10],[491,11,500,14],[491,15,500,22],[491,23,500,27],[491,28,500,31],[491,32,500,35],[491,36,500,37],[491,38,500,41],[481,3,490,4],[481,5,490,10],[535,22,535,40],[538,13,538,31],[540,3,540,41],[541,1,552,41],[553,1,559,41],[560,1,567,41],[571,3,571,41],[572,3,572,41],[573,3,573,41],[575,1,576,7],[575,8,576,17],[575,18,576,20],[575,21,576,24],[575,25,576,28],[575,29,576,33],[575,34,576,37],[575,38,576,41],[577,1,584,7],[577,8,584,17],[577,18,584,20],[577,21,584,24],[577,25,584,28],[577,29,584,33],[577,34,584,37],[577,38,584,41],[585,1,592,7],[585,8,592,17],[585,18,592,20],[585,21,592,24],[585,25,592,28],[585,29,592,33],[585,34,592,37],[585,38,592,41],[593,1,600,7],[593,8,600,17],[593,18,600,20],[593,21,600,24],[593,25,600,28],[593,29,600,33],[593,34,600,37],[593,38,600,41],[620,2,620,41],[621,2,621,41],[622,2,622,6],[622,7,622,18],[623,2,623,6],[623,7,623,18],[624,2,646,21],[624,22,646,41],[601,1,608,7],[601,8,608,17],[601,18,608,20],[601,21,608,24],[601,25,608,28],[601,29,608,33],[601,34,608,37],[601,38,608,41],[609,1,616,7],[609,8,616,17],[609,18,616,20],[609,21,616,24],[609,25,616,28],[609,29,616,33],[609,34,616,37],[609,38,616,41],[649,2,652,3],[649,4,652,9],[649,10,652,13],[649,14,652,21],[649,22,652,26],[649,27,652,30],[649,31,652,34],[649,35,652,36],[649,37,652,41],[653,2,662,3],[653,4,662,9],[653,10,662,13],[653,14,662,21],[653,22,662,26],[653,27,662,30],[653,31,662,34],[653,35,662,36],[653,37,662,41],[666,2,666,6],[666,7,666,18],[667,2,689,21],[667,22,689,41],[692,2,695,3],[692,4,695,9],[692,10,695,13],[692,14,695,21],[692,22,695,26],[692,27,695,30],[692,31,695,34],[692,35,695,36],[692,37,695,41],[696,2,705,3],[696,4,705,9],[696,10,705,13],[696,14,705,21],[696,22,705,26],[696,27,705,30],[696,31,705,34],[696,35,705,36],[696,37,705,41],[267,5,291,22],[267,23,291,40],[292,5,316,22],[292,23,316,40],[246,2,246,41],[247,2,247,41],[248,2,248,41],[249,2,249,41],[250,2,250,41],[251,2,251,41]]}
["　　事業別損益と費用　　　　　　○○年度事業計画"]
["科目",null,null,null,null,null,null,null,"事業",null,null,null,null,"事業",null,null,null,null,"事業",null,null,null,null,"事業",null,null,null,null,"事業部門合計",null,null,null,null,"管理部門",null,null,null,null,"合計"]
["Ⅰ収益"]
["　　受取会費",null,null,null,null,null,null,null,null,null,null,null,null,null,null,null,null,null,null,null,null,null,null,null,null,null,null,null,{"$f":"I4+N4+S4+X4","v":0},null,null,null,null,null,null,null,null,null,{"$f":"AC4+AH4","v":0}]
["　　受取寄付金",null,null,null,null,null,null,null,null,null,null,null,null,null,null,null,null,null,null,null,null,null,null,null,null,null,null,null,{"$f":"I5+N5+S5+X5","v":0},null,null,null,null,null,null,null,null,null,{"$f":"AC5+AH5","v":0}]
["　　事業収益",null,null,null,null,null,null,null,null,null,null,null,null,null,null,null,null,null,null,null,null,null,null,null,null,null,null,null,0,null,null,null,null,null,null,null,null,null,0]
[null,null,null,null,null,null,null,null,null,null,null,null,null,null,null,null,null,null,null,null,null,null,null,null,null,null,null,null,0,null,null,null,null,null,null,null,null,null,0]
[null,null,null,null,null,null,null,null,null,null,null,null,null,null,null,null,null,null,null,null,null,null,null,null,null,null,null,null,0,null,null,null,null,null,null,null,null,null,0]
[null,null,null,null,null,null,null,null,null,null,null,null,null,null,null,null,null,null,null,null,null,null,null,null,null,null,null,null,0,null,null,null,null,null,null,null,null,null,0]
["　　収益計",null,null,null,null,null,null,null,{"$f":"I9+I8+I7+I6+I5+I4","v":0},null,null,null,null,{"$f":"N9+N8+N7+N6+N5+N4","v":0},null,null,null,null,{"$f":"S9+S8+S7+S6+S5+S4","v":0},null,null,null,null,{"$f":"X9+X8+X7+X6+X5+X4","v":0},null,null,null,null,{"$f":"AC9+AC8+AC7+AC6+AC5+AC4","v":0},null,null,null,null,{"$f":"AH9+AH8+AH7+AH6+AH5+AH4","v":0},null,null,null,null,{"$f":"AC10+AH10","v":0}]
["Ⅱ費用"]
["　　（１）人件費"]
["　　　　給料",null,null,null,null,null,null,null,null,null,null,null,null,null,null,null,null,null,null,null,null,null,null,null,null,null,null,null,{"$f":"I13+N13+S13+X13","v":0},null,null,null,null,null,null,null,null,null,{"$f":"AC13+AH13","v":0}]
[null,null,null,null,null,null,null,null,null,null,null,null,null,null,null,null,null,null,null,null,null,null,null,null,null,null,null,null,0,null,null,null,null,null,null,null,null,null,{"$f":"AC14+AH14","v":0}]
[null,null,null,null,null,null,null,null,null,null,null,null,null,null,null,null,null,null,null,null,null,null,null,null,null,null,null,null,0,null,null,null,null,null,null,null,null,null,0]
[null,null,null,null,null,null,null,null,null,null,null,null,null,null,null,null,null,null,null,null,null,null,null,null,null,null,null,null,0,null,null,null,null,null,null,null,null,null,0]
["　　人件費計",null,null,null,null,null,null,null,{"$f":"I16+I15+I14+I13","v":0},null,null,null,null,{"$f":"N16+N15+N14+N13","v":0},null,null,null,null,{"$f":"S16+S15+S14+S13","v":0},null,null,null,null,{"$f":"X16+X15+X14+X13","v":0},null,null,null,null,{"$f":"AC16+AC15+AC14+AC13","v":0},null,null,null,null,{"$f":"AH13+AH14+AH15+AH16","v":0},null,null,null,null,{"$f":"AC17+AH17","v":0}]
["　　（２）その他経費"]
["　　　　業務委託費",null,null,null,null,null,null,null,null,null,null,null,null,null,null,null,null,null,null,null,null,null,null,null,null,null,null,null,{"$f":"I19+N19+S19+X19","v":0},null,null,null,null,null,null,null,null,null,{"$f":"AC19+AH19","v":0}]
["　　　　",null,null,null,null,null,null,null,null,null,null,null,null,null,null,null,null,null,null,null,null,null,null,null,null,null,null,null,0,null,null,null,null,null,null,null,null,null,{"$f":"AC20+AH20","v":0}]
[null,null,null,null,null,null,null,null,null,null,null,null,null,null,null,null,null,null,null,null,null,null,null,null,null,null,null,null,0,null,null,null,null,null,null,null,null,null,0]
["　　その他経費計",null,null,null,null,null,null,null,{"$f":"I21+I20+I19","v":0},null,null,null,null,{"$f":"N21+N20+N19","v":0},null,null,null,null,{"$f":"S21+S20+S19","v":0},null,null,null,null,{"$f":"X21+X20+X19","v":0},null,null,null,null,{"$f":"AC21+AC20+AC19","v":0},null,null,null,null,{"$f":"AH21+AH20+AH19","v":0},null,null,null,null,{"$f":"AC22+AH22","v":0}]
["　　費用計",null,null,null,null,null,null,null,null,null,null,null,null,null,null,null,null,null,null,null,null,null,null,null,null,null,null,null,null,null,null,null,null,null,null,null,null,null,{"$f":"AM17+AM22","v":0}]
["収益－費用",null,null,null,null,null,null,null,null,null,null,null,null,null,null,null,null,null,null,null,null,null,null,null,null,null,null,null,null,null,null,null,null,null,null,null,null,null,{"$f":"AM10-AM23","v":0}]
[]
[]
["   ●ビジネスモデルのデータから、各事業別に収益及び費用の合計を計算して、この表を作成する。"]
[]
[" 　●事業計画の段階で、概算でなく、積上げ計算による「収益と費用」の予算計画をする。"]
[]
[]
[]
["　　事業別損益と費用の状況　　　　　　○○年度事業報告"]
["科目",null,null,null,null,null,null,null,"事業",null,null,null,null,"事業",null,null,null,null,"事業",null,null,null,null,"事業",null,null,null,null,"事業部門合計",null,null,null,null,"管理部門",null,null,null,null,"合計"]
["Ⅰ収益"]
["　　受取会費",null,null,null,null,null,null,null,null,null,null,null,null,null,null,null,null,null,null,null,null,null,null,null,null,null,null,null,{"$f":"I36+N36+S36+X36","v":0},null,null,null,null,null,null,null,null,null,{"$f":"AC36+AH36","v":0}]
["　　受取寄付金",null,null,null,null,null,null,null,null,null,null,null,null,null,null,null,null,null,null,null,null,null,null,null,null,null,null,null,{"$f":"I37+N37+S37+X37","v":0},null,null,null,null,null,null,null,null,null,{"$f":"AC37+AH37","v":0}]
["　　事業収益",null,null,null,null,null,null,null,null,null,null,null,null,null,null,null,null,null,null,null,null,null,null,null,null,null,null,null,0,null,null,null,null,null,null,null,null,null,0]
[null,null,null,null,null,null,null,null,null,null,null,null,null,null,null,null,null,null,null,null,null,null,null,null,null,null,null,null,0,null,null,null,null,null,null,null,null,null,0]
[null,null,null,null,null,null,null,null,null,null,null,null,null,null,null,null,null,null,null,null,null,null,null,null,null,null,null,null,0,null,null,null,null,null,null,null,null,null,0]
[null,null,null,null,null,null,null,null,null,null,null,null,null,null,null,null,null,null,null,null,null,null,null,null,null,null,null,null,0,null,null,null,null,null,null,null,null,null,0]
["　　収益計",null,null,null,null,null,null,null,{"$f":"I41+I40+I39+I38+I37+I36","v":0},null,null,null,null,{"$f":"N41+N40+N39+N38+N37+N36","v":0},null,null,null,null,{"$f":"S41+S40+S39+S38+S37+S36","v":0},null,null,null,null,{"$f":"X41+X40+X39+X38+X37+X36","v":0},null,null,null,null,{"$f":"AC41+AC40+AC39+AC38+AC37+AC36","v":0},null,null,null,null,{"$f":"AH41+AH40+AH39+AH38+AH37+AH36","v":0},null,null,null,null,{"$f":"AC42+AH42","v":0}]
["Ⅱ費用"]
["　　（１）人件費"]
["　　　　給料",null,null,null,null,null,null,null,null,null,null,null,null,null,null,null,null,null,null,null,null,null,null,null,null,null,null,null,{"$f":"I45+N45+S45+X45","v":0},null,null,null,null,null,null,null,null,null,{"$f":"AC45+AH45","v":0}]
[null,null,null,null,null,null,null,null,null,null,null,null,null,null,null,null,null,null,null,null,null,null,null,null,null,null,null,null,0,null,null,null,null,null,null,null,null,null,{"$f":"AC46+AH46","v":0}]
[null,null,null,null,null,null,null,null,null,null,null,null,null,null,null,null,null,null,null,null,null,null,null,null,null,null,null,null,0,null,null,null,null,null,null,null,null,null,0]
[null,null,null,null,null,null,null,null,null,null,null,null,null,null,null,null,null,null,null,null,null,null,null,null,null,null,null,null,0,null,null,null,null,null,null,null,null,null,0]
["　　人件費計",null,null,null,null,null,null,null,{"$f":"I48+I47+I46+I45","v":0},null,null,null,null,{"$f":"N48+N47+N46+N45","v":0},null,null,null,null,{"$f":"S48+S47+S46+S45","v":0},null,null,null,null,{"$f":"X48+X47+X46+X45","v":0},null,null,null,null,{"$f":"AC48+AC47+AC46+AC45","v":0},null,null,null,null,{"$f":"AH45+AH46+AH47+AH48","v":0},null,null,null,null,{"$f":"AC49+AH49","v":0}]
["　　（２）その他経費"]
["　　　　業務委託費",null,null,null,null,null,null,null,null,null,null,null,null,null,null,null,null,null,null,null,null,null,null,null,null,null,null,null,{"$f":"I51+N51+S51+X51","v":0},null,null,null,null,null,null,null,null,null,{"$f":"AC51+AH51","v":0}]
["　　　　",null,null,null,null,null,null,null,null,null,null,null,null,null,null,null,null,null,null,null,null,null,null,null,null,null,null,null,0,null,null,null,null,null,null,null,null,null,{"$f":"AC52+AH52","v":0}]
[null,null,null,null,null,null,null,null,null,null,null,null,null,null,null,null,null,null,null,null,null,null,null,null,null,null,null,null,0,null,null,null,null,null,null,null,null,null,0]
["　　その他経費計",null,null,null,null,null,null,null,{"$f":"I53+I52+I51","v":0},null,null,null,null,{"$f":"N53+N52+N51","v":0},null,null,null,null,{"$f":"S53+S52+S51","v":0},null,null,null,null,{"$f":"X53+X52+X51","v":0},null,null,null,null,{"$f":"AC53+AC52+AC51","v":0},null,null,null,null,{"$f":"AH53+AH52+AH51","v":0},null,null,null,null,{"$f":"AC54+AH54","v":0}]
["　　費用計",null,null,null,null,null,null,null,null,null,null,null,null,null,null,null,null,null,null,null,null,null,null,null,null,null,null,null,null,null,null,null,null,null,null,null,null,null,{"$f":"AM49+AM54","v":0}]
["収益－費用",null,null,null,null,null,null,null,null,null,null,null,null,null,null,null,null,null,null,null,null,null,null,null,null,null,null,null,null,null,null,null,null,null,null,null,null,null,{"$f":"AM42-AM55","v":0}]
[]
[]
["　 ●事業実施後、実施結果として、この表を作成する。"]
[]
["　 ●計画時との比較より、改善や改革及び廃棄すべき事業を考察する。"]
[]
[]
[]
[]
[]
[]
[]
[]
[]
[]
[]
[]
[]
[]
[]
[]
[]
[]
[]
[]
[]
[]
[]
[]
[]
[]
[]
[null,null,null,"【強みを見つけるSWOT分析】"]
[]
[]
[null,null,null,"組織の強み",null,null,null,null,null,null,null,null,null,null,null,null,null,null,null,null,null,null,"組織の弱み"]
[null,null,"内部環境","　　　　　　　　　　　　　　　"]
[]
[]
[]
[]
[]
[]
[]
[]
[]
[]
[]
[]
[]
[]
[]
[]
[]
[]
[]
[]
[]
[]
[]
[]
[]
[]
[]
[]
[]
[null,null,"外部環境"]
[]
[]
[]
[]
[]
[]
[]
[]
[]
[]
[]
[]
[]
[]
[]
[]
[]
[]
[]
[]
[]
[]
[]
[]
[]
[]
[]
[]
[]
[]
[]
[null,null,"●事業計画時にビジネスモデル作成で、内部環境・外部環境及び組織の強み弱みの調査データからこの表を作成する。"]
[]
[null,null,"●組織の改革は、チャレンジの機会を発見することから始まる。"]
[]
[]
[]
[]
[]
[]
[]
[]
[]
[]
[]
[]
[]
[]
[]
[]
[]
[]
[]
[]
[]
[null,null,null,null,"【成長マトリックス】"]
[]
[]
[]
[]
[null,null,null,null,"事業（サービス・プログラム）\n"]
[null,null,null,null,null,"現状",null,null,null,null,null,null,null,null,null,null,null,null,null,null,null,null,null,null,null,null,null,null,null,null,null,null,null,null,null,null,null,"新規"]
[null,"受益者・利用者\n"]
[null,null,null,"現状"]
[]
[]
[]
[]
[]
[]
[]
[]
[]
[]
[]
[]
[]
[]
[]
[]
[]
[]
[]
[]
[]
[]
[]
[]
[]
[]
[]
[]
[]
[]
[]
[]
[]
[]
[]
[]
[]
[]
[]
[]
[]
[]
[]
[]
[]
[]
[]
[]
[]
[]
[null,null,null,"新規"]
[]
[]
[]
[]
[]
[]
[null,null,"●受益者・支援者へのアンケートや面接及び取材によって取得した顧客のニーズの変化や潜在的なニーズの情報より、現状の事業を見直し、また、新しい顧客のニーズに対応する事業を計画し準備する。"]
[]
[]
[]
[]
[]
[]
[]
[]
[]
[]
[]
[]
[]
[]
[]
[]
[]
[]
[]
[null,null,null,null,null,null,"【MEマトリックス】"]
[]
[]
[]
[]
[]
[]
[]
[]
[]
[]
[]
[]
[]
[]
[]
[]
[]
[]
[]
[]
[]
[]
[]
[]
[]
[]
[]
[]
[]
[]
[]
[]
[]
[]
[]
[]
[]
[]
[]
[]
[]
[]
[]
[]
[]
[]
[]
[]
[]
[]
[]
[]
[]
[]
[]
[]
[]
[]
[]
[]
[]
[]
[]
[]
[]
[]
[]
[]
[null,"●事業別損益状況の表より、事業の使命と収益から、表の位置を記入する。"]
[]
[null,"●「落ちこぼれ」の位置にある事業。（使命に貢献がなく、収益がない事業）　勇気をもって廃棄する。"]
[]
[null,"●「理想主義」の位置にある事業。（使命に貢献度高いが収益がない。）　他の支援者や寄付者あるいは企業などとの協働を目指し、少なくとも「収益＝費用」となるように事業を見直す。"]
[]
[]
[null,"●「花形スター」の位置にある事業。　顧客や市場及びニーズは、いつまでも不変ではない。すでに代替えのサービスが出現していたり、顧客のニーズ変化がある。市場のニーズ調査をして、事業を見直し、次の手を用意する。"]
[]
[]
[null,"●「乳牛」この位置にある事業。　収益は高いが法人の使命には貢献しない事業。　収益が高いニーズの再調査と更に利便性へのサービスを考える。　法人の使命と関連づけることができる他団体との協働事業への発展もある。"]
[]
[]
[]
[]
[]
[]
[]
[]
[]
[]
[null,null,null,null,null,null,null,null,null,null,null,null,null,null,null,null,null,null,null,null,null,null,"特定非営利活動法人　〇〇〇〇〇"]
[]
[]
[null,null,null,null,null,null,null,null,null,null,null,null,null,"〇〇年度事業計画書"]
[]
[null,null,1,"　事業計画"]
[null,"●事業方針　"]
[]
[]
[]
[]
[]
[]
[]
[]
[]
[]
[]
[null,"●事業実施対象の現状"]
[]
[]
[]
[]
[]
[]
[null,"●事業の成果目標と成果指標"]
[]
[]
[]
[]
[]
[]
[]
[]
[]
[]
[null,null,2,"　事業の実施に関する事項"]
[]
[null,null,null,"（１）　特定非営利活動に係る事業"]
[]
[null,"事業名　　　　　　　　　定款に規定した事業",null,null,null,null,null,null,"事業内容",null,null,null,null,null,null,null,null,null,"実施予定日時",null,null,"実施予定　　場所",null,null,null,"従事者の　　予定人数",null,null,null,"受益対象者の範囲予定人数",null,null,null,null,"支出見込額　(千円)",null,null,null,"今年度　　　成果指標"]
[]
[]
[]
[]
[]
[]
[]
[]
[]
[]
[]
[]
[]
[]
[]
[]
[]
[]
[]
[]
[]
[]
[]
[]
[]
[]
[]
[]
[]
[]
[]
[]
[]
[]
[]
[]
[]
[]
[]
[]
[]
[]
[]
[]
[]
[]
[]
[]
[]
[null,null,"〇〇年度事業計画書　　　　　　【短期】　【中期】　　【長期】　　　　　（事業別・期間別の別々に作成）"]
[null,null,"事業・タスク別計画表"]
[null,null,null,null,null,null,null,null,null,null,null,null,null,null,null,null,null,null,null,null,null,null,null,null,null,null,null,null,"作成日：",null,null,null,null,null,"年",null,null,"月",null,null,"日"]
[null,"事　　業　　名",null,"タ　　ス　　ク",null,"事前市場調査",null,null,null,null,null,"実施月日",null,null,null,"実施予定の内容　　　　　　インプット",null,null,null,null,null,null,null,"実施計画　　　回数等　　　　アウトプット",null,null,null,null,"成果指標　見込まれるアウトカム指標",null,null,null,"収益見込額",null,null,null,"担　　当　　者",null,"担当者目標"]
[]
[]
[]
[]
[]
[]
[]
[]
[]
[]
[]
[]
[]
[]
[]
[]
[]
[]
[]
[]
[]
[]
[]
[]
[]
[]
[]
[]
[]
[]
[]
[]
[]
[]
[]
[]
[]
[]
[]
[]
[]
[]
[]
[]
[]
[]
[]
[]
[]
[]
[]
[]
[]
[]
[]
[]
[]
[]
[]
[null,"●「事業名」　定款に規定した事業"]
[]
[null,"●「タスク」　事業を達成させる作業名(タスク)"]
[]
[null,"●タスクごとに、成果指標を設定し、それぞれのタスク担当者の達成目標とする。"]
[]
[null,"●事業全体の成果指標は、ロジックモデルからアウトカム指標を設定し、それを目標とする。"]
[]
[null,"●事業成果評価は、事業完了後の顧客・支援者等の面接やアンケート又は取材から取得した情報から社会への貢献への影響を評価する。"]
[]
[null,"●事業開始前に、顧客や支援者の状態やニーズを市場調査して、これに対応するアウトカム指標を設定し事業計画を作成する。"]
[]
[null,"●組織活動成果評価は、事業活動前と事業後の市場状態の変化から活動評価をしなければ、実質的な成果が測定できない。"]
[]
[null,"●組織の外に「活動成果」があり、組織の内には、「コスト」があるのみである。"]
[]
[]
[]
[]
[]
[]
[]
[]
[]
[]
[]
[]
[]
[null,null,null,null,null,null,null,null,null,null,null,null,null,null,null,null,null,null,null,null,null,null,"特定非営利活動法人　〇〇〇〇〇"]
[]
[]
[null,null,null,null,null,null,null,null,null,null,null,null,null,"〇〇年度事業報告書"]
[]
[null,null,1,"　事業成果"]
[null,"●事業成果報告　"]
[]
[]
[]
[]
[]
[]
[]
[]
[]
[]
[]
[null,"●事業実施対象の変化"]
[]
[]
[]
[]
[]
[]
[null,"●事業の成果目標と成果指標との評価"]
[]
[]
[]
[]
[]
[]
[]
[]
[]
[]
[null,null,2,"　事業報告に関する事項"]
[]
[null,null,null,"（１）　特定非営利活動に係る事業"]
[]
[null,"事業名　　　　　　　　　定款に規定した事業",null,null,null,null,null,null,"事業内容",null,null,null,null,null,null,null,null,null,"実施予定日時",null,null,"実施予定　　場所",null,null,null,"従事者の　　予定人数",null,null,null,"受益対象者の範囲予定人数",null,null,null,null,"支出見込額　(千円)",null,null,null,"今年度　　　成果指標"]
[]
[]
[]
[]
[]
[]
[]
[]
[]
[]
[]
[]
[]
[]
[]
[]
[]
[]
[]
[]
[]
[]
[]
[]
[]
[]
[]
[]
[]
[]
[]
[]
[]
[]
[]
[]
[]
[]
[]
[]
[]
[]
[]
[]
[null,null,"〇〇年度事業別　事業報告書"]
[]
[null,null,"事業名"]
[null,null,"タスク(作業名)"]
[null,null,"写真１",null,null,null,null,null,null,null,null,null,null,null,null,null,null,null,null,null,null,null,"写真２"]
[]
[]
[]
[]
[]
[]
[]
[]
[]
[]
[]
[]
[]
[]
[]
[]
[]
[]
[]
[]
[]
[]
[]
[]
[null,null,"タ　　ス　　ク",null,"事後市場調査　　アンケート　　　取材",null,null,null,null,null,"実施月日",null,null,null,"実施の内容　　　　　　インプット",null,null,null,null,null,null,null,"実施　　　　　回数等　　　　アウトプット",null,null,null,null,"成果指標　アウトカム指標",null,null,null,"収益額",null,null,null,"担　　当　　者",null,"担当者　　　　コメント"]
[]
[]
[]
[]
[]
[]
[]
[]
[]
[]
[]
[]
[]
[]
[]
[]
[null,null,"タスク(作業名)"]
[null,null,"写真１",null,null,null,null,null,null,null,null,null,null,null,null,null,null,null,null,null,null,null,"写真２"]
[]
[]
[]
[]
[]
[]
[]
[]
[]
[]
[]
[]
[]
[]
[]
[]
[]
[]
[]
[]
[]
[]
[]
[]
[null,null,"タ　　ス　　ク",null,"事後市場調査　　アンケート　　　取材",null,null,null,null,null,"実施月日",null,null,null,"実施の内容　　　　　　インプット",null,null,null,null,null,null,null,"実施　　　　　回数等　　　　アウトプット",null,null,null,null,"成果指標　アウトカム指標",null,null,null,"収益額",null,null,null,"担　　当　　者",null,"担当者　　　　コメント"]